﻿Body Name,Body,Date,Department,Beneficiary,Summary of Purpose (SeRCOP),Amount,Merchant Code,Transaction Number
Sandwell Metropolitan Borough Council,http://www.sandwell.gov.uk/info/200202/performance_and_spending/3233/government_procurement_cards,05-Jul-2021,Total Public Health,AMZNMktplace,Public Health,79.96,MISCELLANEOUS AND SPECIALTY RETAIL STORES,2021-22Q2_PC0001
Sandwell Metropolitan Borough Council,http://www.sandwell.gov.uk/info/200202/performance_and_spending/3233/government_procurement_cards,05-Jul-2021,Total Borough Economy,AMZNMKTPLACE AMAZON.CO,Neighbourhoods,209.39,MISCELLANEOUS AND SPECIALTY RETAIL STORES,2021-22Q2_PC0002
Sandwell Metropolitan Borough Council,http://www.sandwell.gov.uk/info/200202/performance_and_spending/3233/government_procurement_cards,05-Jul-2021,Total Borough Economy,FACEBK XHCV75BKY2,Neighbourhoods,3.87,ADVERTISING SERVICES,2021-22Q2_PC0003
Sandwell Metropolitan Borough Council,http://www.sandwell.gov.uk/info/200202/performance_and_spending/3233/government_procurement_cards,05-Jul-2021,Total Borough Economy,WEBBS OF WEST HAGL,Neighbourhoods,49.99,LAWN AND GARDEN SUPPLY STORES,2021-22Q2_PC0004
Sandwell Metropolitan Borough Council,http://www.sandwell.gov.uk/info/200202/performance_and_spending/3233/government_procurement_cards,05-Jul-2021,Total Borough Economy,AMZNMKTPLACE AMAZON.CO,Neighbourhoods,120.7,MISCELLANEOUS AND SPECIALTY RETAIL STORES,2021-22Q2_PC0005
Sandwell Metropolitan Borough Council,http://www.sandwell.gov.uk/info/200202/performance_and_spending/3233/government_procurement_cards,05-Jul-2021,Total Borough Economy,CHERRY LANE GARDEN CEN,Neighbourhoods,12.99,DISCOUNT STORES,2021-22Q2_PC0006
Sandwell Metropolitan Borough Council,http://www.sandwell.gov.uk/info/200202/performance_and_spending/3233/government_procurement_cards,05-Jul-2021,Total Public Health,OFFICE DEPOT UK,Public Health,15.77,STATIONERY/OFFICE SUPPLIES/PRINTING & WRITING PAP.,2021-22Q2_PC0007
Sandwell Metropolitan Borough Council,http://www.sandwell.gov.uk/info/200202/performance_and_spending/3233/government_procurement_cards,05-Jul-2021,Total Borough Economy,AMZNMKTPLACE AMAZON.CO,Neighbourhoods,21.94,MISCELLANEOUS AND SPECIALTY RETAIL STORES,2021-22Q2_PC0008
Sandwell Metropolitan Borough Council,http://www.sandwell.gov.uk/info/200202/performance_and_spending/3233/government_procurement_cards,05-Jul-2021,Total Borough Economy,AMZNMktplace,Neighbourhoods,26.78,MISCELLANEOUS AND SPECIALTY RETAIL STORES,2021-22Q2_PC0009
Sandwell Metropolitan Borough Council,http://www.sandwell.gov.uk/info/200202/performance_and_spending/3233/government_procurement_cards,05-Jul-2021,Total Borough Economy,OFFICE DEPOT UK,Neighbourhoods,54.23,STATIONERY/OFFICE SUPPLIES/PRINTING & WRITING PAP.,2021-22Q2_PC0010
Sandwell Metropolitan Borough Council,http://www.sandwell.gov.uk/info/200202/performance_and_spending/3233/government_procurement_cards,05-Jul-2021,Total Borough Economy,www.chemist4u.com,Neighbourhoods,39.96,"DRUG STORES, PHARMACIES",2021-22Q2_PC0011
Sandwell Metropolitan Borough Council,http://www.sandwell.gov.uk/info/200202/performance_and_spending/3233/government_procurement_cards,05-Jul-2021,Total Borough Economy,AMZNMktplace,Neighbourhoods,54.7,MISCELLANEOUS AND SPECIALTY RETAIL STORES,2021-22Q2_PC0012
Sandwell Metropolitan Borough Council,http://www.sandwell.gov.uk/info/200202/performance_and_spending/3233/government_procurement_cards,05-Jul-2021,Total Borough Economy,WWW.UKPOS.COM,Neighbourhoods,47.83,"OFFICE, SCHOOL SUPPLY, AND STATIONERY STORES",2021-22Q2_PC0013
Sandwell Metropolitan Borough Council,http://www.sandwell.gov.uk/info/200202/performance_and_spending/3233/government_procurement_cards,05-Jul-2021,Total Borough Economy,BELLA ITALIA,Neighbourhoods,56.83,"EATING PLACES, RESTAURANTS",2021-22Q2_PC0014
Sandwell Metropolitan Borough Council,http://www.sandwell.gov.uk/info/200202/performance_and_spending/3233/government_procurement_cards,05-Jul-2021,FINANCE (Inc SIU),OFFICE DEPOT UK,Total Adult Social Care,20.5,STATIONERY/OFFICE SUPPLIES/PRINTING & WRITING PAP.,2021-22Q2_PC0015
Sandwell Metropolitan Borough Council,http://www.sandwell.gov.uk/info/200202/performance_and_spending/3233/government_procurement_cards,05-Jul-2021,Total ASCHWB,OFFICE DEPOT UK,Total Adult Social Care,39.76,STATIONERY/OFFICE SUPPLIES/PRINTING & WRITING PAP.,2021-22Q2_PC0016
Sandwell Metropolitan Borough Council,http://www.sandwell.gov.uk/info/200202/performance_and_spending/3233/government_procurement_cards,05-Jul-2021,FINANCE (Inc SIU),OFFICE DEPOT UK,Total Adult Social Care,28.82,STATIONERY/OFFICE SUPPLIES/PRINTING & WRITING PAP.,2021-22Q2_PC0017
Sandwell Metropolitan Borough Council,http://www.sandwell.gov.uk/info/200202/performance_and_spending/3233/government_procurement_cards,05-Jul-2021,Childrens Services,THE SPAR,Childrens Services,12.3,DAIRY PRODUCTS STORES,2021-22Q2_PC0018
Sandwell Metropolitan Borough Council,http://www.sandwell.gov.uk/info/200202/performance_and_spending/3233/government_procurement_cards,05-Jul-2021,Childrens Services,AWARD EVENTS,Childrens Services,200,"ORGANIZATIONS, CHARITABLE AND SOCIAL SERVICES",2021-22Q2_PC0019
Sandwell Metropolitan Borough Council,http://www.sandwell.gov.uk/info/200202/performance_and_spending/3233/government_procurement_cards,05-Jul-2021,Childrens Services,AWARD EVENTS,Childrens Services,52,"ORGANIZATIONS, CHARITABLE AND SOCIAL SERVICES",2021-22Q2_PC0020
Sandwell Metropolitan Borough Council,http://www.sandwell.gov.uk/info/200202/performance_and_spending/3233/government_procurement_cards,05-Jul-2021,Childrens Services,ASDA STORES LTD 5865,Childrens Services,22.46,"GROCERY STORES, SUPERMARKETS",2021-22Q2_PC0021
Sandwell Metropolitan Borough Council,http://www.sandwell.gov.uk/info/200202/performance_and_spending/3233/government_procurement_cards,05-Jul-2021,Childrens Services,OFFICE DEPOT UK,Childrens Services,172.8,STATIONERY/OFFICE SUPPLIES/PRINTING & WRITING PAP.,2021-22Q2_PC0022
Sandwell Metropolitan Borough Council,http://www.sandwell.gov.uk/info/200202/performance_and_spending/3233/government_procurement_cards,05-Jul-2021,Childrens Services,AMZNMktplace,Childrens Services,126.37,MISCELLANEOUS AND SPECIALTY RETAIL STORES,2021-22Q2_PC0023
Sandwell Metropolitan Borough Council,http://www.sandwell.gov.uk/info/200202/performance_and_spending/3233/government_procurement_cards,05-Jul-2021,Childrens Services,FACEBK FNJSQ5BLS2,Childrens Services,17,ADVERTISING SERVICES,2021-22Q2_PC0024
Sandwell Metropolitan Borough Council,http://www.sandwell.gov.uk/info/200202/performance_and_spending/3233/government_procurement_cards,05-Jul-2021,Childrens Services,FACEBK 4S7RX53LS2,Childrens Services,3.78,ADVERTISING SERVICES,2021-22Q2_PC0025
Sandwell Metropolitan Borough Council,http://www.sandwell.gov.uk/info/200202/performance_and_spending/3233/government_procurement_cards,05-Jul-2021,Childrens Services,AMZNMktplace,Childrens Services,17.98,MISCELLANEOUS AND SPECIALTY RETAIL STORES,2021-22Q2_PC0026
Sandwell Metropolitan Borough Council,http://www.sandwell.gov.uk/info/200202/performance_and_spending/3233/government_procurement_cards,05-Jul-2021,Childrens Services,OFFICE DEPOT UK,Childrens Services,12.56,STATIONERY/OFFICE SUPPLIES/PRINTING & WRITING PAP.,2021-22Q2_PC0027
Sandwell Metropolitan Borough Council,http://www.sandwell.gov.uk/info/200202/performance_and_spending/3233/government_procurement_cards,05-Jul-2021,Housing & Assets Total,TRAVELODGE,Neighbourhoods,116.24,TRAVELODGE,2021-22Q2_PC0028
Sandwell Metropolitan Borough Council,http://www.sandwell.gov.uk/info/200202/performance_and_spending/3233/government_procurement_cards,05-Jul-2021,Director of Law & Governance,LLG ENTERPRISES LTD,Assistant Chief Executive (Excl SIU),238.8,"SCHOOLS, TRADE AND VOCATIONAL",2021-22Q2_PC0029
Sandwell Metropolitan Borough Council,http://www.sandwell.gov.uk/info/200202/performance_and_spending/3233/government_procurement_cards,05-Jul-2021,Director of Law & Governance,HIGGS & SONS,Assistant Chief Executive (Excl SIU),125.6,"ATTORNEYS, LEGAL SERVICES",2021-22Q2_PC0030
Sandwell Metropolitan Borough Council,http://www.sandwell.gov.uk/info/200202/performance_and_spending/3233/government_procurement_cards,05-Jul-2021,Director of Law & Governance,HIGGS & SONS,Assistant Chief Executive (Excl SIU),125.6,"ATTORNEYS, LEGAL SERVICES",2021-22Q2_PC0031
Sandwell Metropolitan Borough Council,http://www.sandwell.gov.uk/info/200202/performance_and_spending/3233/government_procurement_cards,06-Jul-2021,Childrens Services,WEST MIDLANDS TRAV,Childrens Services,60,BUS LINES,2021-22Q2_PC0032
Sandwell Metropolitan Borough Council,http://www.sandwell.gov.uk/info/200202/performance_and_spending/3233/government_procurement_cards,06-Jul-2021,Total Borough Economy,PRINTED.COM,Neighbourhoods,125.64,MISCELLANEOUS PUBLISHING AND PRINTING,2021-22Q2_PC0033
Sandwell Metropolitan Borough Council,http://www.sandwell.gov.uk/info/200202/performance_and_spending/3233/government_procurement_cards,06-Jul-2021,Housing & Assets Total,SCREWFIX DIR LTD,Neighbourhoods,14.54,"BUILDING MATERIALS, LUMBER STORES",2021-22Q2_PC0034
Sandwell Metropolitan Borough Council,http://www.sandwell.gov.uk/info/200202/performance_and_spending/3233/government_procurement_cards,06-Jul-2021,Total Borough Economy,SP   DAVID AUSTIN ROSE,Neighbourhoods,23.45,"FLORIST SUPPLIES,NURSERY STOCK & FLOWERS",2021-22Q2_PC0035
Sandwell Metropolitan Borough Council,http://www.sandwell.gov.uk/info/200202/performance_and_spending/3233/government_procurement_cards,06-Jul-2021,Total Public Health,ARGOS LTD,Public Health,-59.96,DISCOUNT STORES,2021-22Q2_PC0036
Sandwell Metropolitan Borough Council,http://www.sandwell.gov.uk/info/200202/performance_and_spending/3233/government_procurement_cards,06-Jul-2021,Total Public Health,ARGOS LTD,Public Health,59.96,DISCOUNT STORES,2021-22Q2_PC0037
Sandwell Metropolitan Borough Council,http://www.sandwell.gov.uk/info/200202/performance_and_spending/3233/government_procurement_cards,06-Jul-2021,Regeneration & Growth,ARDEN GATES LIMITED,Regeneration And The Economy,148,METAL SERVICE CENTERS AND OFFICES,2021-22Q2_PC0038
Sandwell Metropolitan Borough Council,http://www.sandwell.gov.uk/info/200202/performance_and_spending/3233/government_procurement_cards,06-Jul-2021,FINANCE (Inc SIU),AMZNMKTPLACE AMAZON.CO,Assistant Chief Executive (Excl SIU),174.65,MISCELLANEOUS AND SPECIALTY RETAIL STORES,2021-22Q2_PC0039
Sandwell Metropolitan Borough Council,http://www.sandwell.gov.uk/info/200202/performance_and_spending/3233/government_procurement_cards,06-Jul-2021,Total Borough Economy,AMZNMKTPLACE AMAZON.CO,Neighbourhoods,8.29,MISCELLANEOUS AND SPECIALTY RETAIL STORES,2021-22Q2_PC0040
Sandwell Metropolitan Borough Council,http://www.sandwell.gov.uk/info/200202/performance_and_spending/3233/government_procurement_cards,06-Jul-2021,Total Borough Economy,AMZNMktplace,Neighbourhoods,18.94,MISCELLANEOUS AND SPECIALTY RETAIL STORES,2021-22Q2_PC0041
Sandwell Metropolitan Borough Council,http://www.sandwell.gov.uk/info/200202/performance_and_spending/3233/government_procurement_cards,06-Jul-2021,Total ASCHWB,WWW.WINCHESTEROFFICESU,Total Adult Social Care,159.01,"OFFICE, SCHOOL SUPPLY, AND STATIONERY STORES",2021-22Q2_PC0042
Sandwell Metropolitan Borough Council,http://www.sandwell.gov.uk/info/200202/performance_and_spending/3233/government_procurement_cards,06-Jul-2021,Total ASCHWB,TURTLESKIN,Total Adult Social Care,14.34,MEN'S AND WOMEN'S CLOTHING STORES,2021-22Q2_PC0043
Sandwell Metropolitan Borough Council,http://www.sandwell.gov.uk/info/200202/performance_and_spending/3233/government_procurement_cards,06-Jul-2021,Total ASCHWB,FIRSTAID4LESS.CO.UK,Total Adult Social Care,70.74,MISCELLANEOUS AND SPECIALTY RETAIL STORES,2021-22Q2_PC0044
Sandwell Metropolitan Borough Council,http://www.sandwell.gov.uk/info/200202/performance_and_spending/3233/government_procurement_cards,06-Jul-2021,Childrens Services,POST OFFICE COUNTER,Childrens Services,2.7,POSTAL SERVICES-GOVERNMENT ONLY,2021-22Q2_PC0045
Sandwell Metropolitan Borough Council,http://www.sandwell.gov.uk/info/200202/performance_and_spending/3233/government_procurement_cards,06-Jul-2021,Childrens Services,AMZNMktplace,Childrens Services,69.99,MISCELLANEOUS AND SPECIALTY RETAIL STORES,2021-22Q2_PC0046
Sandwell Metropolitan Borough Council,http://www.sandwell.gov.uk/info/200202/performance_and_spending/3233/government_procurement_cards,06-Jul-2021,Housing & Assets Total,TRAVELODGE,Neighbourhoods,82.58,TRAVELODGE,2021-22Q2_PC0047
Sandwell Metropolitan Borough Council,http://www.sandwell.gov.uk/info/200202/performance_and_spending/3233/government_procurement_cards,06-Jul-2021,Housing & Assets Total,WWW.VICARAGELODGE.COM,Neighbourhoods,1050,"LODGING-HOTELS,MOTELS,RESORTS-NOT CLASSIFIED",2021-22Q2_PC0048
Sandwell Metropolitan Borough Council,http://www.sandwell.gov.uk/info/200202/performance_and_spending/3233/government_procurement_cards,06-Jul-2021,Corporate Management,OFFICE DEPOT UK,Corporate Management,20.04,STATIONERY/OFFICE SUPPLIES/PRINTING & WRITING PAP.,2021-22Q2_PC0049
Sandwell Metropolitan Borough Council,http://www.sandwell.gov.uk/info/200202/performance_and_spending/3233/government_procurement_cards,07-Jul-2021,Total Housing Revenue Account,WWW.FIBREGRID.COM,Total Housing Revenue Account,351.31,INDUSTRIAL SUPPLIES NOT ELSEWHERE CLASSIFIED,2021-22Q2_PC0050
Sandwell Metropolitan Borough Council,http://www.sandwell.gov.uk/info/200202/performance_and_spending/3233/government_procurement_cards,07-Jul-2021,Total Housing Revenue Account,RUTILUS CONCRETE GUTTE,Total Housing Revenue Account,2086,"ROOFING AND SIDING, SHEET METAL WORK CONTRACTORS",2021-22Q2_PC0051
Sandwell Metropolitan Borough Council,http://www.sandwell.gov.uk/info/200202/performance_and_spending/3233/government_procurement_cards,07-Jul-2021,Total Borough Economy,HOME BARGAINS MERRY HI,Neighbourhoods,9.97,HARDWARE STORES,2021-22Q2_PC0052
Sandwell Metropolitan Borough Council,http://www.sandwell.gov.uk/info/200202/performance_and_spending/3233/government_procurement_cards,07-Jul-2021,Total Borough Economy,AMZNMktplace,Neighbourhoods,56.19,MISCELLANEOUS AND SPECIALTY RETAIL STORES,2021-22Q2_PC0053
Sandwell Metropolitan Borough Council,http://www.sandwell.gov.uk/info/200202/performance_and_spending/3233/government_procurement_cards,07-Jul-2021,Total Borough Economy,AMZNMktplace,Neighbourhoods,12.95,MISCELLANEOUS AND SPECIALTY RETAIL STORES,2021-22Q2_PC0054
Sandwell Metropolitan Borough Council,http://www.sandwell.gov.uk/info/200202/performance_and_spending/3233/government_procurement_cards,07-Jul-2021,Total Borough Economy,Amazon.co.uk VQ2RQ9KB5,Neighbourhoods,6.95,DIRECT MARKETING-OTHER DIRECT MARKETERS/NOT ELSEW.,2021-22Q2_PC0055
Sandwell Metropolitan Borough Council,http://www.sandwell.gov.uk/info/200202/performance_and_spending/3233/government_procurement_cards,07-Jul-2021,Total Borough Economy,POST OFFICE COUNTER,Neighbourhoods,2.39,POSTAL SERVICES-GOVERNMENT ONLY,2021-22Q2_PC0056
Sandwell Metropolitan Borough Council,http://www.sandwell.gov.uk/info/200202/performance_and_spending/3233/government_procurement_cards,07-Jul-2021,Housing & Assets Total,Amazon.co.uk 9N45N98Z5,Neighbourhoods,21.56,DIRECT MARKETING-OTHER DIRECT MARKETERS/NOT ELSEW.,2021-22Q2_PC0057
Sandwell Metropolitan Borough Council,http://www.sandwell.gov.uk/info/200202/performance_and_spending/3233/government_procurement_cards,07-Jul-2021,Total Public Health,AMZNMktplace,Public Health,113.46,MISCELLANEOUS AND SPECIALTY RETAIL STORES,2021-22Q2_PC0058
Sandwell Metropolitan Borough Council,http://www.sandwell.gov.uk/info/200202/performance_and_spending/3233/government_procurement_cards,07-Jul-2021,Total Public Health,WWW.CUSTOMLABELS.CO.UK,Public Health,90,MISCELLANEOUS PUBLISHING AND PRINTING,2021-22Q2_PC0059
Sandwell Metropolitan Borough Council,http://www.sandwell.gov.uk/info/200202/performance_and_spending/3233/government_procurement_cards,07-Jul-2021,Total Business Strategy & Change,AMZNMKTPLACE AMAZON.CO,Assistant Chief Executive (Excl SIU),26.99,MISCELLANEOUS AND SPECIALTY RETAIL STORES,2021-22Q2_PC0060
Sandwell Metropolitan Borough Council,http://www.sandwell.gov.uk/info/200202/performance_and_spending/3233/government_procurement_cards,07-Jul-2021,Regeneration & Growth,STONE LABELS,Regeneration And The Economy,33.73,STATIONERY/OFFICE SUPPLIES/PRINTING & WRITING PAP.,2021-22Q2_PC0061
Sandwell Metropolitan Borough Council,http://www.sandwell.gov.uk/info/200202/performance_and_spending/3233/government_procurement_cards,07-Jul-2021,FINANCE (Inc SIU),THEPIHUT,Assistant Chief Executive (Excl SIU),380.99,ELECTRONIC SALES,2021-22Q2_PC0062
Sandwell Metropolitan Borough Council,http://www.sandwell.gov.uk/info/200202/performance_and_spending/3233/government_procurement_cards,07-Jul-2021,FINANCE (Inc SIU),THEPIHUT,Assistant Chief Executive (Excl SIU),132.49,ELECTRONIC SALES,2021-22Q2_PC0063
Sandwell Metropolitan Borough Council,http://www.sandwell.gov.uk/info/200202/performance_and_spending/3233/government_procurement_cards,07-Jul-2021,Total Borough Economy,OFFICE DEPOT UK,Neighbourhoods,233.95,STATIONERY/OFFICE SUPPLIES/PRINTING & WRITING PAP.,2021-22Q2_PC0064
Sandwell Metropolitan Borough Council,http://www.sandwell.gov.uk/info/200202/performance_and_spending/3233/government_procurement_cards,07-Jul-2021,Total Borough Economy,Amazon.co.uk 7M7S12YT5,Neighbourhoods,20.02,DIRECT MARKETING-OTHER DIRECT MARKETERS/NOT ELSEW.,2021-22Q2_PC0065
Sandwell Metropolitan Borough Council,http://www.sandwell.gov.uk/info/200202/performance_and_spending/3233/government_procurement_cards,07-Jul-2021,Total Borough Economy,AMZNMktplace,Neighbourhoods,41.97,MISCELLANEOUS AND SPECIALTY RETAIL STORES,2021-22Q2_PC0066
Sandwell Metropolitan Borough Council,http://www.sandwell.gov.uk/info/200202/performance_and_spending/3233/government_procurement_cards,07-Jul-2021,Total Borough Economy,SCREWFIX DIRECT,Neighbourhoods,39.96,"BUILDING MATERIALS, LUMBER STORES",2021-22Q2_PC0067
Sandwell Metropolitan Borough Council,http://www.sandwell.gov.uk/info/200202/performance_and_spending/3233/government_procurement_cards,07-Jul-2021,Total Borough Economy,AMZNMktplace,Neighbourhoods,134.85,MISCELLANEOUS AND SPECIALTY RETAIL STORES,2021-22Q2_PC0068
Sandwell Metropolitan Borough Council,http://www.sandwell.gov.uk/info/200202/performance_and_spending/3233/government_procurement_cards,07-Jul-2021,Director of Law & Governance,AMZNMktplace,Assistant Chief Executive (Excl SIU),12.26,MISCELLANEOUS AND SPECIALTY RETAIL STORES,2021-22Q2_PC0069
Sandwell Metropolitan Borough Council,http://www.sandwell.gov.uk/info/200202/performance_and_spending/3233/government_procurement_cards,07-Jul-2021,Director of Law & Governance,SAFETYSUPPL,Assistant Chief Executive (Excl SIU),57,DEPARTMENT STORES,2021-22Q2_PC0070
Sandwell Metropolitan Borough Council,http://www.sandwell.gov.uk/info/200202/performance_and_spending/3233/government_procurement_cards,07-Jul-2021,Total ASCHWB,OFFICE DEPOT UK,Total Adult Social Care,192.77,STATIONERY/OFFICE SUPPLIES/PRINTING & WRITING PAP.,2021-22Q2_PC0071
Sandwell Metropolitan Borough Council,http://www.sandwell.gov.uk/info/200202/performance_and_spending/3233/government_procurement_cards,07-Jul-2021,Total ASCHWB,AMZNMktplace,Total Adult Social Care,30.99,MISCELLANEOUS AND SPECIALTY RETAIL STORES,2021-22Q2_PC0072
Sandwell Metropolitan Borough Council,http://www.sandwell.gov.uk/info/200202/performance_and_spending/3233/government_procurement_cards,07-Jul-2021,Childrens Services,Amazon.co.uk LW7V94IC5,Childrens Services,18.53,DIRECT MARKETING-OTHER DIRECT MARKETERS/NOT ELSEW.,2021-22Q2_PC0073
Sandwell Metropolitan Borough Council,http://www.sandwell.gov.uk/info/200202/performance_and_spending/3233/government_procurement_cards,07-Jul-2021,Regeneration & Growth,AMZNMKTPLACE AMAZON.CO,Regeneration And The Economy,55.37,MISCELLANEOUS AND SPECIALTY RETAIL STORES,2021-22Q2_PC0074
Sandwell Metropolitan Borough Council,http://www.sandwell.gov.uk/info/200202/performance_and_spending/3233/government_procurement_cards,07-Jul-2021,Housing & Assets Total,AMZNMKTPLACE AMAZON.CO,Neighbourhoods,13.99,MISCELLANEOUS AND SPECIALTY RETAIL STORES,2021-22Q2_PC0075
Sandwell Metropolitan Borough Council,http://www.sandwell.gov.uk/info/200202/performance_and_spending/3233/government_procurement_cards,07-Jul-2021,Housing & Assets Total,SCREWFIX DIRECT,Neighbourhoods,15,"BUILDING MATERIALS, LUMBER STORES",2021-22Q2_PC0076
Sandwell Metropolitan Borough Council,http://www.sandwell.gov.uk/info/200202/performance_and_spending/3233/government_procurement_cards,07-Jul-2021,Director of Law & Governance,B & Q 1276,Assistant Chief Executive (Excl SIU),67.2,HOME SUPPLY WAREHOUSE STORES,2021-22Q2_PC0077
Sandwell Metropolitan Borough Council,http://www.sandwell.gov.uk/info/200202/performance_and_spending/3233/government_procurement_cards,08-Jul-2021,Housing Revenue Account Capital,Amazon.co.uk 0S7PT6D35,#N/A,63.75,DIRECT MARKETING-OTHER DIRECT MARKETERS/NOT ELSEW.,2021-22Q2_PC0078
Sandwell Metropolitan Borough Council,http://www.sandwell.gov.uk/info/200202/performance_and_spending/3233/government_procurement_cards,08-Jul-2021,Total Housing Revenue Account,SCREWFIX DIRECT,Total Housing Revenue Account,54.99,"BUILDING MATERIALS, LUMBER STORES",2021-22Q2_PC0079
Sandwell Metropolitan Borough Council,http://www.sandwell.gov.uk/info/200202/performance_and_spending/3233/government_procurement_cards,08-Jul-2021,Total Housing Revenue Account,TOOLSTATION LTD,Total Housing Revenue Account,33.32,"BUILDING MATERIALS, LUMBER STORES",2021-22Q2_PC0080
Sandwell Metropolitan Borough Council,http://www.sandwell.gov.uk/info/200202/performance_and_spending/3233/government_procurement_cards,08-Jul-2021,Total Housing Revenue Account,AMZNMKTPLACE AMAZON.CO,Total Housing Revenue Account,23.75,MISCELLANEOUS AND SPECIALTY RETAIL STORES,2021-22Q2_PC0081
Sandwell Metropolitan Borough Council,http://www.sandwell.gov.uk/info/200202/performance_and_spending/3233/government_procurement_cards,08-Jul-2021,Total Housing Revenue Account,Amazon.co.uk BM3LD1K65,Total Housing Revenue Account,17.66,DIRECT MARKETING-OTHER DIRECT MARKETERS/NOT ELSEW.,2021-22Q2_PC0082
Sandwell Metropolitan Borough Council,http://www.sandwell.gov.uk/info/200202/performance_and_spending/3233/government_procurement_cards,08-Jul-2021,Total Housing Revenue Account,Amazon.co.uk KK0EU4QK5,Total Housing Revenue Account,11.87,DIRECT MARKETING-OTHER DIRECT MARKETERS/NOT ELSEW.,2021-22Q2_PC0083
Sandwell Metropolitan Borough Council,http://www.sandwell.gov.uk/info/200202/performance_and_spending/3233/government_procurement_cards,08-Jul-2021,Total Housing Revenue Account,SLINGSBY,Total Housing Revenue Account,203.98,"COMPUTERS, COMPUTER PERIPHERAL EQUIPMENT, SOFTWARE",2021-22Q2_PC0084
Sandwell Metropolitan Borough Council,http://www.sandwell.gov.uk/info/200202/performance_and_spending/3233/government_procurement_cards,08-Jul-2021,Total Housing Revenue Account,Amazon.co.uk C11SM06F5,Total Housing Revenue Account,10.83,DIRECT MARKETING-OTHER DIRECT MARKETERS/NOT ELSEW.,2021-22Q2_PC0085
Sandwell Metropolitan Borough Council,http://www.sandwell.gov.uk/info/200202/performance_and_spending/3233/government_procurement_cards,08-Jul-2021,Total Public Health,FACEBK J8WS653PK2,Public Health,93.57,ADVERTISING SERVICES,2021-22Q2_PC0086
Sandwell Metropolitan Borough Council,http://www.sandwell.gov.uk/info/200202/performance_and_spending/3233/government_procurement_cards,08-Jul-2021,Housing & Assets Total,AMZNMKTPLACE AMAZON.CO,Neighbourhoods,7.99,MISCELLANEOUS AND SPECIALTY RETAIL STORES,2021-22Q2_PC0087
Sandwell Metropolitan Borough Council,http://www.sandwell.gov.uk/info/200202/performance_and_spending/3233/government_procurement_cards,08-Jul-2021,Housing & Assets Total,Amazon Prime AB3IZ4LP5,Neighbourhoods,7.99,DIRECT MARKETING-CONTINUITY/SUBSCRIPTION MERCHANTS,2021-22Q2_PC0088
Sandwell Metropolitan Borough Council,http://www.sandwell.gov.uk/info/200202/performance_and_spending/3233/government_procurement_cards,08-Jul-2021,Total Borough Economy,WWW.THEPHONE.COOP,Neighbourhoods,211.12,TELECOMMUNICATION EQUIPMENT INCL TELEPHONE SALES,2021-22Q2_PC0089
Sandwell Metropolitan Borough Council,http://www.sandwell.gov.uk/info/200202/performance_and_spending/3233/government_procurement_cards,08-Jul-2021,Total Borough Economy,AMZNMKTPLACE AMAZON.CO,Neighbourhoods,61.98,MISCELLANEOUS AND SPECIALTY RETAIL STORES,2021-22Q2_PC0090
Sandwell Metropolitan Borough Council,http://www.sandwell.gov.uk/info/200202/performance_and_spending/3233/government_procurement_cards,08-Jul-2021,Total Borough Economy,THE HYGIENE COMPANY,Neighbourhoods,148.8,"CLEANING AND MAINTENANCE, JANITORIAL SERVICES",2021-22Q2_PC0091
Sandwell Metropolitan Borough Council,http://www.sandwell.gov.uk/info/200202/performance_and_spending/3233/government_procurement_cards,08-Jul-2021,Director of Law & Governance,AMZNMKTPLACE AMAZON.CO,Assistant Chief Executive (Excl SIU),63.2,MISCELLANEOUS AND SPECIALTY RETAIL STORES,2021-22Q2_PC0092
Sandwell Metropolitan Borough Council,http://www.sandwell.gov.uk/info/200202/performance_and_spending/3233/government_procurement_cards,08-Jul-2021,Total Borough Economy,Amazon.co.uk JF0HO0TL5,Total Adult Social Care,49.01,DIRECT MARKETING-OTHER DIRECT MARKETERS/NOT ELSEW.,2021-22Q2_PC0093
Sandwell Metropolitan Borough Council,http://www.sandwell.gov.uk/info/200202/performance_and_spending/3233/government_procurement_cards,08-Jul-2021,Regeneration & Growth,AMZNMKTPLACE AMAZON.CO,Regeneration And The Economy,14.87,MISCELLANEOUS AND SPECIALTY RETAIL STORES,2021-22Q2_PC0094
Sandwell Metropolitan Borough Council,http://www.sandwell.gov.uk/info/200202/performance_and_spending/3233/government_procurement_cards,08-Jul-2021,Total ASCHWB,Amazon.co.uk VU0ZJ0WU5,Total Adult Social Care,53.6,DIRECT MARKETING-OTHER DIRECT MARKETERS/NOT ELSEW.,2021-22Q2_PC0095
Sandwell Metropolitan Borough Council,http://www.sandwell.gov.uk/info/200202/performance_and_spending/3233/government_procurement_cards,08-Jul-2021,Total ASCHWB,AMZNMktplace,Total Adult Social Care,54.57,MISCELLANEOUS AND SPECIALTY RETAIL STORES,2021-22Q2_PC0096
Sandwell Metropolitan Borough Council,http://www.sandwell.gov.uk/info/200202/performance_and_spending/3233/government_procurement_cards,08-Jul-2021,Childrens Services,Waterplus Select LTD,Childrens Services,37.69,"UTLTS-ELCTRC, GAS, HEATING OIL, SANITARY, WATER",2021-22Q2_PC0097
Sandwell Metropolitan Borough Council,http://www.sandwell.gov.uk/info/200202/performance_and_spending/3233/government_procurement_cards,08-Jul-2021,Childrens Services,AMZNMKTPLACE AMAZON.CO,Childrens Services,20.97,MISCELLANEOUS AND SPECIALTY RETAIL STORES,2021-22Q2_PC0098
Sandwell Metropolitan Borough Council,http://www.sandwell.gov.uk/info/200202/performance_and_spending/3233/government_procurement_cards,08-Jul-2021,Director of Law & Governance,OFFICE DEPOT UK,Dead SeRCOP,16.7,STATIONERY/OFFICE SUPPLIES/PRINTING & WRITING PAP.,2021-22Q2_PC0099
Sandwell Metropolitan Borough Council,http://www.sandwell.gov.uk/info/200202/performance_and_spending/3233/government_procurement_cards,08-Jul-2021,Director of Law & Governance,Amazon.co.uk K66JW01X5,Assistant Chief Executive (Excl SIU),64.98,DIRECT MARKETING-OTHER DIRECT MARKETERS/NOT ELSEW.,2021-22Q2_PC0100
Sandwell Metropolitan Borough Council,http://www.sandwell.gov.uk/info/200202/performance_and_spending/3233/government_procurement_cards,08-Jul-2021,Director of Law & Governance,IKEA LTD 142 BIRMINGHA,Assistant Chief Executive (Excl SIU),152.5,"EQUIP, FURNITURE, HOME FURNSHNGS STRS (EXCPT APPL)",2021-22Q2_PC0101
Sandwell Metropolitan Borough Council,http://www.sandwell.gov.uk/info/200202/performance_and_spending/3233/government_procurement_cards,09-Jul-2021,Total Housing Revenue Account,Flextronics,Total Housing Revenue Account,593.34,COMPUTER MAIN./REPAIR/SERVICES NOT ELSEWHERE CLASS,2021-22Q2_PC0102
Sandwell Metropolitan Borough Council,http://www.sandwell.gov.uk/info/200202/performance_and_spending/3233/government_procurement_cards,09-Jul-2021,Total Public Health,SAINSBURYS.CO.UK,Public Health,65.75,"GROCERY STORES, SUPERMARKETS",2021-22Q2_PC0103
Sandwell Metropolitan Borough Council,http://www.sandwell.gov.uk/info/200202/performance_and_spending/3233/government_procurement_cards,09-Jul-2021,FINANCE (Inc SIU),Amazon Prime WM3KE3BL5,Assistant Chief Executive (Excl SIU),7.99,DIRECT MARKETING-CONTINUITY/SUBSCRIPTION MERCHANTS,2021-22Q2_PC0104
Sandwell Metropolitan Borough Council,http://www.sandwell.gov.uk/info/200202/performance_and_spending/3233/government_procurement_cards,09-Jul-2021,Total Borough Economy,AMZNMktplace,Neighbourhoods,44.99,MISCELLANEOUS AND SPECIALTY RETAIL STORES,2021-22Q2_PC0105
Sandwell Metropolitan Borough Council,http://www.sandwell.gov.uk/info/200202/performance_and_spending/3233/government_procurement_cards,09-Jul-2021,Total Borough Economy,OFFICE DEPOT UK,Neighbourhoods,80.96,STATIONERY/OFFICE SUPPLIES/PRINTING & WRITING PAP.,2021-22Q2_PC0106
Sandwell Metropolitan Borough Council,http://www.sandwell.gov.uk/info/200202/performance_and_spending/3233/government_procurement_cards,09-Jul-2021,Total Borough Economy,TIMPSON LTD,Neighbourhoods,85,MISCELLANEOUS AND SPECIALTY RETAIL STORES,2021-22Q2_PC0107
Sandwell Metropolitan Borough Council,http://www.sandwell.gov.uk/info/200202/performance_and_spending/3233/government_procurement_cards,09-Jul-2021,Total ASCHWB,Amazon.co.uk 9I7689QL5,Total Adult Social Care,164.97,DIRECT MARKETING-OTHER DIRECT MARKETERS/NOT ELSEW.,2021-22Q2_PC0108
Sandwell Metropolitan Borough Council,http://www.sandwell.gov.uk/info/200202/performance_and_spending/3233/government_procurement_cards,09-Jul-2021,Childrens Services,B & Q 1112,Childrens Services,130,HOME SUPPLY WAREHOUSE STORES,2021-22Q2_PC0109
Sandwell Metropolitan Borough Council,http://www.sandwell.gov.uk/info/200202/performance_and_spending/3233/government_procurement_cards,09-Jul-2021,Childrens Services,EUROFFICE.CO.UK,Childrens Services,41.2,"OFFICE, SCHOOL SUPPLY, AND STATIONERY STORES",2021-22Q2_PC0110
Sandwell Metropolitan Borough Council,http://www.sandwell.gov.uk/info/200202/performance_and_spending/3233/government_procurement_cards,09-Jul-2021,Childrens Services,VIMEO.COM,Childrens Services,226.8,DIRECT MARKETING-CONTINUITY/SUBSCRIPTION MERCHANTS,2021-22Q2_PC0111
Sandwell Metropolitan Borough Council,http://www.sandwell.gov.uk/info/200202/performance_and_spending/3233/government_procurement_cards,12-Jul-2021,Total Housing Revenue Account,AMZNMKTPLACE AMAZON.CO,Total Housing Revenue Account,29.97,MISCELLANEOUS AND SPECIALTY RETAIL STORES,2021-22Q2_PC0112
Sandwell Metropolitan Borough Council,http://www.sandwell.gov.uk/info/200202/performance_and_spending/3233/government_procurement_cards,12-Jul-2021,Total Housing Revenue Account,WWW.KANE.CO.UK,Total Housing Revenue Account,391.68,HARDWARE EQUIPMENT AND SUPPLIES,2021-22Q2_PC0113
Sandwell Metropolitan Borough Council,http://www.sandwell.gov.uk/info/200202/performance_and_spending/3233/government_procurement_cards,12-Jul-2021,Total Housing Revenue Account,OFFICE DEPOT UK,Total Housing Revenue Account,105.31,STATIONERY/OFFICE SUPPLIES/PRINTING & WRITING PAP.,2021-22Q2_PC0114
Sandwell Metropolitan Borough Council,http://www.sandwell.gov.uk/info/200202/performance_and_spending/3233/government_procurement_cards,12-Jul-2021,Total Housing Revenue Account,WWW.PCWB.COM,Total Housing Revenue Account,20.52,COMPUTER SOFTWARE STORES,2021-22Q2_PC0115
Sandwell Metropolitan Borough Council,http://www.sandwell.gov.uk/info/200202/performance_and_spending/3233/government_procurement_cards,12-Jul-2021,Total Business Strategy & Change,AMZNMktplace,Assistant Chief Executive (Excl SIU),22.98,MISCELLANEOUS AND SPECIALTY RETAIL STORES,2021-22Q2_PC0116
Sandwell Metropolitan Borough Council,http://www.sandwell.gov.uk/info/200202/performance_and_spending/3233/government_procurement_cards,12-Jul-2021,Total Borough Economy,AMZNMktplace,Neighbourhoods,187.92,MISCELLANEOUS AND SPECIALTY RETAIL STORES,2021-22Q2_PC0117
Sandwell Metropolitan Borough Council,http://www.sandwell.gov.uk/info/200202/performance_and_spending/3233/government_procurement_cards,12-Jul-2021,Total Borough Economy,Amazon Prime 4T1ZE3RN5,Neighbourhoods,7.99,DIRECT MARKETING-CONTINUITY/SUBSCRIPTION MERCHANTS,2021-22Q2_PC0118
Sandwell Metropolitan Borough Council,http://www.sandwell.gov.uk/info/200202/performance_and_spending/3233/government_procurement_cards,12-Jul-2021,Total Borough Economy,TIMPSON LTD,Neighbourhoods,14,MISCELLANEOUS AND SPECIALTY RETAIL STORES,2021-22Q2_PC0119
Sandwell Metropolitan Borough Council,http://www.sandwell.gov.uk/info/200202/performance_and_spending/3233/government_procurement_cards,12-Jul-2021,Total Borough Economy,AMZNMktplace,Neighbourhoods,23.98,MISCELLANEOUS AND SPECIALTY RETAIL STORES,2021-22Q2_PC0120
Sandwell Metropolitan Borough Council,http://www.sandwell.gov.uk/info/200202/performance_and_spending/3233/government_procurement_cards,12-Jul-2021,Total Borough Economy,AMZNMktplace,Neighbourhoods,9.99,MISCELLANEOUS AND SPECIALTY RETAIL STORES,2021-22Q2_PC0121
Sandwell Metropolitan Borough Council,http://www.sandwell.gov.uk/info/200202/performance_and_spending/3233/government_procurement_cards,12-Jul-2021,FINANCE (Inc SIU),OFFICE DEPOT UK,Assistant Chief Executive (Excl SIU),32.64,STATIONERY/OFFICE SUPPLIES/PRINTING & WRITING PAP.,2021-22Q2_PC0122
Sandwell Metropolitan Borough Council,http://www.sandwell.gov.uk/info/200202/performance_and_spending/3233/government_procurement_cards,12-Jul-2021,Total Borough Economy,AMZNMktplace,Neighbourhoods,30.94,MISCELLANEOUS AND SPECIALTY RETAIL STORES,2021-22Q2_PC0123
Sandwell Metropolitan Borough Council,http://www.sandwell.gov.uk/info/200202/performance_and_spending/3233/government_procurement_cards,12-Jul-2021,Total Borough Economy,WWW.THEPHONE.COOP,Neighbourhoods,69.66,TELECOMMUNICATION EQUIPMENT INCL TELEPHONE SALES,2021-22Q2_PC0124
Sandwell Metropolitan Borough Council,http://www.sandwell.gov.uk/info/200202/performance_and_spending/3233/government_procurement_cards,12-Jul-2021,Total Borough Economy,SCREWFIX DIRECT,Neighbourhoods,12.48,"BUILDING MATERIALS, LUMBER STORES",2021-22Q2_PC0125
Sandwell Metropolitan Borough Council,http://www.sandwell.gov.uk/info/200202/performance_and_spending/3233/government_procurement_cards,12-Jul-2021,Total Borough Economy,WWW.BUNZLCLEANINGSUPPL,Neighbourhoods,60.16,"CLEANING AND MAINTENANCE, JANITORIAL SERVICES",2021-22Q2_PC0126
Sandwell Metropolitan Borough Council,http://www.sandwell.gov.uk/info/200202/performance_and_spending/3233/government_procurement_cards,12-Jul-2021,Total Borough Economy,WWW.BUNZLCLEANINGSUPPL,Neighbourhoods,80.78,"CLEANING AND MAINTENANCE, JANITORIAL SERVICES",2021-22Q2_PC0127
Sandwell Metropolitan Borough Council,http://www.sandwell.gov.uk/info/200202/performance_and_spending/3233/government_procurement_cards,12-Jul-2021,Total Borough Economy,AMZNMktplace,Neighbourhoods,17.94,MISCELLANEOUS AND SPECIALTY RETAIL STORES,2021-22Q2_PC0128
Sandwell Metropolitan Borough Council,http://www.sandwell.gov.uk/info/200202/performance_and_spending/3233/government_procurement_cards,12-Jul-2021,Total Borough Economy,AMZ Junipers - UK,Neighbourhoods,-13.26,MISCELLANEOUS AND SPECIALTY RETAIL STORES,2021-22Q2_PC0129
Sandwell Metropolitan Borough Council,http://www.sandwell.gov.uk/info/200202/performance_and_spending/3233/government_procurement_cards,12-Jul-2021,Total Borough Economy,AMZNMKTPLACE AMAZON.CO,Regeneration And The Economy,25.88,MISCELLANEOUS AND SPECIALTY RETAIL STORES,2021-22Q2_PC0130
Sandwell Metropolitan Borough Council,http://www.sandwell.gov.uk/info/200202/performance_and_spending/3233/government_procurement_cards,12-Jul-2021,Total ASCHWB,OFFICE DEPOT UK,Total Adult Social Care,38.21,STATIONERY/OFFICE SUPPLIES/PRINTING & WRITING PAP.,2021-22Q2_PC0131
Sandwell Metropolitan Borough Council,http://www.sandwell.gov.uk/info/200202/performance_and_spending/3233/government_procurement_cards,12-Jul-2021,Total ASCHWB,ARGOS LTD,Total Adult Social Care,231.95,DISCOUNT STORES,2021-22Q2_PC0132
Sandwell Metropolitan Borough Council,http://www.sandwell.gov.uk/info/200202/performance_and_spending/3233/government_procurement_cards,12-Jul-2021,Total ASCHWB,ONE GARDEN,Total Adult Social Care,58.49,LAWN AND GARDEN SUPPLY STORES,2021-22Q2_PC0133
Sandwell Metropolitan Borough Council,http://www.sandwell.gov.uk/info/200202/performance_and_spending/3233/government_procurement_cards,12-Jul-2021,Total ASCHWB,AMZNMktplace,Total Adult Social Care,22.48,MISCELLANEOUS AND SPECIALTY RETAIL STORES,2021-22Q2_PC0134
Sandwell Metropolitan Borough Council,http://www.sandwell.gov.uk/info/200202/performance_and_spending/3233/government_procurement_cards,12-Jul-2021,Childrens Services,SNOWDONIA FIRE PROTECT,Childrens Services,382.8,"DETECTVE/PROTECTVE AGNCY,SECURITY SRVS, ARMOR CARS",2021-22Q2_PC0135
Sandwell Metropolitan Borough Council,http://www.sandwell.gov.uk/info/200202/performance_and_spending/3233/government_procurement_cards,12-Jul-2021,Childrens Services,SCREWFIX DIRECT,Childrens Services,20.99,"BUILDING MATERIALS, LUMBER STORES",2021-22Q2_PC0136
Sandwell Metropolitan Borough Council,http://www.sandwell.gov.uk/info/200202/performance_and_spending/3233/government_procurement_cards,12-Jul-2021,Childrens Services,HTTPS://WWW.GDJONES.CO,Childrens Services,356.58,"FUEL DEALERS-COAL, FUEL OIL, LIQ PETROLEUM, WOOD",2021-22Q2_PC0137
Sandwell Metropolitan Borough Council,http://www.sandwell.gov.uk/info/200202/performance_and_spending/3233/government_procurement_cards,12-Jul-2021,Childrens Services,THE INSTITUTE FOR OUTD,Childrens Services,425,"ORGANIZATIONS, CHARITABLE AND SOCIAL SERVICES",2021-22Q2_PC0138
Sandwell Metropolitan Borough Council,http://www.sandwell.gov.uk/info/200202/performance_and_spending/3233/government_procurement_cards,12-Jul-2021,Childrens Services,OFFICE DEPOT UK,Childrens Services,40.82,STATIONERY/OFFICE SUPPLIES/PRINTING & WRITING PAP.,2021-22Q2_PC0139
Sandwell Metropolitan Borough Council,http://www.sandwell.gov.uk/info/200202/performance_and_spending/3233/government_procurement_cards,12-Jul-2021,Childrens Services,AMZNMktplace,Childrens Services,52.67,MISCELLANEOUS AND SPECIALTY RETAIL STORES,2021-22Q2_PC0140
Sandwell Metropolitan Borough Council,http://www.sandwell.gov.uk/info/200202/performance_and_spending/3233/government_procurement_cards,12-Jul-2021,Individual School Budgets With Inclusion,Amazon Prime NS3KG4TH5,Individual School Budgets With Inclusion,7.99,DIRECT MARKETING-CONTINUITY/SUBSCRIPTION MERCHANTS,2021-22Q2_PC0141
Sandwell Metropolitan Borough Council,http://www.sandwell.gov.uk/info/200202/performance_and_spending/3233/government_procurement_cards,13-Jul-2021,Total Housing Revenue Account,TRAVIS PERKINS,Total Housing Revenue Account,142.29,"BUILDING MATERIALS, LUMBER STORES",2021-22Q2_PC0142
Sandwell Metropolitan Borough Council,http://www.sandwell.gov.uk/info/200202/performance_and_spending/3233/government_procurement_cards,13-Jul-2021,Total Housing Revenue Account,Amazon.co.uk AY9PA4CA5,Total Housing Revenue Account,124.98,DIRECT MARKETING-OTHER DIRECT MARKETERS/NOT ELSEW.,2021-22Q2_PC0143
Sandwell Metropolitan Borough Council,http://www.sandwell.gov.uk/info/200202/performance_and_spending/3233/government_procurement_cards,13-Jul-2021,Total Housing Revenue Account,Amazon.co.uk FT74E6RN5,Total Housing Revenue Account,124.98,DIRECT MARKETING-OTHER DIRECT MARKETERS/NOT ELSEW.,2021-22Q2_PC0144
Sandwell Metropolitan Borough Council,http://www.sandwell.gov.uk/info/200202/performance_and_spending/3233/government_procurement_cards,13-Jul-2021,Total Public Health,Adobe.com,Public Health,49.94,DIGITAL GOODS SOFTWARE APPLICATIONS,2021-22Q2_PC0145
Sandwell Metropolitan Borough Council,http://www.sandwell.gov.uk/info/200202/performance_and_spending/3233/government_procurement_cards,13-Jul-2021,Total Borough Economy,PRINTED.COM,Neighbourhoods,-18.94,MISCELLANEOUS PUBLISHING AND PRINTING,2021-22Q2_PC0146
Sandwell Metropolitan Borough Council,http://www.sandwell.gov.uk/info/200202/performance_and_spending/3233/government_procurement_cards,13-Jul-2021,Total Borough Economy,Vistaprint,Neighbourhoods,120.37,BUSINESS SERVICES-NOT ELSEWHERE CLASSIFIED,2021-22Q2_PC0147
Sandwell Metropolitan Borough Council,http://www.sandwell.gov.uk/info/200202/performance_and_spending/3233/government_procurement_cards,13-Jul-2021,Total Business Strategy & Change,CIPD INTEGRA,Assistant Chief Executive (Excl SIU),98,PROFESSIONAL SERVICES-NOT ELSEWHERE CLASSIFIED,2021-22Q2_PC0148
Sandwell Metropolitan Borough Council,http://www.sandwell.gov.uk/info/200202/performance_and_spending/3233/government_procurement_cards,13-Jul-2021,Regeneration & Growth,AMZNMKTPLACE AMAZON.CO,Regeneration And The Economy,110.97,MISCELLANEOUS AND SPECIALTY RETAIL STORES,2021-22Q2_PC0149
Sandwell Metropolitan Borough Council,http://www.sandwell.gov.uk/info/200202/performance_and_spending/3233/government_procurement_cards,13-Jul-2021,Total ASCHWB,Amazon.co.uk ET6655UX5,Total Adult Social Care,25.19,DIRECT MARKETING-OTHER DIRECT MARKETERS/NOT ELSEW.,2021-22Q2_PC0150
Sandwell Metropolitan Borough Council,http://www.sandwell.gov.uk/info/200202/performance_and_spending/3233/government_procurement_cards,13-Jul-2021,Total ASCHWB,OFFICE DEPOT UK,Total Adult Social Care,0.5,STATIONERY/OFFICE SUPPLIES/PRINTING & WRITING PAP.,2021-22Q2_PC0151
Sandwell Metropolitan Borough Council,http://www.sandwell.gov.uk/info/200202/performance_and_spending/3233/government_procurement_cards,13-Jul-2021,Childrens Services,CURRYS ONLINE,Childrens Services,223,ELECTRONIC SALES,2021-22Q2_PC0152
Sandwell Metropolitan Borough Council,http://www.sandwell.gov.uk/info/200202/performance_and_spending/3233/government_procurement_cards,13-Jul-2021,Childrens Services,ASDA GROCERIES ONLINE,Childrens Services,-14,"GROCERY STORES, SUPERMARKETS",2021-22Q2_PC0153
Sandwell Metropolitan Borough Council,http://www.sandwell.gov.uk/info/200202/performance_and_spending/3233/government_procurement_cards,13-Jul-2021,Childrens Services,ASDA GROCERIES ONLINE,Childrens Services,111.84,"GROCERY STORES, SUPERMARKETS",2021-22Q2_PC0154
Sandwell Metropolitan Borough Council,http://www.sandwell.gov.uk/info/200202/performance_and_spending/3233/government_procurement_cards,13-Jul-2021,Childrens Services,ASDA,Childrens Services,10.9,"GROCERY STORES, SUPERMARKETS",2021-22Q2_PC0155
Sandwell Metropolitan Borough Council,http://www.sandwell.gov.uk/info/200202/performance_and_spending/3233/government_procurement_cards,13-Jul-2021,Childrens Services,ASDA,Childrens Services,8.7,"GROCERY STORES, SUPERMARKETS",2021-22Q2_PC0156
Sandwell Metropolitan Borough Council,http://www.sandwell.gov.uk/info/200202/performance_and_spending/3233/government_procurement_cards,13-Jul-2021,Childrens Services,AMZNMktplace,Childrens Services,47.45,MISCELLANEOUS AND SPECIALTY RETAIL STORES,2021-22Q2_PC0157
Sandwell Metropolitan Borough Council,http://www.sandwell.gov.uk/info/200202/performance_and_spending/3233/government_procurement_cards,13-Jul-2021,Childrens Services,WESTMINSTER FORUM PROJ,Childrens Services,228,"CONSULTING, MANAGEMENT, AND PUBLIC RELATIONS SVCS",2021-22Q2_PC0158
Sandwell Metropolitan Borough Council,http://www.sandwell.gov.uk/info/200202/performance_and_spending/3233/government_procurement_cards,13-Jul-2021,Childrens Services,WWW.WEIGHTMANS.COM,Childrens Services,167.4,"ATTORNEYS, LEGAL SERVICES",2021-22Q2_PC0159
Sandwell Metropolitan Borough Council,http://www.sandwell.gov.uk/info/200202/performance_and_spending/3233/government_procurement_cards,13-Jul-2021,Childrens Services,LIDL GB NEWPORT,Childrens Services,6.54,"GROCERY STORES, SUPERMARKETS",2021-22Q2_PC0160
Sandwell Metropolitan Borough Council,http://www.sandwell.gov.uk/info/200202/performance_and_spending/3233/government_procurement_cards,13-Jul-2021,Housing & Assets Total,AMZNMktplace,Neighbourhoods,8.99,MISCELLANEOUS AND SPECIALTY RETAIL STORES,2021-22Q2_PC0161
Sandwell Metropolitan Borough Council,http://www.sandwell.gov.uk/info/200202/performance_and_spending/3233/government_procurement_cards,13-Jul-2021,Housing & Assets Total,WWW.VICARAGELODGE.COM,Neighbourhoods,500,"LODGING-HOTELS,MOTELS,RESORTS-NOT CLASSIFIED",2021-22Q2_PC0162
Sandwell Metropolitan Borough Council,http://www.sandwell.gov.uk/info/200202/performance_and_spending/3233/government_procurement_cards,13-Jul-2021,Housing & Assets Total,WWW.VICARAGELODGE.COM,Neighbourhoods,550,"LODGING-HOTELS,MOTELS,RESORTS-NOT CLASSIFIED",2021-22Q2_PC0163
Sandwell Metropolitan Borough Council,http://www.sandwell.gov.uk/info/200202/performance_and_spending/3233/government_procurement_cards,14-Jul-2021,Total Housing Revenue Account,WWW.SANDWELL.GOV.UK,Total Housing Revenue Account,11,GOVERNMENT SERVICES-NOT ELSEWHERE CLASSIFIED,2021-22Q2_PC0164
Sandwell Metropolitan Borough Council,http://www.sandwell.gov.uk/info/200202/performance_and_spending/3233/government_procurement_cards,14-Jul-2021,Total Borough Economy,AMZNMktplace,Neighbourhoods,159.56,MISCELLANEOUS AND SPECIALTY RETAIL STORES,2021-22Q2_PC0165
Sandwell Metropolitan Borough Council,http://www.sandwell.gov.uk/info/200202/performance_and_spending/3233/government_procurement_cards,14-Jul-2021,Total Borough Economy,AMZNMktplace,Neighbourhoods,59.97,MISCELLANEOUS AND SPECIALTY RETAIL STORES,2021-22Q2_PC0166
Sandwell Metropolitan Borough Council,http://www.sandwell.gov.uk/info/200202/performance_and_spending/3233/government_procurement_cards,14-Jul-2021,Total Borough Economy,Al's Bearwood Cobbler,Neighbourhoods,45,"HAT CLEANING SHOPS, SHOE REPAIR SHOPS, SHOE SHINE",2021-22Q2_PC0167
Sandwell Metropolitan Borough Council,http://www.sandwell.gov.uk/info/200202/performance_and_spending/3233/government_procurement_cards,14-Jul-2021,Total Public Health,AMZNMktplace,Public Health,31,MISCELLANEOUS AND SPECIALTY RETAIL STORES,2021-22Q2_PC0168
Sandwell Metropolitan Borough Council,http://www.sandwell.gov.uk/info/200202/performance_and_spending/3233/government_procurement_cards,14-Jul-2021,Total Public Health,Amazon.co.uk KZ9IW2IS5,Public Health,40.2,DIRECT MARKETING-OTHER DIRECT MARKETERS/NOT ELSEW.,2021-22Q2_PC0169
Sandwell Metropolitan Borough Council,http://www.sandwell.gov.uk/info/200202/performance_and_spending/3233/government_procurement_cards,14-Jul-2021,Total Public Health,AMZNMktplace,Public Health,32.98,MISCELLANEOUS AND SPECIALTY RETAIL STORES,2021-22Q2_PC0170
Sandwell Metropolitan Borough Council,http://www.sandwell.gov.uk/info/200202/performance_and_spending/3233/government_procurement_cards,14-Jul-2021,Total Business Strategy & Change,AMZNMktplace,Assistant Chief Executive (Excl SIU),25.19,MISCELLANEOUS AND SPECIALTY RETAIL STORES,2021-22Q2_PC0171
Sandwell Metropolitan Borough Council,http://www.sandwell.gov.uk/info/200202/performance_and_spending/3233/government_procurement_cards,14-Jul-2021,Regeneration & Growth,AMZNMktplace,Regeneration And The Economy,58.8,MISCELLANEOUS AND SPECIALTY RETAIL STORES,2021-22Q2_PC0172
Sandwell Metropolitan Borough Council,http://www.sandwell.gov.uk/info/200202/performance_and_spending/3233/government_procurement_cards,14-Jul-2021,Total Borough Economy,AMZNMKTPLACE AMAZON.CO,Neighbourhoods,7.99,MISCELLANEOUS AND SPECIALTY RETAIL STORES,2021-22Q2_PC0173
Sandwell Metropolitan Borough Council,http://www.sandwell.gov.uk/info/200202/performance_and_spending/3233/government_procurement_cards,14-Jul-2021,Total Borough Economy,TIMPSON LTD,Neighbourhoods,25,MISCELLANEOUS AND SPECIALTY RETAIL STORES,2021-22Q2_PC0174
Sandwell Metropolitan Borough Council,http://www.sandwell.gov.uk/info/200202/performance_and_spending/3233/government_procurement_cards,14-Jul-2021,FINANCE (Inc SIU),AMZNMktplace,Total Adult Social Care,14.71,MISCELLANEOUS AND SPECIALTY RETAIL STORES,2021-22Q2_PC0175
Sandwell Metropolitan Borough Council,http://www.sandwell.gov.uk/info/200202/performance_and_spending/3233/government_procurement_cards,14-Jul-2021,FINANCE (Inc SIU),OFFICE DEPOT UK,Total Adult Social Care,18.24,STATIONERY/OFFICE SUPPLIES/PRINTING & WRITING PAP.,2021-22Q2_PC0176
Sandwell Metropolitan Borough Council,http://www.sandwell.gov.uk/info/200202/performance_and_spending/3233/government_procurement_cards,14-Jul-2021,Total ASCHWB,AMZNMKTPLACE AMAZON.CO,Total Adult Social Care,11.48,MISCELLANEOUS AND SPECIALTY RETAIL STORES,2021-22Q2_PC0177
Sandwell Metropolitan Borough Council,http://www.sandwell.gov.uk/info/200202/performance_and_spending/3233/government_procurement_cards,14-Jul-2021,Total ASCHWB,Amazon.co.uk GZ67H6DW5,Total Adult Social Care,42.99,DIRECT MARKETING-OTHER DIRECT MARKETERS/NOT ELSEW.,2021-22Q2_PC0178
Sandwell Metropolitan Borough Council,http://www.sandwell.gov.uk/info/200202/performance_and_spending/3233/government_procurement_cards,14-Jul-2021,Total ASCHWB,EUROFFICE.CO.UK,Total Adult Social Care,47.08,"OFFICE, SCHOOL SUPPLY, AND STATIONERY STORES",2021-22Q2_PC0179
Sandwell Metropolitan Borough Council,http://www.sandwell.gov.uk/info/200202/performance_and_spending/3233/government_procurement_cards,14-Jul-2021,Total ASCHWB,B & Q 1276,Total Adult Social Care,188.26,HOME SUPPLY WAREHOUSE STORES,2021-22Q2_PC0180
Sandwell Metropolitan Borough Council,http://www.sandwell.gov.uk/info/200202/performance_and_spending/3233/government_procurement_cards,14-Jul-2021,Total ASCHWB,B & Q 1276,Total Adult Social Care,34,HOME SUPPLY WAREHOUSE STORES,2021-22Q2_PC0181
Sandwell Metropolitan Borough Council,http://www.sandwell.gov.uk/info/200202/performance_and_spending/3233/government_procurement_cards,14-Jul-2021,Total ASCHWB,VIKING UK,Total Adult Social Care,318.49,STATIONERY/OFFICE SUPPLIES/PRINTING & WRITING PAP.,2021-22Q2_PC0182
Sandwell Metropolitan Borough Council,http://www.sandwell.gov.uk/info/200202/performance_and_spending/3233/government_procurement_cards,14-Jul-2021,Childrens Services,ASDA,Childrens Services,14.13,"GROCERY STORES, SUPERMARKETS",2021-22Q2_PC0183
Sandwell Metropolitan Borough Council,http://www.sandwell.gov.uk/info/200202/performance_and_spending/3233/government_procurement_cards,14-Jul-2021,Childrens Services,GREGGS,Childrens Services,25.55,"EATING PLACES, RESTAURANTS",2021-22Q2_PC0184
Sandwell Metropolitan Borough Council,http://www.sandwell.gov.uk/info/200202/performance_and_spending/3233/government_procurement_cards,14-Jul-2021,Corporate Management,OFFICE DEPOT UK,Corporate Management,9.12,STATIONERY/OFFICE SUPPLIES/PRINTING & WRITING PAP.,2021-22Q2_PC0185
Sandwell Metropolitan Borough Council,http://www.sandwell.gov.uk/info/200202/performance_and_spending/3233/government_procurement_cards,15-Jul-2021,Total Housing Revenue Account,OFFICE DEPOT UK,Total Housing Revenue Account,90.29,STATIONERY/OFFICE SUPPLIES/PRINTING & WRITING PAP.,2021-22Q2_PC0186
Sandwell Metropolitan Borough Council,http://www.sandwell.gov.uk/info/200202/performance_and_spending/3233/government_procurement_cards,15-Jul-2021,Total Housing Revenue Account,AMZNMktplace,Total Housing Revenue Account,144.99,MISCELLANEOUS AND SPECIALTY RETAIL STORES,2021-22Q2_PC0187
Sandwell Metropolitan Borough Council,http://www.sandwell.gov.uk/info/200202/performance_and_spending/3233/government_procurement_cards,15-Jul-2021,Total Public Health,SAINSBURYS.CO.UK,Public Health,18.5,"GROCERY STORES, SUPERMARKETS",2021-22Q2_PC0188
Sandwell Metropolitan Borough Council,http://www.sandwell.gov.uk/info/200202/performance_and_spending/3233/government_procurement_cards,15-Jul-2021,Total Borough Economy,AMZNMKTPLACE AMAZON.CO,Neighbourhoods,22.99,MISCELLANEOUS AND SPECIALTY RETAIL STORES,2021-22Q2_PC0189
Sandwell Metropolitan Borough Council,http://www.sandwell.gov.uk/info/200202/performance_and_spending/3233/government_procurement_cards,15-Jul-2021,Total Borough Economy,AMZNMktplace,Neighbourhoods,33.68,MISCELLANEOUS AND SPECIALTY RETAIL STORES,2021-22Q2_PC0190
Sandwell Metropolitan Borough Council,http://www.sandwell.gov.uk/info/200202/performance_and_spending/3233/government_procurement_cards,15-Jul-2021,Total Borough Economy,SQ  SIP ?N? SWIG,Neighbourhoods,205,"BAR,LOUNGE,DISCO,NIGHTCLUB,TAVERN-ALCOHOLIC DRINKS",2021-22Q2_PC0191
Sandwell Metropolitan Borough Council,http://www.sandwell.gov.uk/info/200202/performance_and_spending/3233/government_procurement_cards,15-Jul-2021,Housing & Assets Total,AMZN Mktp UK W77599IZ5,Neighbourhoods,105.59,BOOK STORES,2021-22Q2_PC0192
Sandwell Metropolitan Borough Council,http://www.sandwell.gov.uk/info/200202/performance_and_spending/3233/government_procurement_cards,15-Jul-2021,Housing & Assets Total,Amazon.co.uk AD9G97LQ5,Neighbourhoods,10.78,DIRECT MARKETING-OTHER DIRECT MARKETERS/NOT ELSEW.,2021-22Q2_PC0193
Sandwell Metropolitan Borough Council,http://www.sandwell.gov.uk/info/200202/performance_and_spending/3233/government_procurement_cards,15-Jul-2021,Total Business Strategy & Change,OFFICE DEPOT UK,Neighbourhoods,46.38,STATIONERY/OFFICE SUPPLIES/PRINTING & WRITING PAP.,2021-22Q2_PC0194
Sandwell Metropolitan Borough Council,http://www.sandwell.gov.uk/info/200202/performance_and_spending/3233/government_procurement_cards,15-Jul-2021,FINANCE (Inc SIU),AMZNMktplace,Assistant Chief Executive (Excl SIU),69.99,MISCELLANEOUS AND SPECIALTY RETAIL STORES,2021-22Q2_PC0195
Sandwell Metropolitan Borough Council,http://www.sandwell.gov.uk/info/200202/performance_and_spending/3233/government_procurement_cards,15-Jul-2021,Total Borough Economy,AMZNMKTPLACE AMAZON.CO,Neighbourhoods,20.97,MISCELLANEOUS AND SPECIALTY RETAIL STORES,2021-22Q2_PC0196
Sandwell Metropolitan Borough Council,http://www.sandwell.gov.uk/info/200202/performance_and_spending/3233/government_procurement_cards,15-Jul-2021,Total Borough Economy,Amazon.co.uk CM87Y4G15,Neighbourhoods,124.4,DIRECT MARKETING-OTHER DIRECT MARKETERS/NOT ELSEW.,2021-22Q2_PC0197
Sandwell Metropolitan Borough Council,http://www.sandwell.gov.uk/info/200202/performance_and_spending/3233/government_procurement_cards,15-Jul-2021,Total ASCHWB,Amazon.co.uk 9E6W98AO5,Total Adult Social Care,65.36,DIRECT MARKETING-OTHER DIRECT MARKETERS/NOT ELSEW.,2021-22Q2_PC0198
Sandwell Metropolitan Borough Council,http://www.sandwell.gov.uk/info/200202/performance_and_spending/3233/government_procurement_cards,15-Jul-2021,Childrens Services,CARRIER BAG SHOP,Childrens Services,40.44,BUSINESS SERVICES-NOT ELSEWHERE CLASSIFIED,2021-22Q2_PC0199
Sandwell Metropolitan Borough Council,http://www.sandwell.gov.uk/info/200202/performance_and_spending/3233/government_procurement_cards,15-Jul-2021,Childrens Services,AMZNMktplace,Childrens Services,4.99,MISCELLANEOUS AND SPECIALTY RETAIL STORES,2021-22Q2_PC0200
Sandwell Metropolitan Borough Council,http://www.sandwell.gov.uk/info/200202/performance_and_spending/3233/government_procurement_cards,15-Jul-2021,Childrens Services,AMZNMktplace,Childrens Services,31.49,MISCELLANEOUS AND SPECIALTY RETAIL STORES,2021-22Q2_PC0201
Sandwell Metropolitan Borough Council,http://www.sandwell.gov.uk/info/200202/performance_and_spending/3233/government_procurement_cards,15-Jul-2021,Childrens Services,AMZNMktplace,Childrens Services,58.6,MISCELLANEOUS AND SPECIALTY RETAIL STORES,2021-22Q2_PC0202
Sandwell Metropolitan Borough Council,http://www.sandwell.gov.uk/info/200202/performance_and_spending/3233/government_procurement_cards,15-Jul-2021,Childrens Services,AMZNMktplace,Childrens Services,6.53,MISCELLANEOUS AND SPECIALTY RETAIL STORES,2021-22Q2_PC0203
Sandwell Metropolitan Borough Council,http://www.sandwell.gov.uk/info/200202/performance_and_spending/3233/government_procurement_cards,15-Jul-2021,Childrens Services,AMZNMktplace,Childrens Services,11.88,MISCELLANEOUS AND SPECIALTY RETAIL STORES,2021-22Q2_PC0204
Sandwell Metropolitan Borough Council,http://www.sandwell.gov.uk/info/200202/performance_and_spending/3233/government_procurement_cards,15-Jul-2021,Childrens Services,AMZNMktplace,Childrens Services,19.99,MISCELLANEOUS AND SPECIALTY RETAIL STORES,2021-22Q2_PC0205
Sandwell Metropolitan Borough Council,http://www.sandwell.gov.uk/info/200202/performance_and_spending/3233/government_procurement_cards,15-Jul-2021,Childrens Services,AMZNMKTPLACE AMAZON.CO,Childrens Services,6.99,MISCELLANEOUS AND SPECIALTY RETAIL STORES,2021-22Q2_PC0206
Sandwell Metropolitan Borough Council,http://www.sandwell.gov.uk/info/200202/performance_and_spending/3233/government_procurement_cards,15-Jul-2021,Childrens Services,VODAFONE LTD,Childrens Services,24.57,TELECOM INCL PREPAID/RECURRING PHONE SVCS,2021-22Q2_PC0207
Sandwell Metropolitan Borough Council,http://www.sandwell.gov.uk/info/200202/performance_and_spending/3233/government_procurement_cards,15-Jul-2021,Childrens Services,AMZNMktplace,Childrens Services,27.98,MISCELLANEOUS AND SPECIALTY RETAIL STORES,2021-22Q2_PC0208
Sandwell Metropolitan Borough Council,http://www.sandwell.gov.uk/info/200202/performance_and_spending/3233/government_procurement_cards,15-Jul-2021,Housing & Assets Total,TRAVELODGE,Neighbourhoods,367.12,TRAVELODGE,2021-22Q2_PC0209
Sandwell Metropolitan Borough Council,http://www.sandwell.gov.uk/info/200202/performance_and_spending/3233/government_procurement_cards,15-Jul-2021,Director of Law & Governance,OFFICE DEPOT UK,Assistant Chief Executive (Excl SIU),64.33,STATIONERY/OFFICE SUPPLIES/PRINTING & WRITING PAP.,2021-22Q2_PC0210
Sandwell Metropolitan Borough Council,http://www.sandwell.gov.uk/info/200202/performance_and_spending/3233/government_procurement_cards,15-Jul-2021,Director of Law & Governance,Amazon Prime IH1B18WQ5,Assistant Chief Executive (Excl SIU),7.99,DIRECT MARKETING-CONTINUITY/SUBSCRIPTION MERCHANTS,2021-22Q2_PC0211
Sandwell Metropolitan Borough Council,http://www.sandwell.gov.uk/info/200202/performance_and_spending/3233/government_procurement_cards,15-Jul-2021,Corporate Management,HMD Global Oy,Corporate Management,149.99,TELECOMMUNICATION EQUIPMENT INCL TELEPHONE SALES,2021-22Q2_PC0212
Sandwell Metropolitan Borough Council,http://www.sandwell.gov.uk/info/200202/performance_and_spending/3233/government_procurement_cards,15-Jul-2021,Corporate Management,AMZNMktplace,Corporate Management,63.25,MISCELLANEOUS AND SPECIALTY RETAIL STORES,2021-22Q2_PC0213
Sandwell Metropolitan Borough Council,http://www.sandwell.gov.uk/info/200202/performance_and_spending/3233/government_procurement_cards,16-Jul-2021,Total Housing Revenue Account,AMZ Amazon.co.uk,Total Housing Revenue Account,-124.98,DIRECT MARKETING-OTHER DIRECT MARKETERS/NOT ELSEW.,2021-22Q2_PC0214
Sandwell Metropolitan Borough Council,http://www.sandwell.gov.uk/info/200202/performance_and_spending/3233/government_procurement_cards,16-Jul-2021,Total Public Health,SAINSBURYS.CO.UK,Public Health,21.69,"GROCERY STORES, SUPERMARKETS",2021-22Q2_PC0215
Sandwell Metropolitan Borough Council,http://www.sandwell.gov.uk/info/200202/performance_and_spending/3233/government_procurement_cards,16-Jul-2021,Total Borough Economy,Amazon.co.uk YM47U7E45,Neighbourhoods,7.5,DIRECT MARKETING-OTHER DIRECT MARKETERS/NOT ELSEW.,2021-22Q2_PC0216
Sandwell Metropolitan Borough Council,http://www.sandwell.gov.uk/info/200202/performance_and_spending/3233/government_procurement_cards,16-Jul-2021,Total Borough Economy,AMZNMKTPLACE AMAZON.CO,Neighbourhoods,14.99,MISCELLANEOUS AND SPECIALTY RETAIL STORES,2021-22Q2_PC0217
Sandwell Metropolitan Borough Council,http://www.sandwell.gov.uk/info/200202/performance_and_spending/3233/government_procurement_cards,16-Jul-2021,Total Borough Economy,AVONCROFT,Neighbourhoods,30,"ORGANIZATIONS, CHARITABLE AND SOCIAL SERVICES",2021-22Q2_PC0218
Sandwell Metropolitan Borough Council,http://www.sandwell.gov.uk/info/200202/performance_and_spending/3233/government_procurement_cards,16-Jul-2021,Total Borough Economy,MAJESTIC WINE,Neighbourhoods,131.27,"PACKAGE STORES, BEER, WINE, LIQUOR",2021-22Q2_PC0219
Sandwell Metropolitan Borough Council,http://www.sandwell.gov.uk/info/200202/performance_and_spending/3233/government_procurement_cards,16-Jul-2021,Total Borough Economy,SAINSBURYS 2311,Neighbourhoods,56.2,"GROCERY STORES, SUPERMARKETS",2021-22Q2_PC0220
Sandwell Metropolitan Borough Council,http://www.sandwell.gov.uk/info/200202/performance_and_spending/3233/government_procurement_cards,16-Jul-2021,Total Business Strategy & Change,Amazon.co.uk 406TG3M85,Assistant Chief Executive (Excl SIU),85.32,DIRECT MARKETING-OTHER DIRECT MARKETERS/NOT ELSEW.,2021-22Q2_PC0221
Sandwell Metropolitan Borough Council,http://www.sandwell.gov.uk/info/200202/performance_and_spending/3233/government_procurement_cards,16-Jul-2021,Regeneration & Growth,AMZNMKTPLACE AMAZON.CO,Regeneration And The Economy,79.99,MISCELLANEOUS AND SPECIALTY RETAIL STORES,2021-22Q2_PC0222
Sandwell Metropolitan Borough Council,http://www.sandwell.gov.uk/info/200202/performance_and_spending/3233/government_procurement_cards,16-Jul-2021,Regeneration & Growth,AMZNMKTPLACE AMAZON.CO,Regeneration And The Economy,79.99,MISCELLANEOUS AND SPECIALTY RETAIL STORES,2021-22Q2_PC0223
Sandwell Metropolitan Borough Council,http://www.sandwell.gov.uk/info/200202/performance_and_spending/3233/government_procurement_cards,16-Jul-2021,Regeneration & Growth,AMZNMKTPLACE AMAZON.CO,Regeneration And The Economy,79.99,MISCELLANEOUS AND SPECIALTY RETAIL STORES,2021-22Q2_PC0224
Sandwell Metropolitan Borough Council,http://www.sandwell.gov.uk/info/200202/performance_and_spending/3233/government_procurement_cards,16-Jul-2021,Regeneration & Growth,AMZNMKTPLACE AMAZON.CO,Regeneration And The Economy,79.99,MISCELLANEOUS AND SPECIALTY RETAIL STORES,2021-22Q2_PC0225
Sandwell Metropolitan Borough Council,http://www.sandwell.gov.uk/info/200202/performance_and_spending/3233/government_procurement_cards,16-Jul-2021,Regeneration & Growth,AMZNMktplace,Regeneration And The Economy,16.99,MISCELLANEOUS AND SPECIALTY RETAIL STORES,2021-22Q2_PC0226
Sandwell Metropolitan Borough Council,http://www.sandwell.gov.uk/info/200202/performance_and_spending/3233/government_procurement_cards,16-Jul-2021,Regeneration & Growth,PROCONFERENCES.COM,Regeneration And The Economy,130.8,"COLLEGES, UNIV, PRO SCHOOLS, JUNIOR COLLEGES",2021-22Q2_PC0227
Sandwell Metropolitan Borough Council,http://www.sandwell.gov.uk/info/200202/performance_and_spending/3233/government_procurement_cards,16-Jul-2021,Regeneration & Growth,PROCONFERENCES.COM,Regeneration And The Economy,130.8,"COLLEGES, UNIV, PRO SCHOOLS, JUNIOR COLLEGES",2021-22Q2_PC0228
Sandwell Metropolitan Borough Council,http://www.sandwell.gov.uk/info/200202/performance_and_spending/3233/government_procurement_cards,16-Jul-2021,Regeneration & Growth,PROCONFERENCES.COM,Regeneration And The Economy,130.8,"COLLEGES, UNIV, PRO SCHOOLS, JUNIOR COLLEGES",2021-22Q2_PC0229
Sandwell Metropolitan Borough Council,http://www.sandwell.gov.uk/info/200202/performance_and_spending/3233/government_procurement_cards,16-Jul-2021,Regeneration & Growth,PROCONFERENCES.COM,Regeneration And The Economy,130.8,"COLLEGES, UNIV, PRO SCHOOLS, JUNIOR COLLEGES",2021-22Q2_PC0230
Sandwell Metropolitan Borough Council,http://www.sandwell.gov.uk/info/200202/performance_and_spending/3233/government_procurement_cards,16-Jul-2021,Total Borough Economy,AMZNMktplace,Neighbourhoods,21.46,MISCELLANEOUS AND SPECIALTY RETAIL STORES,2021-22Q2_PC0231
Sandwell Metropolitan Borough Council,http://www.sandwell.gov.uk/info/200202/performance_and_spending/3233/government_procurement_cards,16-Jul-2021,Regeneration & Growth,AMZNMktplace,Regeneration And The Economy,115.96,MISCELLANEOUS AND SPECIALTY RETAIL STORES,2021-22Q2_PC0232
Sandwell Metropolitan Borough Council,http://www.sandwell.gov.uk/info/200202/performance_and_spending/3233/government_procurement_cards,16-Jul-2021,Total ASCHWB,AMZNMKTPLACE AMAZON.CO,Total Adult Social Care,16.97,MISCELLANEOUS AND SPECIALTY RETAIL STORES,2021-22Q2_PC0233
Sandwell Metropolitan Borough Council,http://www.sandwell.gov.uk/info/200202/performance_and_spending/3233/government_procurement_cards,16-Jul-2021,Total ASCHWB,AMZNMKTPLACE AMAZON.CO,Total Adult Social Care,83.24,MISCELLANEOUS AND SPECIALTY RETAIL STORES,2021-22Q2_PC0234
Sandwell Metropolitan Borough Council,http://www.sandwell.gov.uk/info/200202/performance_and_spending/3233/government_procurement_cards,16-Jul-2021,Total ASCHWB,AMZNMKTPLACE AMAZON.CO,Total Adult Social Care,90.97,MISCELLANEOUS AND SPECIALTY RETAIL STORES,2021-22Q2_PC0235
Sandwell Metropolitan Borough Council,http://www.sandwell.gov.uk/info/200202/performance_and_spending/3233/government_procurement_cards,16-Jul-2021,Childrens Services,AMZNMktplace,Childrens Services,70.44,MISCELLANEOUS AND SPECIALTY RETAIL STORES,2021-22Q2_PC0236
Sandwell Metropolitan Borough Council,http://www.sandwell.gov.uk/info/200202/performance_and_spending/3233/government_procurement_cards,16-Jul-2021,Childrens Services,GWYNEDD DISPOSABLES,Childrens Services,262.62,"SANITATION, POLISHING & SPECIALITY CLEANING PREP",2021-22Q2_PC0237
Sandwell Metropolitan Borough Council,http://www.sandwell.gov.uk/info/200202/performance_and_spending/3233/government_procurement_cards,16-Jul-2021,Childrens Services,FW3 GROUP,Childrens Services,29.99,INDUSTRIAL SUPPLIES NOT ELSEWHERE CLASSIFIED,2021-22Q2_PC0238
Sandwell Metropolitan Borough Council,http://www.sandwell.gov.uk/info/200202/performance_and_spending/3233/government_procurement_cards,16-Jul-2021,Childrens Services,Spotify UK,Childrens Services,9.99,DIGITAL GOODS AUDIOVISUAL MEDIA,2021-22Q2_PC0239
Sandwell Metropolitan Borough Council,http://www.sandwell.gov.uk/info/200202/performance_and_spending/3233/government_procurement_cards,16-Jul-2021,Childrens Services,POWER EQUIPMENT SERV L,Childrens Services,45,LAWN AND GARDEN SUPPLY STORES,2021-22Q2_PC0240
Sandwell Metropolitan Borough Council,http://www.sandwell.gov.uk/info/200202/performance_and_spending/3233/government_procurement_cards,16-Jul-2021,Childrens Services,Amazon.co.uk G74DP1VL5,Childrens Services,13.37,DIRECT MARKETING-OTHER DIRECT MARKETERS/NOT ELSEW.,2021-22Q2_PC0241
Sandwell Metropolitan Borough Council,http://www.sandwell.gov.uk/info/200202/performance_and_spending/3233/government_procurement_cards,16-Jul-2021,Childrens Services,AMZNMKTPLACE AMAZON.CO,Childrens Services,13.98,MISCELLANEOUS AND SPECIALTY RETAIL STORES,2021-22Q2_PC0242
Sandwell Metropolitan Borough Council,http://www.sandwell.gov.uk/info/200202/performance_and_spending/3233/government_procurement_cards,16-Jul-2021,Childrens Services,AMZNMktplace,Childrens Services,62.99,MISCELLANEOUS AND SPECIALTY RETAIL STORES,2021-22Q2_PC0243
Sandwell Metropolitan Borough Council,http://www.sandwell.gov.uk/info/200202/performance_and_spending/3233/government_procurement_cards,19-Jul-2021,Total Housing Revenue Account,NORDAN UK LTD,Total Housing Revenue Account,85.6,"BUILDING MATERIALS, LUMBER STORES",2021-22Q2_PC0244
Sandwell Metropolitan Borough Council,http://www.sandwell.gov.uk/info/200202/performance_and_spending/3233/government_procurement_cards,19-Jul-2021,Total Borough Economy,INDUSTRIAL POW UNIT LT,Neighbourhoods,51.84,MOTOR VEHICLE SUPPLIES AND NEW PARTS,2021-22Q2_PC0245
Sandwell Metropolitan Borough Council,http://www.sandwell.gov.uk/info/200202/performance_and_spending/3233/government_procurement_cards,19-Jul-2021,Total Borough Economy,AMZNMKTPLACE AMAZON.CO,Neighbourhoods,9.99,MISCELLANEOUS AND SPECIALTY RETAIL STORES,2021-22Q2_PC0246
Sandwell Metropolitan Borough Council,http://www.sandwell.gov.uk/info/200202/performance_and_spending/3233/government_procurement_cards,19-Jul-2021,Total Borough Economy,AMZNMktplace,Neighbourhoods,5.99,MISCELLANEOUS AND SPECIALTY RETAIL STORES,2021-22Q2_PC0247
Sandwell Metropolitan Borough Council,http://www.sandwell.gov.uk/info/200202/performance_and_spending/3233/government_procurement_cards,19-Jul-2021,Total Borough Economy,WETRANSFER,Neighbourhoods,10.58,"COMP PROGRAMING,DATA PRCSNG,INTGRTD SYS DSGN SRVS",2021-22Q2_PC0248
Sandwell Metropolitan Borough Council,http://www.sandwell.gov.uk/info/200202/performance_and_spending/3233/government_procurement_cards,19-Jul-2021,Total Borough Economy,GLOBAL WINES (BHAM) LT,Neighbourhoods,50.99,"PACKAGE STORES, BEER, WINE, LIQUOR",2021-22Q2_PC0249
Sandwell Metropolitan Borough Council,http://www.sandwell.gov.uk/info/200202/performance_and_spending/3233/government_procurement_cards,19-Jul-2021,Total Borough Economy,MAJESTIC WINE,Neighbourhoods,31.92,"PACKAGE STORES, BEER, WINE, LIQUOR",2021-22Q2_PC0250
Sandwell Metropolitan Borough Council,http://www.sandwell.gov.uk/info/200202/performance_and_spending/3233/government_procurement_cards,19-Jul-2021,Housing & Assets Total,AMZNMktplace,Neighbourhoods,144.99,MISCELLANEOUS AND SPECIALTY RETAIL STORES,2021-22Q2_PC0251
Sandwell Metropolitan Borough Council,http://www.sandwell.gov.uk/info/200202/performance_and_spending/3233/government_procurement_cards,19-Jul-2021,Total Borough Economy,AMZNMktplace,Neighbourhoods,183.99,MISCELLANEOUS AND SPECIALTY RETAIL STORES,2021-22Q2_PC0252
Sandwell Metropolitan Borough Council,http://www.sandwell.gov.uk/info/200202/performance_and_spending/3233/government_procurement_cards,19-Jul-2021,Total Borough Economy,OFFICE DEPOT UK,Regeneration And The Economy,75.35,STATIONERY/OFFICE SUPPLIES/PRINTING & WRITING PAP.,2021-22Q2_PC0253
Sandwell Metropolitan Borough Council,http://www.sandwell.gov.uk/info/200202/performance_and_spending/3233/government_procurement_cards,19-Jul-2021,Total ASCHWB,ADOBE CREATIVE CLOUD,Total Adult Social Care,49.94,COMPUTER SOFTWARE STORES,2021-22Q2_PC0254
Sandwell Metropolitan Borough Council,http://www.sandwell.gov.uk/info/200202/performance_and_spending/3233/government_procurement_cards,19-Jul-2021,Total ASCHWB,AMZNMktplace,Total Adult Social Care,66.91,MISCELLANEOUS AND SPECIALTY RETAIL STORES,2021-22Q2_PC0255
Sandwell Metropolitan Borough Council,http://www.sandwell.gov.uk/info/200202/performance_and_spending/3233/government_procurement_cards,19-Jul-2021,Total ASCHWB,OFFICE DEPOT UK,Total Adult Social Care,-4.66,STATIONERY/OFFICE SUPPLIES/PRINTING & WRITING PAP.,2021-22Q2_PC0256
Sandwell Metropolitan Borough Council,http://www.sandwell.gov.uk/info/200202/performance_and_spending/3233/government_procurement_cards,19-Jul-2021,Total ASCHWB,AMZNMktplace,Total Adult Social Care,181.95,MISCELLANEOUS AND SPECIALTY RETAIL STORES,2021-22Q2_PC0257
Sandwell Metropolitan Borough Council,http://www.sandwell.gov.uk/info/200202/performance_and_spending/3233/government_procurement_cards,19-Jul-2021,Total ASCHWB,AMZNMKTPLACE AMAZON.CO,Total Adult Social Care,-90.97,MISCELLANEOUS AND SPECIALTY RETAIL STORES,2021-22Q2_PC0258
Sandwell Metropolitan Borough Council,http://www.sandwell.gov.uk/info/200202/performance_and_spending/3233/government_procurement_cards,19-Jul-2021,Total ASCHWB,eBay O 01-07353-21498,Total Adult Social Care,79.98,DEPARTMENT STORES,2021-22Q2_PC0259
Sandwell Metropolitan Borough Council,http://www.sandwell.gov.uk/info/200202/performance_and_spending/3233/government_procurement_cards,19-Jul-2021,Childrens Services,MEDI-TEC LTD,Childrens Services,72,SCHOOLS & EDUCATIONAL SVC-NOT ELSEWHERE CLASSIFIED,2021-22Q2_PC0260
Sandwell Metropolitan Borough Council,http://www.sandwell.gov.uk/info/200202/performance_and_spending/3233/government_procurement_cards,19-Jul-2021,Childrens Services,AMZNMktplace,Childrens Services,13.11,MISCELLANEOUS AND SPECIALTY RETAIL STORES,2021-22Q2_PC0261
Sandwell Metropolitan Borough Council,http://www.sandwell.gov.uk/info/200202/performance_and_spending/3233/government_procurement_cards,19-Jul-2021,Childrens Services,AMZNMktplace,Childrens Services,55.86,MISCELLANEOUS AND SPECIALTY RETAIL STORES,2021-22Q2_PC0262
Sandwell Metropolitan Borough Council,http://www.sandwell.gov.uk/info/200202/performance_and_spending/3233/government_procurement_cards,19-Jul-2021,Childrens Services,OFFICE DEPOT UK,Childrens Services,18.25,STATIONERY/OFFICE SUPPLIES/PRINTING & WRITING PAP.,2021-22Q2_PC0263
Sandwell Metropolitan Borough Council,http://www.sandwell.gov.uk/info/200202/performance_and_spending/3233/government_procurement_cards,19-Jul-2021,Childrens Services,AGHOCO 1982 LTD,Childrens Services,15.32,"BUILDING MATERIALS, LUMBER STORES",2021-22Q2_PC0264
Sandwell Metropolitan Borough Council,http://www.sandwell.gov.uk/info/200202/performance_and_spending/3233/government_procurement_cards,19-Jul-2021,Childrens Services,AMZNMktplace,Childrens Services,111.48,MISCELLANEOUS AND SPECIALTY RETAIL STORES,2021-22Q2_PC0265
Sandwell Metropolitan Borough Council,http://www.sandwell.gov.uk/info/200202/performance_and_spending/3233/government_procurement_cards,19-Jul-2021,Childrens Services,Klarna graff-city.com,Childrens Services,190.48,"GAME, TOY, AND HOBBY SHOPS",2021-22Q2_PC0266
Sandwell Metropolitan Borough Council,http://www.sandwell.gov.uk/info/200202/performance_and_spending/3233/government_procurement_cards,19-Jul-2021,Childrens Services,Klarna graff-city.com,Childrens Services,171.49,"GAME, TOY, AND HOBBY SHOPS",2021-22Q2_PC0267
Sandwell Metropolitan Borough Council,http://www.sandwell.gov.uk/info/200202/performance_and_spending/3233/government_procurement_cards,19-Jul-2021,Childrens Services,WWW.NCRQ.ORG.UK,Childrens Services,36,SCHOOLS & EDUCATIONAL SVC-NOT ELSEWHERE CLASSIFIED,2021-22Q2_PC0268
Sandwell Metropolitan Borough Council,http://www.sandwell.gov.uk/info/200202/performance_and_spending/3233/government_procurement_cards,19-Jul-2021,Housing & Assets Total,AMZNMktplace,Neighbourhoods,223.2,MISCELLANEOUS AND SPECIALTY RETAIL STORES,2021-22Q2_PC0269
Sandwell Metropolitan Borough Council,http://www.sandwell.gov.uk/info/200202/performance_and_spending/3233/government_procurement_cards,19-Jul-2021,Director of Law & Governance,GET THE PICTURE,Assistant Chief Executive (Excl SIU),39,ART DEALERS AND GALLERIES,2021-22Q2_PC0270
Sandwell Metropolitan Borough Council,http://www.sandwell.gov.uk/info/200202/performance_and_spending/3233/government_procurement_cards,19-Jul-2021,Director of Law & Governance,BLOOMSBURY PUBLISH,Assistant Chief Executive (Excl SIU),127.95,"BOOKS,PERIODICALS AND NEWSPAPERS",2021-22Q2_PC0271
Sandwell Metropolitan Borough Council,http://www.sandwell.gov.uk/info/200202/performance_and_spending/3233/government_procurement_cards,19-Jul-2021,Director of Law & Governance,OFFICE DEPOT UK,Assistant Chief Executive (Excl SIU),32.5,STATIONERY/OFFICE SUPPLIES/PRINTING & WRITING PAP.,2021-22Q2_PC0272
Sandwell Metropolitan Borough Council,http://www.sandwell.gov.uk/info/200202/performance_and_spending/3233/government_procurement_cards,20-Jul-2021,Total Public Health,ADOBE CREATIVE CLOUD,Public Health,49.94,COMPUTER SOFTWARE STORES,2021-22Q2_PC0273
Sandwell Metropolitan Borough Council,http://www.sandwell.gov.uk/info/200202/performance_and_spending/3233/government_procurement_cards,20-Jul-2021,Total Borough Economy,SAINSBURYS LOC4132,Neighbourhoods,19.6,"GROCERY STORES, SUPERMARKETS",2021-22Q2_PC0274
Sandwell Metropolitan Borough Council,http://www.sandwell.gov.uk/info/200202/performance_and_spending/3233/government_procurement_cards,20-Jul-2021,Total Borough Economy,GLOBAL WINES (BHAM) LT,Neighbourhoods,104.01,"PACKAGE STORES, BEER, WINE, LIQUOR",2021-22Q2_PC0275
Sandwell Metropolitan Borough Council,http://www.sandwell.gov.uk/info/200202/performance_and_spending/3233/government_procurement_cards,20-Jul-2021,Total Borough Economy,MAJESTIC WINE,Neighbourhoods,15.96,"PACKAGE STORES, BEER, WINE, LIQUOR",2021-22Q2_PC0276
Sandwell Metropolitan Borough Council,http://www.sandwell.gov.uk/info/200202/performance_and_spending/3233/government_procurement_cards,20-Jul-2021,Housing & Assets Total,B&M 262 - WILLENHALL,Neighbourhoods,4.74,MISCELLANEOUS GENERAL MERCHANDISE,2021-22Q2_PC0277
Sandwell Metropolitan Borough Council,http://www.sandwell.gov.uk/info/200202/performance_and_spending/3233/government_procurement_cards,20-Jul-2021,Total Business Strategy & Change,AMZNMktplace,Assistant Chief Executive (Excl SIU),32.99,MISCELLANEOUS AND SPECIALTY RETAIL STORES,2021-22Q2_PC0278
Sandwell Metropolitan Borough Council,http://www.sandwell.gov.uk/info/200202/performance_and_spending/3233/government_procurement_cards,20-Jul-2021,Total Borough Economy,SCREWFIX DIRECT,Neighbourhoods,22.99,"BUILDING MATERIALS, LUMBER STORES",2021-22Q2_PC0279
Sandwell Metropolitan Borough Council,http://www.sandwell.gov.uk/info/200202/performance_and_spending/3233/government_procurement_cards,20-Jul-2021,Total Borough Economy,SCREWFIX DIRECT,Neighbourhoods,29.99,"BUILDING MATERIALS, LUMBER STORES",2021-22Q2_PC0280
Sandwell Metropolitan Borough Council,http://www.sandwell.gov.uk/info/200202/performance_and_spending/3233/government_procurement_cards,20-Jul-2021,Total ASCHWB,ADOBE CREATIVE CLOUD,Total Adult Social Care,49.94,COMPUTER SOFTWARE STORES,2021-22Q2_PC0281
Sandwell Metropolitan Borough Council,http://www.sandwell.gov.uk/info/200202/performance_and_spending/3233/government_procurement_cards,20-Jul-2021,Total ASCHWB,AMZNMKTPLACE AMAZON.CO,Total Adult Social Care,150.21,MISCELLANEOUS AND SPECIALTY RETAIL STORES,2021-22Q2_PC0282
Sandwell Metropolitan Borough Council,http://www.sandwell.gov.uk/info/200202/performance_and_spending/3233/government_procurement_cards,20-Jul-2021,Total ASCHWB,OFFICE DEPOT UK,Total Adult Social Care,15.7,STATIONERY/OFFICE SUPPLIES/PRINTING & WRITING PAP.,2021-22Q2_PC0283
Sandwell Metropolitan Borough Council,http://www.sandwell.gov.uk/info/200202/performance_and_spending/3233/government_procurement_cards,20-Jul-2021,Total ASCHWB,eBay O 17-07357-77316,Total Adult Social Care,9.95,DEPARTMENT STORES,2021-22Q2_PC0284
Sandwell Metropolitan Borough Council,http://www.sandwell.gov.uk/info/200202/performance_and_spending/3233/government_procurement_cards,20-Jul-2021,Housing & Assets Total,Amazon Prime OH1MA62T5,Neighbourhoods,7.99,DIRECT MARKETING-CONTINUITY/SUBSCRIPTION MERCHANTS,2021-22Q2_PC0285
Sandwell Metropolitan Borough Council,http://www.sandwell.gov.uk/info/200202/performance_and_spending/3233/government_procurement_cards,20-Jul-2021,Housing & Assets Total,AMZNMktplace,Neighbourhoods,12.99,MISCELLANEOUS AND SPECIALTY RETAIL STORES,2021-22Q2_PC0286
Sandwell Metropolitan Borough Council,http://www.sandwell.gov.uk/info/200202/performance_and_spending/3233/government_procurement_cards,20-Jul-2021,Childrens Services,AMZNMktplace,Childrens Services,10.99,MISCELLANEOUS AND SPECIALTY RETAIL STORES,2021-22Q2_PC0287
Sandwell Metropolitan Borough Council,http://www.sandwell.gov.uk/info/200202/performance_and_spending/3233/government_procurement_cards,20-Jul-2021,Childrens Services,AMZNMktplace,Childrens Services,4.49,MISCELLANEOUS AND SPECIALTY RETAIL STORES,2021-22Q2_PC0288
Sandwell Metropolitan Borough Council,http://www.sandwell.gov.uk/info/200202/performance_and_spending/3233/government_procurement_cards,20-Jul-2021,Childrens Services,AMZ Amazon.co.uk,Childrens Services,-153.98,DIRECT MARKETING-OTHER DIRECT MARKETERS/NOT ELSEW.,2021-22Q2_PC0289
Sandwell Metropolitan Borough Council,http://www.sandwell.gov.uk/info/200202/performance_and_spending/3233/government_procurement_cards,20-Jul-2021,Childrens Services,Klarna graff-city.com,Childrens Services,21.92,"GAME, TOY, AND HOBBY SHOPS",2021-22Q2_PC0290
Sandwell Metropolitan Borough Council,http://www.sandwell.gov.uk/info/200202/performance_and_spending/3233/government_procurement_cards,20-Jul-2021,Childrens Services,FINDEL EDUCATION,Childrens Services,226.44,DIRECT MARKETING-OTHER DIRECT MARKETERS/NOT ELSEW.,2021-22Q2_PC0291
Sandwell Metropolitan Borough Council,http://www.sandwell.gov.uk/info/200202/performance_and_spending/3233/government_procurement_cards,20-Jul-2021,Childrens Services,SP   MAGICSHOP.CO.UK,Childrens Services,41.53,"BOOKS,PERIODICALS AND NEWSPAPERS",2021-22Q2_PC0292
Sandwell Metropolitan Borough Council,http://www.sandwell.gov.uk/info/200202/performance_and_spending/3233/government_procurement_cards,20-Jul-2021,Childrens Services,WWW MAGICWORLD CO UK,Childrens Services,16.48,MISCELLANEOUS AND SPECIALTY RETAIL STORES,2021-22Q2_PC0293
Sandwell Metropolitan Borough Council,http://www.sandwell.gov.uk/info/200202/performance_and_spending/3233/government_procurement_cards,20-Jul-2021,Childrens Services,AMZ Kingdom Fancy Dres,Childrens Services,-62.99,MISCELLANEOUS AND SPECIALTY RETAIL STORES,2021-22Q2_PC0294
Sandwell Metropolitan Borough Council,http://www.sandwell.gov.uk/info/200202/performance_and_spending/3233/government_procurement_cards,20-Jul-2021,Housing & Assets Total,TRAVELODGE,Neighbourhoods,387.52,TRAVELODGE,2021-22Q2_PC0295
Sandwell Metropolitan Borough Council,http://www.sandwell.gov.uk/info/200202/performance_and_spending/3233/government_procurement_cards,20-Jul-2021,Director of Law & Governance,OFFICE DEPOT UK,Assistant Chief Executive (Excl SIU),0.11,STATIONERY/OFFICE SUPPLIES/PRINTING & WRITING PAP.,2021-22Q2_PC0296
Sandwell Metropolitan Borough Council,http://www.sandwell.gov.uk/info/200202/performance_and_spending/3233/government_procurement_cards,21-Jul-2021,Total Borough Economy,AMZNMktplace,Neighbourhoods,19.25,MISCELLANEOUS AND SPECIALTY RETAIL STORES,2021-22Q2_PC0297
Sandwell Metropolitan Borough Council,http://www.sandwell.gov.uk/info/200202/performance_and_spending/3233/government_procurement_cards,21-Jul-2021,Total Borough Economy,AMZNMktplace,Neighbourhoods,19.98,MISCELLANEOUS AND SPECIALTY RETAIL STORES,2021-22Q2_PC0298
Sandwell Metropolitan Borough Council,http://www.sandwell.gov.uk/info/200202/performance_and_spending/3233/government_procurement_cards,21-Jul-2021,Regeneration & Growth,OFFICE DEPOT UK,Regeneration And The Economy,39.96,STATIONERY/OFFICE SUPPLIES/PRINTING & WRITING PAP.,2021-22Q2_PC0299
Sandwell Metropolitan Borough Council,http://www.sandwell.gov.uk/info/200202/performance_and_spending/3233/government_procurement_cards,21-Jul-2021,Total Borough Economy,OFFICE DEPOT UK,Neighbourhoods,124.28,STATIONERY/OFFICE SUPPLIES/PRINTING & WRITING PAP.,2021-22Q2_PC0300
Sandwell Metropolitan Borough Council,http://www.sandwell.gov.uk/info/200202/performance_and_spending/3233/government_procurement_cards,21-Jul-2021,Total Borough Economy,AMZNMktplace,Neighbourhoods,61.3,MISCELLANEOUS AND SPECIALTY RETAIL STORES,2021-22Q2_PC0301
Sandwell Metropolitan Borough Council,http://www.sandwell.gov.uk/info/200202/performance_and_spending/3233/government_procurement_cards,21-Jul-2021,Total Borough Economy,BESTWAY WHOLESALE,Neighbourhoods,23.4,DAIRY PRODUCTS STORES,2021-22Q2_PC0302
Sandwell Metropolitan Borough Council,http://www.sandwell.gov.uk/info/200202/performance_and_spending/3233/government_procurement_cards,21-Jul-2021,Total Borough Economy,AMZNMktplace,Neighbourhoods,25.47,MISCELLANEOUS AND SPECIALTY RETAIL STORES,2021-22Q2_PC0303
Sandwell Metropolitan Borough Council,http://www.sandwell.gov.uk/info/200202/performance_and_spending/3233/government_procurement_cards,21-Jul-2021,Total ASCHWB,AMZNMktplace,Total Adult Social Care,199.2,MISCELLANEOUS AND SPECIALTY RETAIL STORES,2021-22Q2_PC0304
Sandwell Metropolitan Borough Council,http://www.sandwell.gov.uk/info/200202/performance_and_spending/3233/government_procurement_cards,21-Jul-2021,Housing & Assets Total,AMZNMktplace,Neighbourhoods,89.99,MISCELLANEOUS AND SPECIALTY RETAIL STORES,2021-22Q2_PC0305
Sandwell Metropolitan Borough Council,http://www.sandwell.gov.uk/info/200202/performance_and_spending/3233/government_procurement_cards,21-Jul-2021,Childrens Services,AMZNMktplace,Childrens Services,27.01,MISCELLANEOUS AND SPECIALTY RETAIL STORES,2021-22Q2_PC0306
Sandwell Metropolitan Borough Council,http://www.sandwell.gov.uk/info/200202/performance_and_spending/3233/government_procurement_cards,21-Jul-2021,Childrens Services,B&Q DIRECT,Childrens Services,24,HOME SUPPLY WAREHOUSE STORES,2021-22Q2_PC0307
Sandwell Metropolitan Borough Council,http://www.sandwell.gov.uk/info/200202/performance_and_spending/3233/government_procurement_cards,21-Jul-2021,Childrens Services,JOHN MUIR TRUST-DOM,Childrens Services,60,"ORGANIZATIONS, CHARITABLE AND SOCIAL SERVICES",2021-22Q2_PC0308
Sandwell Metropolitan Borough Council,http://www.sandwell.gov.uk/info/200202/performance_and_spending/3233/government_procurement_cards,21-Jul-2021,Childrens Services,AMZNMktplace,Childrens Services,115.66,MISCELLANEOUS AND SPECIALTY RETAIL STORES,2021-22Q2_PC0309
Sandwell Metropolitan Borough Council,http://www.sandwell.gov.uk/info/200202/performance_and_spending/3233/government_procurement_cards,21-Jul-2021,Childrens Services,Amazon.co.uk JB46F0QJ5,Childrens Services,90.71,DIRECT MARKETING-OTHER DIRECT MARKETERS/NOT ELSEW.,2021-22Q2_PC0310
Sandwell Metropolitan Borough Council,http://www.sandwell.gov.uk/info/200202/performance_and_spending/3233/government_procurement_cards,21-Jul-2021,Childrens Services,AMZNMktplace,Childrens Services,74.98,MISCELLANEOUS AND SPECIALTY RETAIL STORES,2021-22Q2_PC0311
Sandwell Metropolitan Borough Council,http://www.sandwell.gov.uk/info/200202/performance_and_spending/3233/government_procurement_cards,21-Jul-2021,Housing & Assets Total,WWW.VICARAGELODGE.COM,Neighbourhoods,1050,"LODGING-HOTELS,MOTELS,RESORTS-NOT CLASSIFIED",2021-22Q2_PC0312
Sandwell Metropolitan Borough Council,http://www.sandwell.gov.uk/info/200202/performance_and_spending/3233/government_procurement_cards,22-Jul-2021,Total Public Health,ADOBE STOCK,Public Health,23.99,COMPUTER SOFTWARE STORES,2021-22Q2_PC0313
Sandwell Metropolitan Borough Council,http://www.sandwell.gov.uk/info/200202/performance_and_spending/3233/government_procurement_cards,22-Jul-2021,Total Public Health,LOCTEK INC,Public Health,259.98,COMPUTER SOFTWARE STORES,2021-22Q2_PC0314
Sandwell Metropolitan Borough Council,http://www.sandwell.gov.uk/info/200202/performance_and_spending/3233/government_procurement_cards,22-Jul-2021,Total Borough Economy,CANVA  I03123-11729174,Neighbourhoods,10.99,PHOTOGRAPHIC STUDIOS,2021-22Q2_PC0315
Sandwell Metropolitan Borough Council,http://www.sandwell.gov.uk/info/200202/performance_and_spending/3233/government_procurement_cards,22-Jul-2021,Total Borough Economy,POUNDLAND 1509,Neighbourhoods,2,DISCOUNT STORES,2021-22Q2_PC0316
Sandwell Metropolitan Borough Council,http://www.sandwell.gov.uk/info/200202/performance_and_spending/3233/government_procurement_cards,22-Jul-2021,Housing & Assets Total,AMZNMktplace,Neighbourhoods,44.25,MISCELLANEOUS AND SPECIALTY RETAIL STORES,2021-22Q2_PC0317
Sandwell Metropolitan Borough Council,http://www.sandwell.gov.uk/info/200202/performance_and_spending/3233/government_procurement_cards,22-Jul-2021,Total Public Health,OFFICE DEPOT UK,Public Health,7.92,STATIONERY/OFFICE SUPPLIES/PRINTING & WRITING PAP.,2021-22Q2_PC0318
Sandwell Metropolitan Borough Council,http://www.sandwell.gov.uk/info/200202/performance_and_spending/3233/government_procurement_cards,22-Jul-2021,Director of Law & Governance,OFFICE DEPOT UK,Assistant Chief Executive (Excl SIU),105.19,STATIONERY/OFFICE SUPPLIES/PRINTING & WRITING PAP.,2021-22Q2_PC0319
Sandwell Metropolitan Borough Council,http://www.sandwell.gov.uk/info/200202/performance_and_spending/3233/government_procurement_cards,22-Jul-2021,FINANCE (Inc SIU),OFFICE DEPOT UK,Total Adult Social Care,67.39,STATIONERY/OFFICE SUPPLIES/PRINTING & WRITING PAP.,2021-22Q2_PC0320
Sandwell Metropolitan Borough Council,http://www.sandwell.gov.uk/info/200202/performance_and_spending/3233/government_procurement_cards,22-Jul-2021,Total ASCHWB,ABIS-UK.COM,Total Adult Social Care,49.14,MISCELLANEOUS GENERAL MERCHANDISE,2021-22Q2_PC0321
Sandwell Metropolitan Borough Council,http://www.sandwell.gov.uk/info/200202/performance_and_spending/3233/government_procurement_cards,22-Jul-2021,Total ASCHWB,Amazon.co.uk RX4Q92E25,Total Adult Social Care,228.19,DIRECT MARKETING-OTHER DIRECT MARKETERS/NOT ELSEW.,2021-22Q2_PC0322
Sandwell Metropolitan Borough Council,http://www.sandwell.gov.uk/info/200202/performance_and_spending/3233/government_procurement_cards,22-Jul-2021,Total ASCHWB,R & D MILLER LIMITED,Total Adult Social Care,158.4,MEN'S AND BOY'S CLOTHING AND ACCESSORIES STORES,2021-22Q2_PC0323
Sandwell Metropolitan Borough Council,http://www.sandwell.gov.uk/info/200202/performance_and_spending/3233/government_procurement_cards,22-Jul-2021,Total ASCHWB,AMZNMKTPLACE AMAZON.CO,Total Adult Social Care,13.5,MISCELLANEOUS AND SPECIALTY RETAIL STORES,2021-22Q2_PC0324
Sandwell Metropolitan Borough Council,http://www.sandwell.gov.uk/info/200202/performance_and_spending/3233/government_procurement_cards,22-Jul-2021,Total ASCHWB,EB  NECESSITY AND PROP,Total Adult Social Care,500,BUSINESS SERVICES-NOT ELSEWHERE CLASSIFIED,2021-22Q2_PC0325
Sandwell Metropolitan Borough Council,http://www.sandwell.gov.uk/info/200202/performance_and_spending/3233/government_procurement_cards,22-Jul-2021,Total ASCHWB,AMZNMKTPLACE AMAZON.CO,Total Adult Social Care,194.97,MISCELLANEOUS AND SPECIALTY RETAIL STORES,2021-22Q2_PC0326
Sandwell Metropolitan Borough Council,http://www.sandwell.gov.uk/info/200202/performance_and_spending/3233/government_procurement_cards,22-Jul-2021,Childrens Services,WILKO RETAIL LIMITED,Childrens Services,50,MISCELLANEOUS GENERAL MERCHANDISE,2021-22Q2_PC0327
Sandwell Metropolitan Borough Council,http://www.sandwell.gov.uk/info/200202/performance_and_spending/3233/government_procurement_cards,22-Jul-2021,Childrens Services,WILKO RETAIL LIMITED,Childrens Services,9.18,MISCELLANEOUS GENERAL MERCHANDISE,2021-22Q2_PC0328
Sandwell Metropolitan Borough Council,http://www.sandwell.gov.uk/info/200202/performance_and_spending/3233/government_procurement_cards,22-Jul-2021,Childrens Services,WILKO RETAIL LIMITED,Childrens Services,14.75,MISCELLANEOUS GENERAL MERCHANDISE,2021-22Q2_PC0329
Sandwell Metropolitan Borough Council,http://www.sandwell.gov.uk/info/200202/performance_and_spending/3233/government_procurement_cards,22-Jul-2021,Childrens Services,HUWS GRAY PWLLHELI PLU,Childrens Services,9.97,"BUILDING MATERIALS, LUMBER STORES",2021-22Q2_PC0330
Sandwell Metropolitan Borough Council,http://www.sandwell.gov.uk/info/200202/performance_and_spending/3233/government_procurement_cards,22-Jul-2021,Childrens Services,ASDA STORES 4253,Childrens Services,1,"GROCERY STORES, SUPERMARKETS",2021-22Q2_PC0331
Sandwell Metropolitan Borough Council,http://www.sandwell.gov.uk/info/200202/performance_and_spending/3233/government_procurement_cards,22-Jul-2021,Childrens Services,ASDA STORES 4253,Childrens Services,28.89,"GROCERY STORES, SUPERMARKETS",2021-22Q2_PC0332
Sandwell Metropolitan Borough Council,http://www.sandwell.gov.uk/info/200202/performance_and_spending/3233/government_procurement_cards,22-Jul-2021,Childrens Services,WWW.NISBETS.COM,Childrens Services,72.86,DIRECT MARKETING-CATALOG MERCHANTS,2021-22Q2_PC0333
Sandwell Metropolitan Borough Council,http://www.sandwell.gov.uk/info/200202/performance_and_spending/3233/government_procurement_cards,22-Jul-2021,Childrens Services,AMZNMktplace,Childrens Services,19.59,MISCELLANEOUS AND SPECIALTY RETAIL STORES,2021-22Q2_PC0334
Sandwell Metropolitan Borough Council,http://www.sandwell.gov.uk/info/200202/performance_and_spending/3233/government_procurement_cards,22-Jul-2021,Childrens Services,ASDA STORES 4253,Childrens Services,3,"GROCERY STORES, SUPERMARKETS",2021-22Q2_PC0335
Sandwell Metropolitan Borough Council,http://www.sandwell.gov.uk/info/200202/performance_and_spending/3233/government_procurement_cards,22-Jul-2021,Childrens Services,ASDA STORES 4253,Childrens Services,19.95,"GROCERY STORES, SUPERMARKETS",2021-22Q2_PC0336
Sandwell Metropolitan Borough Council,http://www.sandwell.gov.uk/info/200202/performance_and_spending/3233/government_procurement_cards,22-Jul-2021,Childrens Services,ASDA,Childrens Services,32.74,"GROCERY STORES, SUPERMARKETS",2021-22Q2_PC0337
Sandwell Metropolitan Borough Council,http://www.sandwell.gov.uk/info/200202/performance_and_spending/3233/government_procurement_cards,22-Jul-2021,Childrens Services,ASDA STORES 4791,Childrens Services,26,"GROCERY STORES, SUPERMARKETS",2021-22Q2_PC0338
Sandwell Metropolitan Borough Council,http://www.sandwell.gov.uk/info/200202/performance_and_spending/3233/government_procurement_cards,22-Jul-2021,Childrens Services,ASDA GROCERIES ONLINE,Childrens Services,-1.52,"GROCERY STORES, SUPERMARKETS",2021-22Q2_PC0339
Sandwell Metropolitan Borough Council,http://www.sandwell.gov.uk/info/200202/performance_and_spending/3233/government_procurement_cards,22-Jul-2021,Childrens Services,ASDA GROCERIES ONLINE,Childrens Services,-1.3,"GROCERY STORES, SUPERMARKETS",2021-22Q2_PC0340
Sandwell Metropolitan Borough Council,http://www.sandwell.gov.uk/info/200202/performance_and_spending/3233/government_procurement_cards,22-Jul-2021,Childrens Services,ASDA GROCERIES ONLINE,Childrens Services,72.55,"GROCERY STORES, SUPERMARKETS",2021-22Q2_PC0341
Sandwell Metropolitan Borough Council,http://www.sandwell.gov.uk/info/200202/performance_and_spending/3233/government_procurement_cards,22-Jul-2021,Childrens Services,AMZNMKTPLACE AMAZON.CO,Childrens Services,41.9,MISCELLANEOUS AND SPECIALTY RETAIL STORES,2021-22Q2_PC0342
Sandwell Metropolitan Borough Council,http://www.sandwell.gov.uk/info/200202/performance_and_spending/3233/government_procurement_cards,22-Jul-2021,Director of Law & Governance,CURRYS ONLINE,Assistant Chief Executive (Excl SIU),34.99,ELECTRONIC SALES,2021-22Q2_PC0343
Sandwell Metropolitan Borough Council,http://www.sandwell.gov.uk/info/200202/performance_and_spending/3233/government_procurement_cards,22-Jul-2021,Director of Law & Governance,Amazon Prime TL3OC7FC5,Assistant Chief Executive (Excl SIU),7.99,DIRECT MARKETING-CONTINUITY/SUBSCRIPTION MERCHANTS,2021-22Q2_PC0344
Sandwell Metropolitan Borough Council,http://www.sandwell.gov.uk/info/200202/performance_and_spending/3233/government_procurement_cards,23-Jul-2021,Total Public Health,FACEBK KL2LD6XNK2,Public Health,94.69,ADVERTISING SERVICES,2021-22Q2_PC0345
Sandwell Metropolitan Borough Council,http://www.sandwell.gov.uk/info/200202/performance_and_spending/3233/government_procurement_cards,23-Jul-2021,Total Borough Economy,PRINTED.COM,Neighbourhoods,68.39,MISCELLANEOUS PUBLISHING AND PRINTING,2021-22Q2_PC0346
Sandwell Metropolitan Borough Council,http://www.sandwell.gov.uk/info/200202/performance_and_spending/3233/government_procurement_cards,23-Jul-2021,Housing & Assets Total,Amazon.co.uk RZ1272ZV5,Neighbourhoods,144.99,DIRECT MARKETING-OTHER DIRECT MARKETERS/NOT ELSEW.,2021-22Q2_PC0347
Sandwell Metropolitan Borough Council,http://www.sandwell.gov.uk/info/200202/performance_and_spending/3233/government_procurement_cards,23-Jul-2021,Housing & Assets Total,AMZNMKTPLACE AMAZON.CO,Neighbourhoods,51.72,MISCELLANEOUS AND SPECIALTY RETAIL STORES,2021-22Q2_PC0348
Sandwell Metropolitan Borough Council,http://www.sandwell.gov.uk/info/200202/performance_and_spending/3233/government_procurement_cards,23-Jul-2021,Housing & Assets Total,TESCO STORES 5503,Neighbourhoods,7.92,"GROCERY STORES, SUPERMARKETS",2021-22Q2_PC0349
Sandwell Metropolitan Borough Council,http://www.sandwell.gov.uk/info/200202/performance_and_spending/3233/government_procurement_cards,23-Jul-2021,Total Borough Economy,TIMPSON LTD,Neighbourhoods,65,MISCELLANEOUS AND SPECIALTY RETAIL STORES,2021-22Q2_PC0350
Sandwell Metropolitan Borough Council,http://www.sandwell.gov.uk/info/200202/performance_and_spending/3233/government_procurement_cards,23-Jul-2021,Total Borough Economy,MINIGOLF LIMITED,Neighbourhoods,51.54,RECREATION SERVICES (NOT ELSEWHERE CLASSIFIED),2021-22Q2_PC0351
Sandwell Metropolitan Borough Council,http://www.sandwell.gov.uk/info/200202/performance_and_spending/3233/government_procurement_cards,23-Jul-2021,Total Borough Economy,AMZNMKTPLACE AMAZON.CO,Neighbourhoods,22.97,MISCELLANEOUS AND SPECIALTY RETAIL STORES,2021-22Q2_PC0352
Sandwell Metropolitan Borough Council,http://www.sandwell.gov.uk/info/200202/performance_and_spending/3233/government_procurement_cards,23-Jul-2021,Regeneration & Growth,Flextronics,Regeneration And The Economy,380.44,COMPUTER MAIN./REPAIR/SERVICES NOT ELSEWHERE CLASS,2021-22Q2_PC0353
Sandwell Metropolitan Borough Council,http://www.sandwell.gov.uk/info/200202/performance_and_spending/3233/government_procurement_cards,23-Jul-2021,Regeneration & Growth,Amazon.co.uk H41IN5XO5,Regeneration And The Economy,39.99,DIRECT MARKETING-OTHER DIRECT MARKETERS/NOT ELSEW.,2021-22Q2_PC0354
Sandwell Metropolitan Borough Council,http://www.sandwell.gov.uk/info/200202/performance_and_spending/3233/government_procurement_cards,23-Jul-2021,Total ASCHWB,AMZNMktplace,Total Adult Social Care,68.9,MISCELLANEOUS AND SPECIALTY RETAIL STORES,2021-22Q2_PC0355
Sandwell Metropolitan Borough Council,http://www.sandwell.gov.uk/info/200202/performance_and_spending/3233/government_procurement_cards,23-Jul-2021,Total ASCHWB,AMZNMKTPLACE AMAZON.CO,Total Adult Social Care,126.04,MISCELLANEOUS AND SPECIALTY RETAIL STORES,2021-22Q2_PC0356
Sandwell Metropolitan Borough Council,http://www.sandwell.gov.uk/info/200202/performance_and_spending/3233/government_procurement_cards,23-Jul-2021,Childrens Services,AMZNMKTPLACE AMAZON.CO,Childrens Services,73.1,MISCELLANEOUS AND SPECIALTY RETAIL STORES,2021-22Q2_PC0357
Sandwell Metropolitan Borough Council,http://www.sandwell.gov.uk/info/200202/performance_and_spending/3233/government_procurement_cards,23-Jul-2021,Childrens Services,ASDA SUPERSTORE,Childrens Services,20.4,"GROCERY STORES, SUPERMARKETS",2021-22Q2_PC0358
Sandwell Metropolitan Borough Council,http://www.sandwell.gov.uk/info/200202/performance_and_spending/3233/government_procurement_cards,23-Jul-2021,Childrens Services,WILKO RETAIL LIMITED,Childrens Services,3,MISCELLANEOUS GENERAL MERCHANDISE,2021-22Q2_PC0359
Sandwell Metropolitan Borough Council,http://www.sandwell.gov.uk/info/200202/performance_and_spending/3233/government_procurement_cards,23-Jul-2021,Individual School Budgets With Inclusion,THE ENTERTAINER,Individual School Budgets With Inclusion,56,"GAME, TOY, AND HOBBY SHOPS",2021-22Q2_PC0360
Sandwell Metropolitan Borough Council,http://www.sandwell.gov.uk/info/200202/performance_and_spending/3233/government_procurement_cards,23-Jul-2021,Childrens Services,Amazon.co.uk DS9Q35TV5,Childrens Services,232.39,DIRECT MARKETING-OTHER DIRECT MARKETERS/NOT ELSEW.,2021-22Q2_PC0361
Sandwell Metropolitan Borough Council,http://www.sandwell.gov.uk/info/200202/performance_and_spending/3233/government_procurement_cards,23-Jul-2021,Corporate Management,OFFICE DEPOT UK,Corporate Management,54.66,STATIONERY/OFFICE SUPPLIES/PRINTING & WRITING PAP.,2021-22Q2_PC0362
Sandwell Metropolitan Borough Council,http://www.sandwell.gov.uk/info/200202/performance_and_spending/3233/government_procurement_cards,26-Jul-2021,Total Housing Revenue Account,MIDLAND JETTING SERVIC,Total Housing Revenue Account,647.2,CARPET AND UPHOLSTERY CLEANING,2021-22Q2_PC0363
Sandwell Metropolitan Borough Council,http://www.sandwell.gov.uk/info/200202/performance_and_spending/3233/government_procurement_cards,26-Jul-2021,Total Borough Economy,PCN,Neighbourhoods,60,GOVERNMENT SERVICES-NOT ELSEWHERE CLASSIFIED,2021-22Q2_PC0364
Sandwell Metropolitan Borough Council,http://www.sandwell.gov.uk/info/200202/performance_and_spending/3233/government_procurement_cards,26-Jul-2021,Total Borough Economy,POST OFFICE COUNTER,Neighbourhoods,4.85,POSTAL SERVICES-GOVERNMENT ONLY,2021-22Q2_PC0365
Sandwell Metropolitan Borough Council,http://www.sandwell.gov.uk/info/200202/performance_and_spending/3233/government_procurement_cards,26-Jul-2021,Total Borough Economy,SCREWFIX DIRECT,Total Adult Social Care,51.3,"BUILDING MATERIALS, LUMBER STORES",2021-22Q2_PC0366
Sandwell Metropolitan Borough Council,http://www.sandwell.gov.uk/info/200202/performance_and_spending/3233/government_procurement_cards,26-Jul-2021,Total Public Health,SAINSBURYS.CO.UK,Public Health,34,"GROCERY STORES, SUPERMARKETS",2021-22Q2_PC0367
Sandwell Metropolitan Borough Council,http://www.sandwell.gov.uk/info/200202/performance_and_spending/3233/government_procurement_cards,26-Jul-2021,Total Borough Economy,AMZNMKTPLACE AMAZON.CO,Neighbourhoods,80.39,MISCELLANEOUS AND SPECIALTY RETAIL STORES,2021-22Q2_PC0368
Sandwell Metropolitan Borough Council,http://www.sandwell.gov.uk/info/200202/performance_and_spending/3233/government_procurement_cards,26-Jul-2021,Total Borough Economy,Amazon.co.uk Q82JY0O95,Neighbourhoods,18.99,DIRECT MARKETING-OTHER DIRECT MARKETERS/NOT ELSEW.,2021-22Q2_PC0369
Sandwell Metropolitan Borough Council,http://www.sandwell.gov.uk/info/200202/performance_and_spending/3233/government_procurement_cards,26-Jul-2021,Total Borough Economy,AMZNMKTPLACE AMAZON.CO,Neighbourhoods,16.98,MISCELLANEOUS AND SPECIALTY RETAIL STORES,2021-22Q2_PC0370
Sandwell Metropolitan Borough Council,http://www.sandwell.gov.uk/info/200202/performance_and_spending/3233/government_procurement_cards,26-Jul-2021,Total Borough Economy,AMZNMktplace,Neighbourhoods,175.17,MISCELLANEOUS AND SPECIALTY RETAIL STORES,2021-22Q2_PC0371
Sandwell Metropolitan Borough Council,http://www.sandwell.gov.uk/info/200202/performance_and_spending/3233/government_procurement_cards,26-Jul-2021,Total Borough Economy,CENTRAL EVENT HIRE LTD,Neighbourhoods,236.56,PROFESSIONAL SERVICES-NOT ELSEWHERE CLASSIFIED,2021-22Q2_PC0372
Sandwell Metropolitan Borough Council,http://www.sandwell.gov.uk/info/200202/performance_and_spending/3233/government_procurement_cards,26-Jul-2021,Total Borough Economy,AMZNMKTPLACE AMAZON.CO,Neighbourhoods,12.35,MISCELLANEOUS AND SPECIALTY RETAIL STORES,2021-22Q2_PC0373
Sandwell Metropolitan Borough Council,http://www.sandwell.gov.uk/info/200202/performance_and_spending/3233/government_procurement_cards,26-Jul-2021,Total Borough Economy,AMZNMKTPLACE AMAZON.CO,Neighbourhoods,37.05,MISCELLANEOUS AND SPECIALTY RETAIL STORES,2021-22Q2_PC0374
Sandwell Metropolitan Borough Council,http://www.sandwell.gov.uk/info/200202/performance_and_spending/3233/government_procurement_cards,26-Jul-2021,Total Borough Economy,OFFICE DEPOT UK,Neighbourhoods,18.98,STATIONERY/OFFICE SUPPLIES/PRINTING & WRITING PAP.,2021-22Q2_PC0375
Sandwell Metropolitan Borough Council,http://www.sandwell.gov.uk/info/200202/performance_and_spending/3233/government_procurement_cards,26-Jul-2021,Total Borough Economy,AMZNMKTPLACE AMAZON.CO,Neighbourhoods,207.13,MISCELLANEOUS AND SPECIALTY RETAIL STORES,2021-22Q2_PC0376
Sandwell Metropolitan Borough Council,http://www.sandwell.gov.uk/info/200202/performance_and_spending/3233/government_procurement_cards,26-Jul-2021,Total Borough Economy,AMZNMktplace,Neighbourhoods,20.76,MISCELLANEOUS AND SPECIALTY RETAIL STORES,2021-22Q2_PC0377
Sandwell Metropolitan Borough Council,http://www.sandwell.gov.uk/info/200202/performance_and_spending/3233/government_procurement_cards,26-Jul-2021,Director of Law & Governance,AMZNMktplace,Assistant Chief Executive (Excl SIU),26.99,MISCELLANEOUS AND SPECIALTY RETAIL STORES,2021-22Q2_PC0378
Sandwell Metropolitan Borough Council,http://www.sandwell.gov.uk/info/200202/performance_and_spending/3233/government_procurement_cards,26-Jul-2021,Director of Law & Governance,WARLEY DRINKSTOP,Assistant Chief Executive (Excl SIU),5.98,"GROCERY STORES, SUPERMARKETS",2021-22Q2_PC0379
Sandwell Metropolitan Borough Council,http://www.sandwell.gov.uk/info/200202/performance_and_spending/3233/government_procurement_cards,26-Jul-2021,Total ASCHWB,OFFICE DEPOT UK,Total Adult Social Care,59.36,STATIONERY/OFFICE SUPPLIES/PRINTING & WRITING PAP.,2021-22Q2_PC0380
Sandwell Metropolitan Borough Council,http://www.sandwell.gov.uk/info/200202/performance_and_spending/3233/government_procurement_cards,26-Jul-2021,Total ASCHWB,AMZNMktplace,Total Adult Social Care,73.86,MISCELLANEOUS AND SPECIALTY RETAIL STORES,2021-22Q2_PC0381
Sandwell Metropolitan Borough Council,http://www.sandwell.gov.uk/info/200202/performance_and_spending/3233/government_procurement_cards,26-Jul-2021,Total ASCHWB,OFFICE DEPOT UK,Total Adult Social Care,86.27,STATIONERY/OFFICE SUPPLIES/PRINTING & WRITING PAP.,2021-22Q2_PC0382
Sandwell Metropolitan Borough Council,http://www.sandwell.gov.uk/info/200202/performance_and_spending/3233/government_procurement_cards,26-Jul-2021,Childrens Services,PEIRIANWAITH EIFIONYDD,Childrens Services,297,MISC/AUTO/AIRCRAFT/FARM EQUIP NOT ELSEWHERE CLASS,2021-22Q2_PC0383
Sandwell Metropolitan Borough Council,http://www.sandwell.gov.uk/info/200202/performance_and_spending/3233/government_procurement_cards,26-Jul-2021,Childrens Services,WWW.NISBETS.COM,Childrens Services,117.51,DIRECT MARKETING-CATALOG MERCHANTS,2021-22Q2_PC0384
Sandwell Metropolitan Borough Council,http://www.sandwell.gov.uk/info/200202/performance_and_spending/3233/government_procurement_cards,26-Jul-2021,Childrens Services,WILKO RETAIL LIMITED,Childrens Services,15.5,MISCELLANEOUS GENERAL MERCHANDISE,2021-22Q2_PC0385
Sandwell Metropolitan Borough Council,http://www.sandwell.gov.uk/info/200202/performance_and_spending/3233/government_procurement_cards,26-Jul-2021,Childrens Services,AMZNMktplace,Childrens Services,46.77,MISCELLANEOUS AND SPECIALTY RETAIL STORES,2021-22Q2_PC0386
Sandwell Metropolitan Borough Council,http://www.sandwell.gov.uk/info/200202/performance_and_spending/3233/government_procurement_cards,26-Jul-2021,Childrens Services,GRAHAM,Childrens Services,26.39,"BUILDING MATERIALS, LUMBER STORES",2021-22Q2_PC0387
Sandwell Metropolitan Borough Council,http://www.sandwell.gov.uk/info/200202/performance_and_spending/3233/government_procurement_cards,26-Jul-2021,Childrens Services,ALEXANDERS APPLIANCES,Childrens Services,1500,HOUSEHOLD APPLIANCE STORES,2021-22Q2_PC0388
Sandwell Metropolitan Borough Council,http://www.sandwell.gov.uk/info/200202/performance_and_spending/3233/government_procurement_cards,26-Jul-2021,Childrens Services,AMZNMKTPLACE AMAZON.CO,Childrens Services,2.25,MISCELLANEOUS AND SPECIALTY RETAIL STORES,2021-22Q2_PC0389
Sandwell Metropolitan Borough Council,http://www.sandwell.gov.uk/info/200202/performance_and_spending/3233/government_procurement_cards,26-Jul-2021,Childrens Services,CANALSIDE HOLDINGS LIM,Childrens Services,5.5,"GROCERY STORES, SUPERMARKETS",2021-22Q2_PC0390
Sandwell Metropolitan Borough Council,http://www.sandwell.gov.uk/info/200202/performance_and_spending/3233/government_procurement_cards,26-Jul-2021,Childrens Services,TESCO STORES 6481,Childrens Services,4.72,"GROCERY STORES, SUPERMARKETS",2021-22Q2_PC0391
Sandwell Metropolitan Borough Council,http://www.sandwell.gov.uk/info/200202/performance_and_spending/3233/government_procurement_cards,26-Jul-2021,Childrens Services,AMZNMKTPLACE AMAZON.CO,Childrens Services,44.94,MISCELLANEOUS AND SPECIALTY RETAIL STORES,2021-22Q2_PC0392
Sandwell Metropolitan Borough Council,http://www.sandwell.gov.uk/info/200202/performance_and_spending/3233/government_procurement_cards,26-Jul-2021,Individual School Budgets With Inclusion,AMZNMktplace,Individual School Budgets With Inclusion,45.49,MISCELLANEOUS AND SPECIALTY RETAIL STORES,2021-22Q2_PC0393
Sandwell Metropolitan Borough Council,http://www.sandwell.gov.uk/info/200202/performance_and_spending/3233/government_procurement_cards,26-Jul-2021,Childrens Services,AMZNMKTPLACE AMAZON.CO,Childrens Services,18.25,MISCELLANEOUS AND SPECIALTY RETAIL STORES,2021-22Q2_PC0394
Sandwell Metropolitan Borough Council,http://www.sandwell.gov.uk/info/200202/performance_and_spending/3233/government_procurement_cards,26-Jul-2021,Childrens Services,Amazon.co.uk IX89G1CW5,Childrens Services,29.9,DIRECT MARKETING-OTHER DIRECT MARKETERS/NOT ELSEW.,2021-22Q2_PC0395
Sandwell Metropolitan Borough Council,http://www.sandwell.gov.uk/info/200202/performance_and_spending/3233/government_procurement_cards,26-Jul-2021,Total Business Strategy & Change,FS  JotForm,Assistant Chief Executive (Excl SIU),17.11,DIGITAL GOODS SOFTWARE APPLICATIONS,2021-22Q2_PC0396
Sandwell Metropolitan Borough Council,http://www.sandwell.gov.uk/info/200202/performance_and_spending/3233/government_procurement_cards,27-Jul-2021,Total Housing Revenue Account,Amazon.co.uk UZ3BU2N55,Total Housing Revenue Account,629,DIRECT MARKETING-OTHER DIRECT MARKETERS/NOT ELSEW.,2021-22Q2_PC0397
Sandwell Metropolitan Borough Council,http://www.sandwell.gov.uk/info/200202/performance_and_spending/3233/government_procurement_cards,27-Jul-2021,Total Borough Economy,AMZNMktplace,Neighbourhoods,44.97,MISCELLANEOUS AND SPECIALTY RETAIL STORES,2021-22Q2_PC0398
Sandwell Metropolitan Borough Council,http://www.sandwell.gov.uk/info/200202/performance_and_spending/3233/government_procurement_cards,27-Jul-2021,Total Borough Economy,Amazon.co.uk 2C26J1EO5,Neighbourhoods,12.51,DIRECT MARKETING-OTHER DIRECT MARKETERS/NOT ELSEW.,2021-22Q2_PC0399
Sandwell Metropolitan Borough Council,http://www.sandwell.gov.uk/info/200202/performance_and_spending/3233/government_procurement_cards,27-Jul-2021,Total Borough Economy,SP   FLU SUPPLIES,Neighbourhoods,48.37,COMPUTER SOFTWARE STORES,2021-22Q2_PC0400
Sandwell Metropolitan Borough Council,http://www.sandwell.gov.uk/info/200202/performance_and_spending/3233/government_procurement_cards,27-Jul-2021,Total Borough Economy,AMZNMktplace,Neighbourhoods,9.69,MISCELLANEOUS AND SPECIALTY RETAIL STORES,2021-22Q2_PC0401
Sandwell Metropolitan Borough Council,http://www.sandwell.gov.uk/info/200202/performance_and_spending/3233/government_procurement_cards,27-Jul-2021,Total Borough Economy,WM MORRISONS STORE,Neighbourhoods,7.25,"GROCERY STORES, SUPERMARKETS",2021-22Q2_PC0402
Sandwell Metropolitan Borough Council,http://www.sandwell.gov.uk/info/200202/performance_and_spending/3233/government_procurement_cards,27-Jul-2021,Regeneration & Growth,AMZNMktplace,Regeneration And The Economy,33.18,MISCELLANEOUS AND SPECIALTY RETAIL STORES,2021-22Q2_PC0403
Sandwell Metropolitan Borough Council,http://www.sandwell.gov.uk/info/200202/performance_and_spending/3233/government_procurement_cards,27-Jul-2021,Total Borough Economy,Amazon Prime ST3IV4X65,Neighbourhoods,7.99,DIRECT MARKETING-CONTINUITY/SUBSCRIPTION MERCHANTS,2021-22Q2_PC0404
Sandwell Metropolitan Borough Council,http://www.sandwell.gov.uk/info/200202/performance_and_spending/3233/government_procurement_cards,27-Jul-2021,Total Borough Economy,WWW.PARRS.CO.UK,Neighbourhoods,130.8,HARDWARE EQUIPMENT AND SUPPLIES,2021-22Q2_PC0405
Sandwell Metropolitan Borough Council,http://www.sandwell.gov.uk/info/200202/performance_and_spending/3233/government_procurement_cards,27-Jul-2021,Childrens Services,ASDA STORES 4253,Childrens Services,3.8,"GROCERY STORES, SUPERMARKETS",2021-22Q2_PC0406
Sandwell Metropolitan Borough Council,http://www.sandwell.gov.uk/info/200202/performance_and_spending/3233/government_procurement_cards,27-Jul-2021,Childrens Services,SCREWFIX DIRECT,Childrens Services,7.88,"BUILDING MATERIALS, LUMBER STORES",2021-22Q2_PC0407
Sandwell Metropolitan Borough Council,http://www.sandwell.gov.uk/info/200202/performance_and_spending/3233/government_procurement_cards,27-Jul-2021,Childrens Services,AMZNMKTPLACE AMAZON.CO,Childrens Services,32.67,MISCELLANEOUS AND SPECIALTY RETAIL STORES,2021-22Q2_PC0408
Sandwell Metropolitan Borough Council,http://www.sandwell.gov.uk/info/200202/performance_and_spending/3233/government_procurement_cards,27-Jul-2021,Childrens Services,FRS COUNTRYWEAR LTD,Childrens Services,56.37,MEN'S AND WOMEN'S CLOTHING STORES,2021-22Q2_PC0409
Sandwell Metropolitan Borough Council,http://www.sandwell.gov.uk/info/200202/performance_and_spending/3233/government_procurement_cards,27-Jul-2021,Childrens Services,ASDA STORE,Childrens Services,9.85,"GROCERY STORES, SUPERMARKETS",2021-22Q2_PC0410
Sandwell Metropolitan Borough Council,http://www.sandwell.gov.uk/info/200202/performance_and_spending/3233/government_procurement_cards,27-Jul-2021,Childrens Services,AMZNMktplace,Childrens Services,198.96,MISCELLANEOUS AND SPECIALTY RETAIL STORES,2021-22Q2_PC0411
Sandwell Metropolitan Borough Council,http://www.sandwell.gov.uk/info/200202/performance_and_spending/3233/government_procurement_cards,27-Jul-2021,Director of Law & Governance,ASDA STORES,Dead SeRCOP,13.93,"GROCERY STORES, SUPERMARKETS",2021-22Q2_PC0412
Sandwell Metropolitan Borough Council,http://www.sandwell.gov.uk/info/200202/performance_and_spending/3233/government_procurement_cards,27-Jul-2021,Director of Law & Governance,CARTRIDGEPEOPLE.COM,Assistant Chief Executive (Excl SIU),42.85,STATIONERY/OFFICE SUPPLIES/PRINTING & WRITING PAP.,2021-22Q2_PC0413
Sandwell Metropolitan Borough Council,http://www.sandwell.gov.uk/info/200202/performance_and_spending/3233/government_procurement_cards,27-Jul-2021,Director of Law & Governance,OFFICE DEPOT UK,Assistant Chief Executive (Excl SIU),49.98,STATIONERY/OFFICE SUPPLIES/PRINTING & WRITING PAP.,2021-22Q2_PC0414
Sandwell Metropolitan Borough Council,http://www.sandwell.gov.uk/info/200202/performance_and_spending/3233/government_procurement_cards,27-Jul-2021,FINANCE (Inc SIU),SAINSBURYS SACAT0558,Assistant Chief Executive (Excl SIU),45.2,"GROCERY STORES, SUPERMARKETS",2021-22Q2_PC0415
Sandwell Metropolitan Borough Council,http://www.sandwell.gov.uk/info/200202/performance_and_spending/3233/government_procurement_cards,28-Jul-2021,Total Housing Revenue Account,BOING RAPID SECURE LTD,Total Housing Revenue Account,210,BUSINESS SERVICES-NOT ELSEWHERE CLASSIFIED,2021-22Q2_PC0416
Sandwell Metropolitan Borough Council,http://www.sandwell.gov.uk/info/200202/performance_and_spending/3233/government_procurement_cards,28-Jul-2021,Total Borough Economy,PAYPAL  THS LTD,Neighbourhoods,4.27,VARIETY STORES,2021-22Q2_PC0417
Sandwell Metropolitan Borough Council,http://www.sandwell.gov.uk/info/200202/performance_and_spending/3233/government_procurement_cards,28-Jul-2021,Total Borough Economy,AMZNMktplace,Neighbourhoods,7.99,MISCELLANEOUS AND SPECIALTY RETAIL STORES,2021-22Q2_PC0418
Sandwell Metropolitan Borough Council,http://www.sandwell.gov.uk/info/200202/performance_and_spending/3233/government_procurement_cards,28-Jul-2021,Total Borough Economy,WWW.GOMPELS.CO.UK,Neighbourhoods,37.34,INDUSTRIAL SUPPLIES NOT ELSEWHERE CLASSIFIED,2021-22Q2_PC0419
Sandwell Metropolitan Borough Council,http://www.sandwell.gov.uk/info/200202/performance_and_spending/3233/government_procurement_cards,28-Jul-2021,Total Borough Economy,POUNDLAND 1509,Neighbourhoods,4,DISCOUNT STORES,2021-22Q2_PC0420
Sandwell Metropolitan Borough Council,http://www.sandwell.gov.uk/info/200202/performance_and_spending/3233/government_procurement_cards,28-Jul-2021,Housing & Assets Total,WWW.PROFESSIONALBOOKS.,Neighbourhoods,61.98,BOOK STORES,2021-22Q2_PC0421
Sandwell Metropolitan Borough Council,http://www.sandwell.gov.uk/info/200202/performance_and_spending/3233/government_procurement_cards,28-Jul-2021,Regeneration & Growth,TVLICENSING.CO.UK,Regeneration And The Economy,159,"CONSULTING, MANAGEMENT, AND PUBLIC RELATIONS SVCS",2021-22Q2_PC0422
Sandwell Metropolitan Borough Council,http://www.sandwell.gov.uk/info/200202/performance_and_spending/3233/government_procurement_cards,28-Jul-2021,Regeneration & Growth,TVLICENSING.CO.UK,Regeneration And The Economy,159,"CONSULTING, MANAGEMENT, AND PUBLIC RELATIONS SVCS",2021-22Q2_PC0423
Sandwell Metropolitan Borough Council,http://www.sandwell.gov.uk/info/200202/performance_and_spending/3233/government_procurement_cards,28-Jul-2021,Total Borough Economy,AMZNMktplace,Neighbourhoods,29.98,MISCELLANEOUS AND SPECIALTY RETAIL STORES,2021-22Q2_PC0424
Sandwell Metropolitan Borough Council,http://www.sandwell.gov.uk/info/200202/performance_and_spending/3233/government_procurement_cards,28-Jul-2021,Total ASCHWB,MATALAN,Total Adult Social Care,9,MEN'S AND WOMEN'S CLOTHING STORES,2021-22Q2_PC0425
Sandwell Metropolitan Borough Council,http://www.sandwell.gov.uk/info/200202/performance_and_spending/3233/government_procurement_cards,28-Jul-2021,Childrens Services,ODEON CINEMAS,Childrens Services,65,MOTION PICTURE THEATERS,2021-22Q2_PC0426
Sandwell Metropolitan Borough Council,http://www.sandwell.gov.uk/info/200202/performance_and_spending/3233/government_procurement_cards,28-Jul-2021,Childrens Services,ODEON CINEMAS,Childrens Services,39,MOTION PICTURE THEATERS,2021-22Q2_PC0427
Sandwell Metropolitan Borough Council,http://www.sandwell.gov.uk/info/200202/performance_and_spending/3233/government_procurement_cards,28-Jul-2021,Director of Law & Governance,PP LEGAL ACTION GROUP,Assistant Chief Executive (Excl SIU),215,"ORGANIZATIONS, CHARITABLE AND SOCIAL SERVICES",2021-22Q2_PC0428
Sandwell Metropolitan Borough Council,http://www.sandwell.gov.uk/info/200202/performance_and_spending/3233/government_procurement_cards,28-Jul-2021,Total Business Strategy & Change,AMZNMktplace,Assistant Chief Executive (Excl SIU),17.98,MISCELLANEOUS AND SPECIALTY RETAIL STORES,2021-22Q2_PC0429
Sandwell Metropolitan Borough Council,http://www.sandwell.gov.uk/info/200202/performance_and_spending/3233/government_procurement_cards,29-Jul-2021,Total Housing Revenue Account,Amazon Prime MR3YI6IJ5,Total Housing Revenue Account,7.99,DIRECT MARKETING-CONTINUITY/SUBSCRIPTION MERCHANTS,2021-22Q2_PC0430
Sandwell Metropolitan Borough Council,http://www.sandwell.gov.uk/info/200202/performance_and_spending/3233/government_procurement_cards,29-Jul-2021,Total Housing Revenue Account,POST OFFICE COUNTER,Total Housing Revenue Account,246.5,POSTAL SERVICES-GOVERNMENT ONLY,2021-22Q2_PC0431
Sandwell Metropolitan Borough Council,http://www.sandwell.gov.uk/info/200202/performance_and_spending/3233/government_procurement_cards,29-Jul-2021,Total Housing Revenue Account,AMZNMKTPLACE AMAZON.CO,Total Housing Revenue Account,29.98,MISCELLANEOUS AND SPECIALTY RETAIL STORES,2021-22Q2_PC0432
Sandwell Metropolitan Borough Council,http://www.sandwell.gov.uk/info/200202/performance_and_spending/3233/government_procurement_cards,29-Jul-2021,Total Borough Economy,Amazon.co.uk 7K7VN6125,Neighbourhoods,91.33,DIRECT MARKETING-OTHER DIRECT MARKETERS/NOT ELSEW.,2021-22Q2_PC0433
Sandwell Metropolitan Borough Council,http://www.sandwell.gov.uk/info/200202/performance_and_spending/3233/government_procurement_cards,29-Jul-2021,Total Borough Economy,AMZNMktplace,Neighbourhoods,161.94,MISCELLANEOUS AND SPECIALTY RETAIL STORES,2021-22Q2_PC0434
Sandwell Metropolitan Borough Council,http://www.sandwell.gov.uk/info/200202/performance_and_spending/3233/government_procurement_cards,29-Jul-2021,Housing & Assets Total,WWW.PREMIERCATERINGEQU,Neighbourhoods,112.8,ELECTRICAL PARTS AND EQUIPMENT,2021-22Q2_PC0435
Sandwell Metropolitan Borough Council,http://www.sandwell.gov.uk/info/200202/performance_and_spending/3233/government_procurement_cards,29-Jul-2021,Total Borough Economy,421 WEST BROMWICH,Neighbourhoods,232,"EQUIPMENT RENTAL&LEASING SVS, FURNTURE/TOOL RENTAL",2021-22Q2_PC0436
Sandwell Metropolitan Borough Council,http://www.sandwell.gov.uk/info/200202/performance_and_spending/3233/government_procurement_cards,29-Jul-2021,Total Borough Economy,AMZNMktplace,Neighbourhoods,3.64,MISCELLANEOUS AND SPECIALTY RETAIL STORES,2021-22Q2_PC0437
Sandwell Metropolitan Borough Council,http://www.sandwell.gov.uk/info/200202/performance_and_spending/3233/government_procurement_cards,29-Jul-2021,Total Borough Economy,TIMPSON LTD,Neighbourhoods,22,MISCELLANEOUS AND SPECIALTY RETAIL STORES,2021-22Q2_PC0438
Sandwell Metropolitan Borough Council,http://www.sandwell.gov.uk/info/200202/performance_and_spending/3233/government_procurement_cards,29-Jul-2021,Total Borough Economy,AMZNMKTPLACE AMAZON.CO,Neighbourhoods,11.1,MISCELLANEOUS AND SPECIALTY RETAIL STORES,2021-22Q2_PC0439
Sandwell Metropolitan Borough Council,http://www.sandwell.gov.uk/info/200202/performance_and_spending/3233/government_procurement_cards,29-Jul-2021,Total Borough Economy,AMZNMKTPLACE AMAZON.CO,Neighbourhoods,47.88,MISCELLANEOUS AND SPECIALTY RETAIL STORES,2021-22Q2_PC0440
Sandwell Metropolitan Borough Council,http://www.sandwell.gov.uk/info/200202/performance_and_spending/3233/government_procurement_cards,29-Jul-2021,Childrens Services,WWW.JUST-EAT.CO.UK,Childrens Services,66,"EATING PLACES, RESTAURANTS",2021-22Q2_PC0441
Sandwell Metropolitan Borough Council,http://www.sandwell.gov.uk/info/200202/performance_and_spending/3233/government_procurement_cards,29-Jul-2021,Housing & Assets Total,TRAVELODGE,Neighbourhoods,519.09,TRAVELODGE,2021-22Q2_PC0442
Sandwell Metropolitan Borough Council,http://www.sandwell.gov.uk/info/200202/performance_and_spending/3233/government_procurement_cards,29-Jul-2021,Housing & Assets Total,WWW.VICARAGELODGE.COM,Neighbourhoods,1050,"LODGING-HOTELS,MOTELS,RESORTS-NOT CLASSIFIED",2021-22Q2_PC0443
Sandwell Metropolitan Borough Council,http://www.sandwell.gov.uk/info/200202/performance_and_spending/3233/government_procurement_cards,29-Jul-2021,Director of Law & Governance,OFFICE DEPOT UK,Assistant Chief Executive (Excl SIU),22.79,STATIONERY/OFFICE SUPPLIES/PRINTING & WRITING PAP.,2021-22Q2_PC0444
Sandwell Metropolitan Borough Council,http://www.sandwell.gov.uk/info/200202/performance_and_spending/3233/government_procurement_cards,29-Jul-2021,Director of Law & Governance,VIKING UK,Assistant Chief Executive (Excl SIU),100.73,STATIONERY/OFFICE SUPPLIES/PRINTING & WRITING PAP.,2021-22Q2_PC0445
Sandwell Metropolitan Borough Council,http://www.sandwell.gov.uk/info/200202/performance_and_spending/3233/government_procurement_cards,29-Jul-2021,FINANCE (Inc SIU),SAINSBURYS SACAT0558,Assistant Chief Executive (Excl SIU),3,"GROCERY STORES, SUPERMARKETS",2021-22Q2_PC0446
Sandwell Metropolitan Borough Council,http://www.sandwell.gov.uk/info/200202/performance_and_spending/3233/government_procurement_cards,29-Jul-2021,FINANCE (Inc SIU),SAINSBURYS SACAT0558,Assistant Chief Executive (Excl SIU),4.5,"GROCERY STORES, SUPERMARKETS",2021-22Q2_PC0447
Sandwell Metropolitan Borough Council,http://www.sandwell.gov.uk/info/200202/performance_and_spending/3233/government_procurement_cards,29-Jul-2021,FINANCE (Inc SIU),SAINSBURYS SACAT0558,Assistant Chief Executive (Excl SIU),3.5,"GROCERY STORES, SUPERMARKETS",2021-22Q2_PC0448
Sandwell Metropolitan Borough Council,http://www.sandwell.gov.uk/info/200202/performance_and_spending/3233/government_procurement_cards,30-Jul-2021,Total Borough Economy,AMZNMktplace,Neighbourhoods,4.94,MISCELLANEOUS AND SPECIALTY RETAIL STORES,2021-22Q2_PC0449
Sandwell Metropolitan Borough Council,http://www.sandwell.gov.uk/info/200202/performance_and_spending/3233/government_procurement_cards,30-Jul-2021,Regeneration & Growth,SMS CONNECTIONS,Regeneration And The Economy,994.51,"FUEL DEALERS-COAL, FUEL OIL, LIQ PETROLEUM, WOOD",2021-22Q2_PC0450
Sandwell Metropolitan Borough Council,http://www.sandwell.gov.uk/info/200202/performance_and_spending/3233/government_procurement_cards,30-Jul-2021,FINANCE (Inc SIU),Amazon.co.uk ST2519RZ5,Total Adult Social Care,24.16,DIRECT MARKETING-OTHER DIRECT MARKETERS/NOT ELSEW.,2021-22Q2_PC0451
Sandwell Metropolitan Borough Council,http://www.sandwell.gov.uk/info/200202/performance_and_spending/3233/government_procurement_cards,30-Jul-2021,Total ASCHWB,AMZNMktplace,Total Adult Social Care,63.17,MISCELLANEOUS AND SPECIALTY RETAIL STORES,2021-22Q2_PC0452
Sandwell Metropolitan Borough Council,http://www.sandwell.gov.uk/info/200202/performance_and_spending/3233/government_procurement_cards,30-Jul-2021,Total ASCHWB,AMZNMKTPLACE AMAZON.CO,Total Adult Social Care,2.59,MISCELLANEOUS AND SPECIALTY RETAIL STORES,2021-22Q2_PC0453
Sandwell Metropolitan Borough Council,http://www.sandwell.gov.uk/info/200202/performance_and_spending/3233/government_procurement_cards,30-Jul-2021,Total ASCHWB,AMZNMktplace,Total Adult Social Care,10.48,MISCELLANEOUS AND SPECIALTY RETAIL STORES,2021-22Q2_PC0454
Sandwell Metropolitan Borough Council,http://www.sandwell.gov.uk/info/200202/performance_and_spending/3233/government_procurement_cards,30-Jul-2021,Total ASCHWB,AMZNMktplace,Total Adult Social Care,79.99,MISCELLANEOUS AND SPECIALTY RETAIL STORES,2021-22Q2_PC0455
Sandwell Metropolitan Borough Council,http://www.sandwell.gov.uk/info/200202/performance_and_spending/3233/government_procurement_cards,30-Jul-2021,Childrens Services,J VAN VLIET BIRMINGHAM,Childrens Services,34.98,MISCELLANEOUS GENERAL MERCHANDISE,2021-22Q2_PC0456
Sandwell Metropolitan Borough Council,http://www.sandwell.gov.uk/info/200202/performance_and_spending/3233/government_procurement_cards,30-Jul-2021,Director of Law & Governance,OFFICE DEPOT UK,Assistant Chief Executive (Excl SIU),49.98,STATIONERY/OFFICE SUPPLIES/PRINTING & WRITING PAP.,2021-22Q2_PC0457
Sandwell Metropolitan Borough Council,http://www.sandwell.gov.uk/info/200202/performance_and_spending/3233/government_procurement_cards,02-Aug-2021,Total Housing Revenue Account,Staffordshire Builders,Total Housing Revenue Account,17.15,"BUILDING MATERIALS, LUMBER STORES",2021-22Q2_PC0458
Sandwell Metropolitan Borough Council,http://www.sandwell.gov.uk/info/200202/performance_and_spending/3233/government_procurement_cards,02-Aug-2021,Total Housing Revenue Account,OFFICE DEPOT UK,Total Housing Revenue Account,406.8,STATIONERY/OFFICE SUPPLIES/PRINTING & WRITING PAP.,2021-22Q2_PC0459
Sandwell Metropolitan Borough Council,http://www.sandwell.gov.uk/info/200202/performance_and_spending/3233/government_procurement_cards,02-Aug-2021,Childrens Services,WWW.WMCA.ORG.UK,Childrens Services,69.6,"TRANSPRTN-SUBRBN & LOCAL COMTR PSNGR, INCL FERRIES",2021-22Q2_PC0460
Sandwell Metropolitan Borough Council,http://www.sandwell.gov.uk/info/200202/performance_and_spending/3233/government_procurement_cards,02-Aug-2021,Housing & Assets Total,AMZNMKTPLACE AMAZON.CO,Neighbourhoods,147.99,MISCELLANEOUS AND SPECIALTY RETAIL STORES,2021-22Q2_PC0461
Sandwell Metropolitan Borough Council,http://www.sandwell.gov.uk/info/200202/performance_and_spending/3233/government_procurement_cards,02-Aug-2021,Total Public Health,FACEBK 5NYWK6PNK2,Public Health,129.71,ADVERTISING SERVICES,2021-22Q2_PC0462
Sandwell Metropolitan Borough Council,http://www.sandwell.gov.uk/info/200202/performance_and_spending/3233/government_procurement_cards,02-Aug-2021,Total Borough Economy,OFFICE DEPOT UK,Neighbourhoods,45.5,STATIONERY/OFFICE SUPPLIES/PRINTING & WRITING PAP.,2021-22Q2_PC0463
Sandwell Metropolitan Borough Council,http://www.sandwell.gov.uk/info/200202/performance_and_spending/3233/government_procurement_cards,02-Aug-2021,Total Borough Economy,AMZNMktplace,Neighbourhoods,31.97,MISCELLANEOUS AND SPECIALTY RETAIL STORES,2021-22Q2_PC0464
Sandwell Metropolitan Borough Council,http://www.sandwell.gov.uk/info/200202/performance_and_spending/3233/government_procurement_cards,02-Aug-2021,Total Borough Economy,LIONHEART REPLICAS,Neighbourhoods,49.5,ANTIQUE REPRODUCTION STORES,2021-22Q2_PC0465
Sandwell Metropolitan Borough Council,http://www.sandwell.gov.uk/info/200202/performance_and_spending/3233/government_procurement_cards,02-Aug-2021,Total Borough Economy,FACEBK HHXE46KKY2,Neighbourhoods,25,ADVERTISING SERVICES,2021-22Q2_PC0466
Sandwell Metropolitan Borough Council,http://www.sandwell.gov.uk/info/200202/performance_and_spending/3233/government_procurement_cards,02-Aug-2021,Regeneration & Growth,AMZNMktplace,Regeneration And The Economy,147.99,MISCELLANEOUS AND SPECIALTY RETAIL STORES,2021-22Q2_PC0467
Sandwell Metropolitan Borough Council,http://www.sandwell.gov.uk/info/200202/performance_and_spending/3233/government_procurement_cards,02-Aug-2021,Regeneration & Growth,AMZNMKTPLACE AMAZON.CO,Regeneration And The Economy,147.99,MISCELLANEOUS AND SPECIALTY RETAIL STORES,2021-22Q2_PC0468
Sandwell Metropolitan Borough Council,http://www.sandwell.gov.uk/info/200202/performance_and_spending/3233/government_procurement_cards,02-Aug-2021,Regeneration & Growth,AMZNMktplace,Regeneration And The Economy,6.49,MISCELLANEOUS AND SPECIALTY RETAIL STORES,2021-22Q2_PC0469
Sandwell Metropolitan Borough Council,http://www.sandwell.gov.uk/info/200202/performance_and_spending/3233/government_procurement_cards,02-Aug-2021,Regeneration & Growth,AMZNMktplace,Regeneration And The Economy,6.49,MISCELLANEOUS AND SPECIALTY RETAIL STORES,2021-22Q2_PC0470
Sandwell Metropolitan Borough Council,http://www.sandwell.gov.uk/info/200202/performance_and_spending/3233/government_procurement_cards,02-Aug-2021,Regeneration & Growth,AMZNMKTPLACE AMAZON.CO,Regeneration And The Economy,6.49,MISCELLANEOUS AND SPECIALTY RETAIL STORES,2021-22Q2_PC0471
Sandwell Metropolitan Borough Council,http://www.sandwell.gov.uk/info/200202/performance_and_spending/3233/government_procurement_cards,02-Aug-2021,Regeneration & Growth,AMZNMktplace,Regeneration And The Economy,147.99,MISCELLANEOUS AND SPECIALTY RETAIL STORES,2021-22Q2_PC0472
Sandwell Metropolitan Borough Council,http://www.sandwell.gov.uk/info/200202/performance_and_spending/3233/government_procurement_cards,02-Aug-2021,Total Borough Economy,OFFICE DEPOT UK,Neighbourhoods,47.32,STATIONERY/OFFICE SUPPLIES/PRINTING & WRITING PAP.,2021-22Q2_PC0473
Sandwell Metropolitan Borough Council,http://www.sandwell.gov.uk/info/200202/performance_and_spending/3233/government_procurement_cards,02-Aug-2021,Regeneration & Growth,OFFICE DEPOT UK,Regeneration And The Economy,4.86,STATIONERY/OFFICE SUPPLIES/PRINTING & WRITING PAP.,2021-22Q2_PC0474
Sandwell Metropolitan Borough Council,http://www.sandwell.gov.uk/info/200202/performance_and_spending/3233/government_procurement_cards,02-Aug-2021,Regeneration & Growth,Flextronics,Regeneration And The Economy,410.68,COMPUTER MAIN./REPAIR/SERVICES NOT ELSEWHERE CLASS,2021-22Q2_PC0475
Sandwell Metropolitan Borough Council,http://www.sandwell.gov.uk/info/200202/performance_and_spending/3233/government_procurement_cards,02-Aug-2021,Total ASCHWB,AMZNMKTPLACE AMAZON.CO,Total Adult Social Care,23.37,MISCELLANEOUS AND SPECIALTY RETAIL STORES,2021-22Q2_PC0476
Sandwell Metropolitan Borough Council,http://www.sandwell.gov.uk/info/200202/performance_and_spending/3233/government_procurement_cards,02-Aug-2021,Total ASCHWB,AMZNMktplace,Total Adult Social Care,102.5,MISCELLANEOUS AND SPECIALTY RETAIL STORES,2021-22Q2_PC0477
Sandwell Metropolitan Borough Council,http://www.sandwell.gov.uk/info/200202/performance_and_spending/3233/government_procurement_cards,02-Aug-2021,Total ASCHWB,AMZNMKTPLACE AMAZON.CO,Total Adult Social Care,20.65,MISCELLANEOUS AND SPECIALTY RETAIL STORES,2021-22Q2_PC0478
Sandwell Metropolitan Borough Council,http://www.sandwell.gov.uk/info/200202/performance_and_spending/3233/government_procurement_cards,02-Aug-2021,Housing & Assets Total,AMZNMKTPLACE AMAZON.CO,Neighbourhoods,56.83,MISCELLANEOUS AND SPECIALTY RETAIL STORES,2021-22Q2_PC0479
Sandwell Metropolitan Borough Council,http://www.sandwell.gov.uk/info/200202/performance_and_spending/3233/government_procurement_cards,02-Aug-2021,Housing & Assets Total,ARGOS LTD,Neighbourhoods,108.95,DISCOUNT STORES,2021-22Q2_PC0480
Sandwell Metropolitan Borough Council,http://www.sandwell.gov.uk/info/200202/performance_and_spending/3233/government_procurement_cards,02-Aug-2021,Housing & Assets Total,PARAMOUNT BLINDS,Neighbourhoods,300,"DRAPERY, UPOLSTERY, AND WINDOW COVERINGS STORES",2021-22Q2_PC0481
Sandwell Metropolitan Borough Council,http://www.sandwell.gov.uk/info/200202/performance_and_spending/3233/government_procurement_cards,02-Aug-2021,Childrens Services,OFFICE DEPOT UK,Childrens Services,13.49,STATIONERY/OFFICE SUPPLIES/PRINTING & WRITING PAP.,2021-22Q2_PC0482
Sandwell Metropolitan Borough Council,http://www.sandwell.gov.uk/info/200202/performance_and_spending/3233/government_procurement_cards,02-Aug-2021,Childrens Services,FACEBK  YJFAG4BW92,Childrens Services,40,ADVERTISING SERVICES,2021-22Q2_PC0483
Sandwell Metropolitan Borough Council,http://www.sandwell.gov.uk/info/200202/performance_and_spending/3233/government_procurement_cards,03-Aug-2021,Total Borough Economy,D4DRIVERS,Neighbourhoods,55,"DOCTORS, (NOT ELSEWHERE CLASSIFIED)",2021-22Q2_PC0484
Sandwell Metropolitan Borough Council,http://www.sandwell.gov.uk/info/200202/performance_and_spending/3233/government_procurement_cards,03-Aug-2021,Total Public Health,FACEBK 2PJ5D67NK2,Public Health,77.13,ADVERTISING SERVICES,2021-22Q2_PC0485
Sandwell Metropolitan Borough Council,http://www.sandwell.gov.uk/info/200202/performance_and_spending/3233/government_procurement_cards,03-Aug-2021,Total Borough Economy,Etsy.com - WildGood,Neighbourhoods,93.92,ACCESSORY AND APPAREL STORES-MISCELLANEOUS,2021-22Q2_PC0486
Sandwell Metropolitan Borough Council,http://www.sandwell.gov.uk/info/200202/performance_and_spending/3233/government_procurement_cards,03-Aug-2021,Total Borough Economy,AMZ Amazon.co.uk,Neighbourhoods,-7.5,DIRECT MARKETING-OTHER DIRECT MARKETERS/NOT ELSEW.,2021-22Q2_PC0487
Sandwell Metropolitan Borough Council,http://www.sandwell.gov.uk/info/200202/performance_and_spending/3233/government_procurement_cards,03-Aug-2021,Total Borough Economy,SAINSBURYS 0722,Neighbourhoods,9.5,"GROCERY STORES, SUPERMARKETS",2021-22Q2_PC0488
Sandwell Metropolitan Borough Council,http://www.sandwell.gov.uk/info/200202/performance_and_spending/3233/government_procurement_cards,03-Aug-2021,Total Borough Economy,FACEBK Y6HZ56KKY2,Neighbourhoods,1.82,ADVERTISING SERVICES,2021-22Q2_PC0489
Sandwell Metropolitan Borough Council,http://www.sandwell.gov.uk/info/200202/performance_and_spending/3233/government_procurement_cards,03-Aug-2021,Total Borough Economy,The Plastic Box Compan,Neighbourhoods,42.3,INDUSTRIAL SUPPLIES NOT ELSEWHERE CLASSIFIED,2021-22Q2_PC0490
Sandwell Metropolitan Borough Council,http://www.sandwell.gov.uk/info/200202/performance_and_spending/3233/government_procurement_cards,03-Aug-2021,Director of Law & Governance,SP   DESKSTOR,Assistant Chief Executive (Excl SIU),168.26,COMPUTER SOFTWARE STORES,2021-22Q2_PC0491
Sandwell Metropolitan Borough Council,http://www.sandwell.gov.uk/info/200202/performance_and_spending/3233/government_procurement_cards,03-Aug-2021,Director of Law & Governance,SP   DESKSTOR,Assistant Chief Executive (Excl SIU),168.26,COMPUTER SOFTWARE STORES,2021-22Q2_PC0492
Sandwell Metropolitan Borough Council,http://www.sandwell.gov.uk/info/200202/performance_and_spending/3233/government_procurement_cards,03-Aug-2021,FINANCE (Inc SIU),SP   DESKSTOR,Assistant Chief Executive (Excl SIU),216.4,COMPUTER SOFTWARE STORES,2021-22Q2_PC0493
Sandwell Metropolitan Borough Council,http://www.sandwell.gov.uk/info/200202/performance_and_spending/3233/government_procurement_cards,03-Aug-2021,Total Business Strategy & Change,Google,Assistant Chief Executive (Excl SIU),174.15,COMPUTER NETWORK/INFORMATION SERVICES,2021-22Q2_PC0494
Sandwell Metropolitan Borough Council,http://www.sandwell.gov.uk/info/200202/performance_and_spending/3233/government_procurement_cards,04-Aug-2021,Total Housing Revenue Account,DAVENPORT BURGESS,Total Housing Revenue Account,308.4,"HAT CLEANING SHOPS, SHOE REPAIR SHOPS, SHOE SHINE",2021-22Q2_PC0495
Sandwell Metropolitan Borough Council,http://www.sandwell.gov.uk/info/200202/performance_and_spending/3233/government_procurement_cards,04-Aug-2021,Total Housing Revenue Account,AMZNMktplace,Total Housing Revenue Account,37.99,MISCELLANEOUS AND SPECIALTY RETAIL STORES,2021-22Q2_PC0496
Sandwell Metropolitan Borough Council,http://www.sandwell.gov.uk/info/200202/performance_and_spending/3233/government_procurement_cards,04-Aug-2021,Total Housing Revenue Account,AMZNMktplace,Total Housing Revenue Account,24.99,MISCELLANEOUS AND SPECIALTY RETAIL STORES,2021-22Q2_PC0497
Sandwell Metropolitan Borough Council,http://www.sandwell.gov.uk/info/200202/performance_and_spending/3233/government_procurement_cards,04-Aug-2021,Total Borough Economy,OFFICE DEPOT UK,Total Adult Social Care,91.49,STATIONERY/OFFICE SUPPLIES/PRINTING & WRITING PAP.,2021-22Q2_PC0498
Sandwell Metropolitan Borough Council,http://www.sandwell.gov.uk/info/200202/performance_and_spending/3233/government_procurement_cards,04-Aug-2021,Total Borough Economy,ALDI 94 772,Neighbourhoods,8.9,"GROCERY STORES, SUPERMARKETS",2021-22Q2_PC0499
Sandwell Metropolitan Borough Council,http://www.sandwell.gov.uk/info/200202/performance_and_spending/3233/government_procurement_cards,04-Aug-2021,Total Borough Economy,PODBEAN.COM,Neighbourhoods,28.92,COMPUTER SOFTWARE STORES,2021-22Q2_PC0500
Sandwell Metropolitan Borough Council,http://www.sandwell.gov.uk/info/200202/performance_and_spending/3233/government_procurement_cards,04-Aug-2021,FINANCE (Inc SIU),AMZNMktplace,Assistant Chief Executive (Excl SIU),23.98,MISCELLANEOUS AND SPECIALTY RETAIL STORES,2021-22Q2_PC0501
Sandwell Metropolitan Borough Council,http://www.sandwell.gov.uk/info/200202/performance_and_spending/3233/government_procurement_cards,04-Aug-2021,Total Borough Economy,AMZNMKTPLACE AMAZON.CO,Neighbourhoods,17.98,MISCELLANEOUS AND SPECIALTY RETAIL STORES,2021-22Q2_PC0502
Sandwell Metropolitan Borough Council,http://www.sandwell.gov.uk/info/200202/performance_and_spending/3233/government_procurement_cards,04-Aug-2021,Total Borough Economy,AMZNMktplace,Neighbourhoods,17.98,MISCELLANEOUS AND SPECIALTY RETAIL STORES,2021-22Q2_PC0503
Sandwell Metropolitan Borough Council,http://www.sandwell.gov.uk/info/200202/performance_and_spending/3233/government_procurement_cards,04-Aug-2021,Total Borough Economy,WWW.PARRS.CO.UK,Neighbourhoods,130.8,HARDWARE EQUIPMENT AND SUPPLIES,2021-22Q2_PC0504
Sandwell Metropolitan Borough Council,http://www.sandwell.gov.uk/info/200202/performance_and_spending/3233/government_procurement_cards,04-Aug-2021,Total Borough Economy,iZ  BEAR BOOKSHOP,Neighbourhoods,9.99,MISCELLANEOUS AND SPECIALTY RETAIL STORES,2021-22Q2_PC0505
Sandwell Metropolitan Borough Council,http://www.sandwell.gov.uk/info/200202/performance_and_spending/3233/government_procurement_cards,04-Aug-2021,Total Borough Economy,MAJESTIC WINE,Neighbourhoods,209.7,"PACKAGE STORES, BEER, WINE, LIQUOR",2021-22Q2_PC0506
Sandwell Metropolitan Borough Council,http://www.sandwell.gov.uk/info/200202/performance_and_spending/3233/government_procurement_cards,04-Aug-2021,Total Borough Economy,WILKO - SELLY OAK,Neighbourhoods,2,MISCELLANEOUS GENERAL MERCHANDISE,2021-22Q2_PC0507
Sandwell Metropolitan Borough Council,http://www.sandwell.gov.uk/info/200202/performance_and_spending/3233/government_procurement_cards,04-Aug-2021,Total Borough Economy,THE WORKS,Neighbourhoods,5,BOOK STORES,2021-22Q2_PC0508
Sandwell Metropolitan Borough Council,http://www.sandwell.gov.uk/info/200202/performance_and_spending/3233/government_procurement_cards,04-Aug-2021,Total Borough Economy,WWW.NISBETS.COM,Neighbourhoods,83.47,DIRECT MARKETING-CATALOG MERCHANTS,2021-22Q2_PC0509
Sandwell Metropolitan Borough Council,http://www.sandwell.gov.uk/info/200202/performance_and_spending/3233/government_procurement_cards,04-Aug-2021,Total Borough Economy,WWW.BEACHHOUSEAGENCY.C,Neighbourhoods,55.12,MISCELLANEOUS AND SPECIALTY RETAIL STORES,2021-22Q2_PC0510
Sandwell Metropolitan Borough Council,http://www.sandwell.gov.uk/info/200202/performance_and_spending/3233/government_procurement_cards,04-Aug-2021,Total Borough Economy,WWW.BEACHHOUSEAGENCY.C,Neighbourhoods,31.73,MISCELLANEOUS AND SPECIALTY RETAIL STORES,2021-22Q2_PC0511
Sandwell Metropolitan Borough Council,http://www.sandwell.gov.uk/info/200202/performance_and_spending/3233/government_procurement_cards,04-Aug-2021,Total Borough Economy,HALFORDS 0777,Neighbourhoods,190,BICYCLE SHOPS-SALES AND SERVICE,2021-22Q2_PC0512
Sandwell Metropolitan Borough Council,http://www.sandwell.gov.uk/info/200202/performance_and_spending/3233/government_procurement_cards,04-Aug-2021,Total Borough Economy,DUNELM (SOFT FURNISHIN,Neighbourhoods,53.6,"DRAPERY, UPOLSTERY, AND WINDOW COVERINGS STORES",2021-22Q2_PC0513
Sandwell Metropolitan Borough Council,http://www.sandwell.gov.uk/info/200202/performance_and_spending/3233/government_procurement_cards,04-Aug-2021,Director of Law & Governance,SUNITAS SWEET CENTRE,Assistant Chief Executive (Excl SIU),17,"EATING PLACES, RESTAURANTS",2021-22Q2_PC0514
Sandwell Metropolitan Borough Council,http://www.sandwell.gov.uk/info/200202/performance_and_spending/3233/government_procurement_cards,04-Aug-2021,FINANCE (Inc SIU),AMZNMktplace,Total Adult Social Care,21.99,MISCELLANEOUS AND SPECIALTY RETAIL STORES,2021-22Q2_PC0515
Sandwell Metropolitan Borough Council,http://www.sandwell.gov.uk/info/200202/performance_and_spending/3233/government_procurement_cards,04-Aug-2021,Total ASCHWB,AMZNMktplace,Total Adult Social Care,5.18,MISCELLANEOUS AND SPECIALTY RETAIL STORES,2021-22Q2_PC0516
Sandwell Metropolitan Borough Council,http://www.sandwell.gov.uk/info/200202/performance_and_spending/3233/government_procurement_cards,04-Aug-2021,Total ASCHWB,Amazon Prime Y85BY6S85,Total Adult Social Care,0.99,DIRECT MARKETING-CONTINUITY/SUBSCRIPTION MERCHANTS,2021-22Q2_PC0517
Sandwell Metropolitan Borough Council,http://www.sandwell.gov.uk/info/200202/performance_and_spending/3233/government_procurement_cards,04-Aug-2021,Childrens Services,FACEBK PDA7X7BKS2,Childrens Services,12.18,ADVERTISING SERVICES,2021-22Q2_PC0518
Sandwell Metropolitan Borough Council,http://www.sandwell.gov.uk/info/200202/performance_and_spending/3233/government_procurement_cards,04-Aug-2021,Individual School Budgets With Inclusion,EXPLORE,Individual School Budgets With Inclusion,166.52,"SCHOOLS, ELEMENTARY AND SECONDARY",2021-22Q2_PC0519
Sandwell Metropolitan Borough Council,http://www.sandwell.gov.uk/info/200202/performance_and_spending/3233/government_procurement_cards,04-Aug-2021,Housing & Assets Total,BIRMINGHAM REGISTER,Neighbourhoods,25.5,GOVERNMENT SERVICES-NOT ELSEWHERE CLASSIFIED,2021-22Q2_PC0520
Sandwell Metropolitan Borough Council,http://www.sandwell.gov.uk/info/200202/performance_and_spending/3233/government_procurement_cards,04-Aug-2021,Housing & Assets Total,WWW.VICARAGELODGE.COM,Neighbourhoods,1050,"LODGING-HOTELS,MOTELS,RESORTS-NOT CLASSIFIED",2021-22Q2_PC0521
Sandwell Metropolitan Borough Council,http://www.sandwell.gov.uk/info/200202/performance_and_spending/3233/government_procurement_cards,04-Aug-2021,Director of Law & Governance,WWW.SHAWS.CO.UK,Assistant Chief Executive (Excl SIU),136.08,MISCELLANEOUS PUBLISHING AND PRINTING,2021-22Q2_PC0522
Sandwell Metropolitan Borough Council,http://www.sandwell.gov.uk/info/200202/performance_and_spending/3233/government_procurement_cards,05-Aug-2021,Resources Capital,Amazon.co.uk EF7TO4EW5,#N/A,20,DIRECT MARKETING-OTHER DIRECT MARKETERS/NOT ELSEW.,2021-22Q2_PC0523
Sandwell Metropolitan Borough Council,http://www.sandwell.gov.uk/info/200202/performance_and_spending/3233/government_procurement_cards,05-Aug-2021,Total Housing Revenue Account,AMZNMktplace,Total Housing Revenue Account,24.99,MISCELLANEOUS AND SPECIALTY RETAIL STORES,2021-22Q2_PC0524
Sandwell Metropolitan Borough Council,http://www.sandwell.gov.uk/info/200202/performance_and_spending/3233/government_procurement_cards,05-Aug-2021,Total Borough Economy,BAKER ROSS,Neighbourhoods,213.02,"ARTIST SUPPLY STORES, CRAFT SHOPS",2021-22Q2_PC0525
Sandwell Metropolitan Borough Council,http://www.sandwell.gov.uk/info/200202/performance_and_spending/3233/government_procurement_cards,05-Aug-2021,Housing & Assets Total,B&M 262 - WILLENHALL,Neighbourhoods,23.9,MISCELLANEOUS GENERAL MERCHANDISE,2021-22Q2_PC0526
Sandwell Metropolitan Borough Council,http://www.sandwell.gov.uk/info/200202/performance_and_spending/3233/government_procurement_cards,05-Aug-2021,Total Borough Economy,Amazon.co.uk 5F0D17YP5,Neighbourhoods,10.08,DIRECT MARKETING-OTHER DIRECT MARKETERS/NOT ELSEW.,2021-22Q2_PC0527
Sandwell Metropolitan Borough Council,http://www.sandwell.gov.uk/info/200202/performance_and_spending/3233/government_procurement_cards,05-Aug-2021,Total Borough Economy,AMZNMktplace,Neighbourhoods,2.6,MISCELLANEOUS AND SPECIALTY RETAIL STORES,2021-22Q2_PC0528
Sandwell Metropolitan Borough Council,http://www.sandwell.gov.uk/info/200202/performance_and_spending/3233/government_procurement_cards,05-Aug-2021,Total Borough Economy,FACEBK ZUWXK63TL2,Neighbourhoods,1.22,ADVERTISING SERVICES,2021-22Q2_PC0529
Sandwell Metropolitan Borough Council,http://www.sandwell.gov.uk/info/200202/performance_and_spending/3233/government_procurement_cards,05-Aug-2021,Total Borough Economy,AMZNMKTPLACE AMAZON.CO,Neighbourhoods,15.87,MISCELLANEOUS AND SPECIALTY RETAIL STORES,2021-22Q2_PC0530
Sandwell Metropolitan Borough Council,http://www.sandwell.gov.uk/info/200202/performance_and_spending/3233/government_procurement_cards,05-Aug-2021,Total Borough Economy,WWW.BEACHHOUSEAGENCY.C,Neighbourhoods,-8.34,MISCELLANEOUS AND SPECIALTY RETAIL STORES,2021-22Q2_PC0531
Sandwell Metropolitan Borough Council,http://www.sandwell.gov.uk/info/200202/performance_and_spending/3233/government_procurement_cards,05-Aug-2021,Total Borough Economy,AMZNMktplace,Neighbourhoods,84.98,MISCELLANEOUS AND SPECIALTY RETAIL STORES,2021-22Q2_PC0532
Sandwell Metropolitan Borough Council,http://www.sandwell.gov.uk/info/200202/performance_and_spending/3233/government_procurement_cards,05-Aug-2021,Total Borough Economy,BARCHAM TREES PLC,Neighbourhoods,500,LAWN AND GARDEN SUPPLY STORES,2021-22Q2_PC0533
Sandwell Metropolitan Borough Council,http://www.sandwell.gov.uk/info/200202/performance_and_spending/3233/government_procurement_cards,05-Aug-2021,Total Borough Economy,BARCHAM TREES PLC,Neighbourhoods,482,LAWN AND GARDEN SUPPLY STORES,2021-22Q2_PC0534
Sandwell Metropolitan Borough Council,http://www.sandwell.gov.uk/info/200202/performance_and_spending/3233/government_procurement_cards,05-Aug-2021,FINANCE (Inc SIU),OFFICE DEPOT UK,Total Adult Social Care,2.06,STATIONERY/OFFICE SUPPLIES/PRINTING & WRITING PAP.,2021-22Q2_PC0535
Sandwell Metropolitan Borough Council,http://www.sandwell.gov.uk/info/200202/performance_and_spending/3233/government_procurement_cards,05-Aug-2021,Total ASCHWB,AMZNMktplace,Total Adult Social Care,13.89,MISCELLANEOUS AND SPECIALTY RETAIL STORES,2021-22Q2_PC0536
Sandwell Metropolitan Borough Council,http://www.sandwell.gov.uk/info/200202/performance_and_spending/3233/government_procurement_cards,05-Aug-2021,Total ASCHWB,AMZNMktplace,Total Adult Social Care,17.06,MISCELLANEOUS AND SPECIALTY RETAIL STORES,2021-22Q2_PC0537
Sandwell Metropolitan Borough Council,http://www.sandwell.gov.uk/info/200202/performance_and_spending/3233/government_procurement_cards,05-Aug-2021,Total ASCHWB,AMZNMKTPLACE AMAZON.CO,Total Adult Social Care,20.95,MISCELLANEOUS AND SPECIALTY RETAIL STORES,2021-22Q2_PC0538
Sandwell Metropolitan Borough Council,http://www.sandwell.gov.uk/info/200202/performance_and_spending/3233/government_procurement_cards,05-Aug-2021,Childrens Services,ALEXANDERS APPLIANCES,Childrens Services,213.6,HOUSEHOLD APPLIANCE STORES,2021-22Q2_PC0539
Sandwell Metropolitan Borough Council,http://www.sandwell.gov.uk/info/200202/performance_and_spending/3233/government_procurement_cards,05-Aug-2021,Childrens Services,B&M 200 - MARKET DRAYT,Childrens Services,3.49,MISCELLANEOUS GENERAL MERCHANDISE,2021-22Q2_PC0540
Sandwell Metropolitan Borough Council,http://www.sandwell.gov.uk/info/200202/performance_and_spending/3233/government_procurement_cards,05-Aug-2021,Individual School Budgets With Inclusion,OFFICE DEPOT UK,Individual School Budgets With Inclusion,133.6,STATIONERY/OFFICE SUPPLIES/PRINTING & WRITING PAP.,2021-22Q2_PC0541
Sandwell Metropolitan Borough Council,http://www.sandwell.gov.uk/info/200202/performance_and_spending/3233/government_procurement_cards,06-Aug-2021,Total Housing Revenue Account,OFFICE DEPOT UK,Total Housing Revenue Account,323.88,STATIONERY/OFFICE SUPPLIES/PRINTING & WRITING PAP.,2021-22Q2_PC0542
Sandwell Metropolitan Borough Council,http://www.sandwell.gov.uk/info/200202/performance_and_spending/3233/government_procurement_cards,06-Aug-2021,Total Housing Revenue Account,NORDAN UK LTD,Total Housing Revenue Account,173.11,"BUILDING MATERIALS, LUMBER STORES",2021-22Q2_PC0543
Sandwell Metropolitan Borough Council,http://www.sandwell.gov.uk/info/200202/performance_and_spending/3233/government_procurement_cards,06-Aug-2021,Total Housing Revenue Account,AMZNMktplace,Total Housing Revenue Account,16.99,MISCELLANEOUS AND SPECIALTY RETAIL STORES,2021-22Q2_PC0544
Sandwell Metropolitan Borough Council,http://www.sandwell.gov.uk/info/200202/performance_and_spending/3233/government_procurement_cards,06-Aug-2021,Total Borough Economy,RELIANCE MEDICAL LTD,Neighbourhoods,31.48,DENTAL/LAB/MED/OPHTHALMIC HOSP EQUIP & SUPPLIES,2021-22Q2_PC0545
Sandwell Metropolitan Borough Council,http://www.sandwell.gov.uk/info/200202/performance_and_spending/3233/government_procurement_cards,06-Aug-2021,FINANCE (Inc SIU),AMZNMktplace,Assistant Chief Executive (Excl SIU),19.98,MISCELLANEOUS AND SPECIALTY RETAIL STORES,2021-22Q2_PC0546
Sandwell Metropolitan Borough Council,http://www.sandwell.gov.uk/info/200202/performance_and_spending/3233/government_procurement_cards,06-Aug-2021,FINANCE (Inc SIU),AMZNMktplace,Assistant Chief Executive (Excl SIU),11.99,MISCELLANEOUS AND SPECIALTY RETAIL STORES,2021-22Q2_PC0547
Sandwell Metropolitan Borough Council,http://www.sandwell.gov.uk/info/200202/performance_and_spending/3233/government_procurement_cards,06-Aug-2021,FINANCE (Inc SIU),AMZNMktplace,Assistant Chief Executive (Excl SIU),11.99,MISCELLANEOUS AND SPECIALTY RETAIL STORES,2021-22Q2_PC0548
Sandwell Metropolitan Borough Council,http://www.sandwell.gov.uk/info/200202/performance_and_spending/3233/government_procurement_cards,06-Aug-2021,Total Borough Economy,WWW.PANELWAREHOUSE.COM,Neighbourhoods,709.8,BUSINESS SERVICES-NOT ELSEWHERE CLASSIFIED,2021-22Q2_PC0549
Sandwell Metropolitan Borough Council,http://www.sandwell.gov.uk/info/200202/performance_and_spending/3233/government_procurement_cards,06-Aug-2021,Total Borough Economy,WWW.GOMPELS.CO.UK,Neighbourhoods,37.34,INDUSTRIAL SUPPLIES NOT ELSEWHERE CLASSIFIED,2021-22Q2_PC0550
Sandwell Metropolitan Borough Council,http://www.sandwell.gov.uk/info/200202/performance_and_spending/3233/government_procurement_cards,06-Aug-2021,Total Borough Economy,MAJESTIC WINE,Neighbourhoods,126.4,"PACKAGE STORES, BEER, WINE, LIQUOR",2021-22Q2_PC0551
Sandwell Metropolitan Borough Council,http://www.sandwell.gov.uk/info/200202/performance_and_spending/3233/government_procurement_cards,06-Aug-2021,Total Borough Economy,WWW.DZD.CO.UK,Neighbourhoods,93.98,"GIFT, CARD, NOVELTY AND SOUVENIR SHOPS",2021-22Q2_PC0552
Sandwell Metropolitan Borough Council,http://www.sandwell.gov.uk/info/200202/performance_and_spending/3233/government_procurement_cards,06-Aug-2021,Regeneration & Growth,AMZNMktplace,Regeneration And The Economy,19.98,MISCELLANEOUS AND SPECIALTY RETAIL STORES,2021-22Q2_PC0553
Sandwell Metropolitan Borough Council,http://www.sandwell.gov.uk/info/200202/performance_and_spending/3233/government_procurement_cards,06-Aug-2021,Regeneration & Growth,AMZNMktplace,Regeneration And The Economy,11.98,MISCELLANEOUS AND SPECIALTY RETAIL STORES,2021-22Q2_PC0554
Sandwell Metropolitan Borough Council,http://www.sandwell.gov.uk/info/200202/performance_and_spending/3233/government_procurement_cards,06-Aug-2021,Total ASCHWB,AMZNMktplace,Total Adult Social Care,31.71,MISCELLANEOUS AND SPECIALTY RETAIL STORES,2021-22Q2_PC0555
Sandwell Metropolitan Borough Council,http://www.sandwell.gov.uk/info/200202/performance_and_spending/3233/government_procurement_cards,06-Aug-2021,Total ASCHWB,AMZNMktplace,Total Adult Social Care,6.96,MISCELLANEOUS AND SPECIALTY RETAIL STORES,2021-22Q2_PC0556
Sandwell Metropolitan Borough Council,http://www.sandwell.gov.uk/info/200202/performance_and_spending/3233/government_procurement_cards,06-Aug-2021,Total ASCHWB,LOCKWOODHUME,Total Adult Social Care,1205.99,COMPUTER SOFTWARE STORES,2021-22Q2_PC0557
Sandwell Metropolitan Borough Council,http://www.sandwell.gov.uk/info/200202/performance_and_spending/3233/government_procurement_cards,06-Aug-2021,Childrens Services,ASDA GROCERIES ONLINE,Childrens Services,-3.9,"GROCERY STORES, SUPERMARKETS",2021-22Q2_PC0558
Sandwell Metropolitan Borough Council,http://www.sandwell.gov.uk/info/200202/performance_and_spending/3233/government_procurement_cards,06-Aug-2021,Childrens Services,ASDA GROCERIES ONLINE,Childrens Services,65.08,"GROCERY STORES, SUPERMARKETS",2021-22Q2_PC0559
Sandwell Metropolitan Borough Council,http://www.sandwell.gov.uk/info/200202/performance_and_spending/3233/government_procurement_cards,06-Aug-2021,Childrens Services,AMAZON PRIME LU7BU69Y5,Childrens Services,96,DIRECT MARKETING-CONTINUITY/SUBSCRIPTION MERCHANTS,2021-22Q2_PC0560
Sandwell Metropolitan Borough Council,http://www.sandwell.gov.uk/info/200202/performance_and_spending/3233/government_procurement_cards,06-Aug-2021,Childrens Services,ASDA STORES LTD 5865,Childrens Services,7.65,"GROCERY STORES, SUPERMARKETS",2021-22Q2_PC0561
Sandwell Metropolitan Borough Council,http://www.sandwell.gov.uk/info/200202/performance_and_spending/3233/government_procurement_cards,06-Aug-2021,Childrens Services,Klarna graff-city.com,Childrens Services,83.99,"GAME, TOY, AND HOBBY SHOPS",2021-22Q2_PC0562
Sandwell Metropolitan Borough Council,http://www.sandwell.gov.uk/info/200202/performance_and_spending/3233/government_procurement_cards,06-Aug-2021,Childrens Services,AMZNMktplace,Childrens Services,25,MISCELLANEOUS AND SPECIALTY RETAIL STORES,2021-22Q2_PC0563
Sandwell Metropolitan Borough Council,http://www.sandwell.gov.uk/info/200202/performance_and_spending/3233/government_procurement_cards,06-Aug-2021,Regeneration & Growth,Amazon.co.uk ZL72L2GE5,Regeneration And The Economy,88.72,DIRECT MARKETING-OTHER DIRECT MARKETERS/NOT ELSEW.,2021-22Q2_PC0564
Sandwell Metropolitan Borough Council,http://www.sandwell.gov.uk/info/200202/performance_and_spending/3233/government_procurement_cards,06-Aug-2021,Housing & Assets Total,TRAVELODGE,Neighbourhoods,290.64,TRAVELODGE,2021-22Q2_PC0565
Sandwell Metropolitan Borough Council,http://www.sandwell.gov.uk/info/200202/performance_and_spending/3233/government_procurement_cards,06-Aug-2021,FINANCE (Inc SIU),AMZNMKTPLACE AMAZON.CO,Assistant Chief Executive (Excl SIU),28.98,MISCELLANEOUS AND SPECIALTY RETAIL STORES,2021-22Q2_PC0566
Sandwell Metropolitan Borough Council,http://www.sandwell.gov.uk/info/200202/performance_and_spending/3233/government_procurement_cards,06-Aug-2021,Total Business Strategy & Change,AMZNMktplace,Assistant Chief Executive (Excl SIU),152,MISCELLANEOUS AND SPECIALTY RETAIL STORES,2021-22Q2_PC0567
Sandwell Metropolitan Borough Council,http://www.sandwell.gov.uk/info/200202/performance_and_spending/3233/government_procurement_cards,09-Aug-2021,Total Housing Revenue Account,TURF WORLD LTD,Total Housing Revenue Account,76.8,LAWN AND GARDEN SUPPLY STORES,2021-22Q2_PC0568
Sandwell Metropolitan Borough Council,http://www.sandwell.gov.uk/info/200202/performance_and_spending/3233/government_procurement_cards,09-Aug-2021,Total Borough Economy,GLASS'S INFORMATION SE,Neighbourhoods,1000,BUSINESS SERVICES-NOT ELSEWHERE CLASSIFIED,2021-22Q2_PC0569
Sandwell Metropolitan Borough Council,http://www.sandwell.gov.uk/info/200202/performance_and_spending/3233/government_procurement_cards,09-Aug-2021,Total Borough Economy,GLASS'S INFO SR LTD RT,Neighbourhoods,834.8,DIRECT MARKETING-CONTINUITY/SUBSCRIPTION MERCHANTS,2021-22Q2_PC0570
Sandwell Metropolitan Borough Council,http://www.sandwell.gov.uk/info/200202/performance_and_spending/3233/government_procurement_cards,09-Aug-2021,Housing & Assets Total,Flextronics,Total Adult Social Care,472,COMPUTER MAIN./REPAIR/SERVICES NOT ELSEWHERE CLASS,2021-22Q2_PC0571
Sandwell Metropolitan Borough Council,http://www.sandwell.gov.uk/info/200202/performance_and_spending/3233/government_procurement_cards,09-Aug-2021,Total Borough Economy,SCREWFIX DIRECT,Total Adult Social Care,42.75,"BUILDING MATERIALS, LUMBER STORES",2021-22Q2_PC0572
Sandwell Metropolitan Borough Council,http://www.sandwell.gov.uk/info/200202/performance_and_spending/3233/government_procurement_cards,09-Aug-2021,Total Public Health,FACEBK MJNSS6XNK2,Public Health,185.69,ADVERTISING SERVICES,2021-22Q2_PC0573
Sandwell Metropolitan Borough Council,http://www.sandwell.gov.uk/info/200202/performance_and_spending/3233/government_procurement_cards,09-Aug-2021,Total Borough Economy,SQ  SIP ?N? SWIG,Neighbourhoods,-200,"BAR,LOUNGE,DISCO,NIGHTCLUB,TAVERN-ALCOHOLIC DRINKS",2021-22Q2_PC0574
Sandwell Metropolitan Borough Council,http://www.sandwell.gov.uk/info/200202/performance_and_spending/3233/government_procurement_cards,09-Aug-2021,Total Business Strategy & Change,Amazon.co.uk DC06J1045,Assistant Chief Executive (Excl SIU),39.95,DIRECT MARKETING-OTHER DIRECT MARKETERS/NOT ELSEW.,2021-22Q2_PC0575
Sandwell Metropolitan Borough Council,http://www.sandwell.gov.uk/info/200202/performance_and_spending/3233/government_procurement_cards,09-Aug-2021,Regeneration & Growth,AMZNMktplace,Regeneration And The Economy,33.98,MISCELLANEOUS AND SPECIALTY RETAIL STORES,2021-22Q2_PC0576
Sandwell Metropolitan Borough Council,http://www.sandwell.gov.uk/info/200202/performance_and_spending/3233/government_procurement_cards,09-Aug-2021,FINANCE (Inc SIU),AMZNMktplace,Assistant Chief Executive (Excl SIU),42,MISCELLANEOUS AND SPECIALTY RETAIL STORES,2021-22Q2_PC0577
Sandwell Metropolitan Borough Council,http://www.sandwell.gov.uk/info/200202/performance_and_spending/3233/government_procurement_cards,09-Aug-2021,FINANCE (Inc SIU),AMZNMktplace,Assistant Chief Executive (Excl SIU),12.99,MISCELLANEOUS AND SPECIALTY RETAIL STORES,2021-22Q2_PC0578
Sandwell Metropolitan Borough Council,http://www.sandwell.gov.uk/info/200202/performance_and_spending/3233/government_procurement_cards,09-Aug-2021,FINANCE (Inc SIU),AMZNMktplace,Assistant Chief Executive (Excl SIU),12.99,MISCELLANEOUS AND SPECIALTY RETAIL STORES,2021-22Q2_PC0579
Sandwell Metropolitan Borough Council,http://www.sandwell.gov.uk/info/200202/performance_and_spending/3233/government_procurement_cards,09-Aug-2021,FINANCE (Inc SIU),Amazon Prime E24MR2ZL5,Assistant Chief Executive (Excl SIU),7.99,DIRECT MARKETING-CONTINUITY/SUBSCRIPTION MERCHANTS,2021-22Q2_PC0580
Sandwell Metropolitan Borough Council,http://www.sandwell.gov.uk/info/200202/performance_and_spending/3233/government_procurement_cards,09-Aug-2021,Total Borough Economy,SCREWFIX DIRECT,Neighbourhoods,26.98,"BUILDING MATERIALS, LUMBER STORES",2021-22Q2_PC0581
Sandwell Metropolitan Borough Council,http://www.sandwell.gov.uk/info/200202/performance_and_spending/3233/government_procurement_cards,09-Aug-2021,Total Borough Economy,AMZNMktplace,Neighbourhoods,60.93,MISCELLANEOUS AND SPECIALTY RETAIL STORES,2021-22Q2_PC0582
Sandwell Metropolitan Borough Council,http://www.sandwell.gov.uk/info/200202/performance_and_spending/3233/government_procurement_cards,09-Aug-2021,Total Borough Economy,NISBETS PLC,Neighbourhoods,19.15,CRYSTAL AND GLASSWARE STORES,2021-22Q2_PC0583
Sandwell Metropolitan Borough Council,http://www.sandwell.gov.uk/info/200202/performance_and_spending/3233/government_procurement_cards,09-Aug-2021,Total Borough Economy,MARKS&SPENCER PLC SACA,Neighbourhoods,3.4,"GROCERY STORES, SUPERMARKETS",2021-22Q2_PC0584
Sandwell Metropolitan Borough Council,http://www.sandwell.gov.uk/info/200202/performance_and_spending/3233/government_procurement_cards,09-Aug-2021,Total Borough Economy,PAYPAL  BAKER ROSS,Neighbourhoods,86.65,"GAME, TOY, AND HOBBY SHOPS",2021-22Q2_PC0585
Sandwell Metropolitan Borough Council,http://www.sandwell.gov.uk/info/200202/performance_and_spending/3233/government_procurement_cards,09-Aug-2021,Total Borough Economy,OFFICE DEPOT UK,Neighbourhoods,20.87,STATIONERY/OFFICE SUPPLIES/PRINTING & WRITING PAP.,2021-22Q2_PC0586
Sandwell Metropolitan Borough Council,http://www.sandwell.gov.uk/info/200202/performance_and_spending/3233/government_procurement_cards,09-Aug-2021,Regeneration & Growth,AMZNMKTPLACE AMAZON.CO,Regeneration And The Economy,29.99,MISCELLANEOUS AND SPECIALTY RETAIL STORES,2021-22Q2_PC0587
Sandwell Metropolitan Borough Council,http://www.sandwell.gov.uk/info/200202/performance_and_spending/3233/government_procurement_cards,09-Aug-2021,FINANCE (Inc SIU),OFFICE DEPOT UK,Total Adult Social Care,50.83,STATIONERY/OFFICE SUPPLIES/PRINTING & WRITING PAP.,2021-22Q2_PC0588
Sandwell Metropolitan Borough Council,http://www.sandwell.gov.uk/info/200202/performance_and_spending/3233/government_procurement_cards,09-Aug-2021,Total ASCHWB,AMZNMKTPLACE AMAZON.CO,Total Adult Social Care,41.99,MISCELLANEOUS AND SPECIALTY RETAIL STORES,2021-22Q2_PC0589
Sandwell Metropolitan Borough Council,http://www.sandwell.gov.uk/info/200202/performance_and_spending/3233/government_procurement_cards,09-Aug-2021,Childrens Services,C L JONES CAERNARFON (,Childrens Services,144.63,"BUILDING MATERIALS, LUMBER STORES",2021-22Q2_PC0590
Sandwell Metropolitan Borough Council,http://www.sandwell.gov.uk/info/200202/performance_and_spending/3233/government_procurement_cards,09-Aug-2021,Childrens Services,CRAFT COURSES LIMITED,Childrens Services,80,"FABRIC, NEEDLEWORK, PIECE GOODS, AND SEWING STORES",2021-22Q2_PC0591
Sandwell Metropolitan Borough Council,http://www.sandwell.gov.uk/info/200202/performance_and_spending/3233/government_procurement_cards,09-Aug-2021,Housing & Assets Total,SCREWFIX DIRECT,Neighbourhoods,20,"BUILDING MATERIALS, LUMBER STORES",2021-22Q2_PC0592
Sandwell Metropolitan Borough Council,http://www.sandwell.gov.uk/info/200202/performance_and_spending/3233/government_procurement_cards,10-Aug-2021,Total Housing Revenue Account,TRAVIS PERKINS,Total Housing Revenue Account,93.85,"BUILDING MATERIALS, LUMBER STORES",2021-22Q2_PC0593
Sandwell Metropolitan Borough Council,http://www.sandwell.gov.uk/info/200202/performance_and_spending/3233/government_procurement_cards,10-Aug-2021,Total Borough Economy,GET LICENSED,Neighbourhoods,189.99,"CONSULTING, MANAGEMENT, AND PUBLIC RELATIONS SVCS",2021-22Q2_PC0594
Sandwell Metropolitan Borough Council,http://www.sandwell.gov.uk/info/200202/performance_and_spending/3233/government_procurement_cards,10-Aug-2021,Total Borough Economy,Vistaprint,Neighbourhoods,237.53,BUSINESS SERVICES-NOT ELSEWHERE CLASSIFIED,2021-22Q2_PC0595
Sandwell Metropolitan Borough Council,http://www.sandwell.gov.uk/info/200202/performance_and_spending/3233/government_procurement_cards,10-Aug-2021,Regeneration & Growth,Flextronics,Regeneration And The Economy,48,COMPUTER MAIN./REPAIR/SERVICES NOT ELSEWHERE CLASS,2021-22Q2_PC0596
Sandwell Metropolitan Borough Council,http://www.sandwell.gov.uk/info/200202/performance_and_spending/3233/government_procurement_cards,10-Aug-2021,Total Borough Economy,421 WEST BROMWICH,Neighbourhoods,-100,"EQUIPMENT RENTAL&LEASING SVS, FURNTURE/TOOL RENTAL",2021-22Q2_PC0597
Sandwell Metropolitan Borough Council,http://www.sandwell.gov.uk/info/200202/performance_and_spending/3233/government_procurement_cards,10-Aug-2021,Total Borough Economy,AMZNMKTPLACE AMAZON.CO,Neighbourhoods,33.08,MISCELLANEOUS AND SPECIALTY RETAIL STORES,2021-22Q2_PC0598
Sandwell Metropolitan Borough Council,http://www.sandwell.gov.uk/info/200202/performance_and_spending/3233/government_procurement_cards,10-Aug-2021,Total Borough Economy,WWW.BUNZLCLEANINGSUPPL,Neighbourhoods,173.28,"CLEANING AND MAINTENANCE, JANITORIAL SERVICES",2021-22Q2_PC0599
Sandwell Metropolitan Borough Council,http://www.sandwell.gov.uk/info/200202/performance_and_spending/3233/government_procurement_cards,10-Aug-2021,Total Borough Economy,AMZNMKTPLACE AMAZON.CO,Total Adult Social Care,10.99,MISCELLANEOUS AND SPECIALTY RETAIL STORES,2021-22Q2_PC0600
Sandwell Metropolitan Borough Council,http://www.sandwell.gov.uk/info/200202/performance_and_spending/3233/government_procurement_cards,10-Aug-2021,FINANCE (Inc SIU),OFFICE DEPOT UK,Total Adult Social Care,14.64,STATIONERY/OFFICE SUPPLIES/PRINTING & WRITING PAP.,2021-22Q2_PC0601
Sandwell Metropolitan Borough Council,http://www.sandwell.gov.uk/info/200202/performance_and_spending/3233/government_procurement_cards,10-Aug-2021,Total ASCHWB,AMZNMktplace,Total Adult Social Care,8.05,MISCELLANEOUS AND SPECIALTY RETAIL STORES,2021-22Q2_PC0602
Sandwell Metropolitan Borough Council,http://www.sandwell.gov.uk/info/200202/performance_and_spending/3233/government_procurement_cards,10-Aug-2021,Total ASCHWB,AMZNMktplace,Total Adult Social Care,13.95,MISCELLANEOUS AND SPECIALTY RETAIL STORES,2021-22Q2_PC0603
Sandwell Metropolitan Borough Council,http://www.sandwell.gov.uk/info/200202/performance_and_spending/3233/government_procurement_cards,10-Aug-2021,Total ASCHWB,CURRYS ONLINE,Total Adult Social Care,119.95,ELECTRONIC SALES,2021-22Q2_PC0604
Sandwell Metropolitan Borough Council,http://www.sandwell.gov.uk/info/200202/performance_and_spending/3233/government_procurement_cards,10-Aug-2021,Total ASCHWB,OFFICE DEPOT UK,Total Adult Social Care,7.19,STATIONERY/OFFICE SUPPLIES/PRINTING & WRITING PAP.,2021-22Q2_PC0605
Sandwell Metropolitan Borough Council,http://www.sandwell.gov.uk/info/200202/performance_and_spending/3233/government_procurement_cards,10-Aug-2021,Total ASCHWB,AMZNMktplace,Total Adult Social Care,139.41,MISCELLANEOUS AND SPECIALTY RETAIL STORES,2021-22Q2_PC0606
Sandwell Metropolitan Borough Council,http://www.sandwell.gov.uk/info/200202/performance_and_spending/3233/government_procurement_cards,10-Aug-2021,Childrens Services,OFFICE DEPOT UK,Childrens Services,29.28,STATIONERY/OFFICE SUPPLIES/PRINTING & WRITING PAP.,2021-22Q2_PC0607
Sandwell Metropolitan Borough Council,http://www.sandwell.gov.uk/info/200202/performance_and_spending/3233/government_procurement_cards,10-Aug-2021,Childrens Services,SCREWFIX DIRECT,Childrens Services,17.04,"BUILDING MATERIALS, LUMBER STORES",2021-22Q2_PC0608
Sandwell Metropolitan Borough Council,http://www.sandwell.gov.uk/info/200202/performance_and_spending/3233/government_procurement_cards,10-Aug-2021,Childrens Services,AMAZON PRIME MEMBER FE,Childrens Services,-96,DIRECT MARKETING-CONTINUITY/SUBSCRIPTION MERCHANTS,2021-22Q2_PC0609
Sandwell Metropolitan Borough Council,http://www.sandwell.gov.uk/info/200202/performance_and_spending/3233/government_procurement_cards,10-Aug-2021,Childrens Services,HIGHSPEEDTRAINING.CO.U,Childrens Services,150,"SCHOOLS, BUSINESS AND SECRETARIAL",2021-22Q2_PC0610
Sandwell Metropolitan Borough Council,http://www.sandwell.gov.uk/info/200202/performance_and_spending/3233/government_procurement_cards,10-Aug-2021,Individual School Budgets With Inclusion,Amazon.co.uk JQ4T91LJ5,Individual School Budgets With Inclusion,22.36,DIRECT MARKETING-OTHER DIRECT MARKETERS/NOT ELSEW.,2021-22Q2_PC0611
Sandwell Metropolitan Borough Council,http://www.sandwell.gov.uk/info/200202/performance_and_spending/3233/government_procurement_cards,10-Aug-2021,Childrens Services,AMZNMktplace,Childrens Services,21.42,MISCELLANEOUS AND SPECIALTY RETAIL STORES,2021-22Q2_PC0612
Sandwell Metropolitan Borough Council,http://www.sandwell.gov.uk/info/200202/performance_and_spending/3233/government_procurement_cards,10-Aug-2021,Childrens Services,AMZNMktplace,Childrens Services,18.29,MISCELLANEOUS AND SPECIALTY RETAIL STORES,2021-22Q2_PC0613
Sandwell Metropolitan Borough Council,http://www.sandwell.gov.uk/info/200202/performance_and_spending/3233/government_procurement_cards,10-Aug-2021,Regeneration & Growth,TIMPSON LTD,Regeneration And The Economy,81,MISCELLANEOUS AND SPECIALTY RETAIL STORES,2021-22Q2_PC0614
Sandwell Metropolitan Borough Council,http://www.sandwell.gov.uk/info/200202/performance_and_spending/3233/government_procurement_cards,11-Aug-2021,Total Housing Revenue Account,DARLASTON BUILDERS MER,Total Housing Revenue Account,271.29,"BUILDING MATERIALS, LUMBER STORES",2021-22Q2_PC0615
Sandwell Metropolitan Borough Council,http://www.sandwell.gov.uk/info/200202/performance_and_spending/3233/government_procurement_cards,11-Aug-2021,Total Housing Revenue Account,WWW.ELECSA.CO.UK,Total Housing Revenue Account,396,MISCELLANEOUS AND SPECIALTY RETAIL STORES,2021-22Q2_PC0616
Sandwell Metropolitan Borough Council,http://www.sandwell.gov.uk/info/200202/performance_and_spending/3233/government_procurement_cards,11-Aug-2021,Total Housing Revenue Account,OFFICE DEPOT UK,Total Housing Revenue Account,-76.46,STATIONERY/OFFICE SUPPLIES/PRINTING & WRITING PAP.,2021-22Q2_PC0617
Sandwell Metropolitan Borough Council,http://www.sandwell.gov.uk/info/200202/performance_and_spending/3233/government_procurement_cards,11-Aug-2021,Total Borough Economy,POST OFFICE COUNTER,Neighbourhoods,15.84,POSTAL SERVICES-GOVERNMENT ONLY,2021-22Q2_PC0618
Sandwell Metropolitan Borough Council,http://www.sandwell.gov.uk/info/200202/performance_and_spending/3233/government_procurement_cards,11-Aug-2021,Total Borough Economy,Amazon.co.uk RL4FH2XJ5,Neighbourhoods,22.97,DIRECT MARKETING-OTHER DIRECT MARKETERS/NOT ELSEW.,2021-22Q2_PC0619
Sandwell Metropolitan Borough Council,http://www.sandwell.gov.uk/info/200202/performance_and_spending/3233/government_procurement_cards,11-Aug-2021,Housing & Assets Total,AMZNMktplace,Neighbourhoods,17.98,MISCELLANEOUS AND SPECIALTY RETAIL STORES,2021-22Q2_PC0620
Sandwell Metropolitan Borough Council,http://www.sandwell.gov.uk/info/200202/performance_and_spending/3233/government_procurement_cards,11-Aug-2021,Total Public Health,Amazon.co.uk 3C8S253D5,Public Health,65.1,DIRECT MARKETING-OTHER DIRECT MARKETERS/NOT ELSEW.,2021-22Q2_PC0621
Sandwell Metropolitan Borough Council,http://www.sandwell.gov.uk/info/200202/performance_and_spending/3233/government_procurement_cards,11-Aug-2021,Regeneration & Growth,Amazon.co.uk 7P85Q1XR5,Regeneration And The Economy,36.99,DIRECT MARKETING-OTHER DIRECT MARKETERS/NOT ELSEW.,2021-22Q2_PC0622
Sandwell Metropolitan Borough Council,http://www.sandwell.gov.uk/info/200202/performance_and_spending/3233/government_procurement_cards,11-Aug-2021,Total Borough Economy,ASDA STORES,Neighbourhoods,39,"GROCERY STORES, SUPERMARKETS",2021-22Q2_PC0623
Sandwell Metropolitan Borough Council,http://www.sandwell.gov.uk/info/200202/performance_and_spending/3233/government_procurement_cards,11-Aug-2021,Total Borough Economy,WWW.BUNZLCLEANINGSUPPL,Neighbourhoods,63.07,"CLEANING AND MAINTENANCE, JANITORIAL SERVICES",2021-22Q2_PC0624
Sandwell Metropolitan Borough Council,http://www.sandwell.gov.uk/info/200202/performance_and_spending/3233/government_procurement_cards,11-Aug-2021,Total Borough Economy,MAJESTIC WINE,Neighbourhoods,-46,"PACKAGE STORES, BEER, WINE, LIQUOR",2021-22Q2_PC0625
Sandwell Metropolitan Borough Council,http://www.sandwell.gov.uk/info/200202/performance_and_spending/3233/government_procurement_cards,11-Aug-2021,Director of Law & Governance,AMZNMKTPLACE AMAZON.CO,Assistant Chief Executive (Excl SIU),13.91,MISCELLANEOUS AND SPECIALTY RETAIL STORES,2021-22Q2_PC0626
Sandwell Metropolitan Borough Council,http://www.sandwell.gov.uk/info/200202/performance_and_spending/3233/government_procurement_cards,11-Aug-2021,FINANCE (Inc SIU),Forget Me Not Florist,Total Adult Social Care,60,FLORISTS,2021-22Q2_PC0627
Sandwell Metropolitan Borough Council,http://www.sandwell.gov.uk/info/200202/performance_and_spending/3233/government_procurement_cards,11-Aug-2021,Total ASCHWB,Amazon.co.uk 707VZ7DQ5,Total Adult Social Care,31.69,DIRECT MARKETING-OTHER DIRECT MARKETERS/NOT ELSEW.,2021-22Q2_PC0628
Sandwell Metropolitan Borough Council,http://www.sandwell.gov.uk/info/200202/performance_and_spending/3233/government_procurement_cards,11-Aug-2021,Total ASCHWB,OFFICE DEPOT UK,Total Adult Social Care,70.97,STATIONERY/OFFICE SUPPLIES/PRINTING & WRITING PAP.,2021-22Q2_PC0629
Sandwell Metropolitan Borough Council,http://www.sandwell.gov.uk/info/200202/performance_and_spending/3233/government_procurement_cards,11-Aug-2021,Total ASCHWB,Amazon.co.uk XA7HG0GL5,Total Adult Social Care,17.59,DIRECT MARKETING-OTHER DIRECT MARKETERS/NOT ELSEW.,2021-22Q2_PC0630
Sandwell Metropolitan Borough Council,http://www.sandwell.gov.uk/info/200202/performance_and_spending/3233/government_procurement_cards,11-Aug-2021,FINANCE (Inc SIU),OFFICE DEPOT UK,Total Adult Social Care,14.64,STATIONERY/OFFICE SUPPLIES/PRINTING & WRITING PAP.,2021-22Q2_PC0631
Sandwell Metropolitan Borough Council,http://www.sandwell.gov.uk/info/200202/performance_and_spending/3233/government_procurement_cards,11-Aug-2021,Childrens Services,INTELLIGENT E LEARNING,Childrens Services,30,SCHOOLS & EDUCATIONAL SVC-NOT ELSEWHERE CLASSIFIED,2021-22Q2_PC0632
Sandwell Metropolitan Borough Council,http://www.sandwell.gov.uk/info/200202/performance_and_spending/3233/government_procurement_cards,11-Aug-2021,Individual School Budgets With Inclusion,Amazon.co.uk MQ05G38V5,Individual School Budgets With Inclusion,39.96,DIRECT MARKETING-OTHER DIRECT MARKETERS/NOT ELSEW.,2021-22Q2_PC0633
Sandwell Metropolitan Borough Council,http://www.sandwell.gov.uk/info/200202/performance_and_spending/3233/government_procurement_cards,11-Aug-2021,Individual School Budgets With Inclusion,Amazon Prime 3F73G2L65,Individual School Budgets With Inclusion,7.99,DIRECT MARKETING-CONTINUITY/SUBSCRIPTION MERCHANTS,2021-22Q2_PC0634
Sandwell Metropolitan Borough Council,http://www.sandwell.gov.uk/info/200202/performance_and_spending/3233/government_procurement_cards,11-Aug-2021,Director of Law & Governance,thetrainline.com,Assistant Chief Executive (Excl SIU),69.24,PASSENGER RAILWAYS,2021-22Q2_PC0635
Sandwell Metropolitan Borough Council,http://www.sandwell.gov.uk/info/200202/performance_and_spending/3233/government_procurement_cards,11-Aug-2021,Corporate Management,OFFICE DEPOT UK,Corporate Management,58.56,STATIONERY/OFFICE SUPPLIES/PRINTING & WRITING PAP.,2021-22Q2_PC0636
Sandwell Metropolitan Borough Council,http://www.sandwell.gov.uk/info/200202/performance_and_spending/3233/government_procurement_cards,11-Aug-2021,Total Business Strategy & Change,P & A MEDICAL LTD,Assistant Chief Executive (Excl SIU),160.8,DENTAL/LAB/MED/OPHTHALMIC HOSP EQUIP & SUPPLIES,2021-22Q2_PC0637
Sandwell Metropolitan Borough Council,http://www.sandwell.gov.uk/info/200202/performance_and_spending/3233/government_procurement_cards,12-Aug-2021,Resources Capital,ARGOS LTD,#N/A,14.99,DISCOUNT STORES,2021-22Q2_PC0638
Sandwell Metropolitan Borough Council,http://www.sandwell.gov.uk/info/200202/performance_and_spending/3233/government_procurement_cards,12-Aug-2021,Total Housing Revenue Account,CAPITA GAS,Total Housing Revenue Account,12,"ORGANIZATIONS, MEMBERSHIP-NOT ELSEWHERE CLASSIFIED",2021-22Q2_PC0639
Sandwell Metropolitan Borough Council,http://www.sandwell.gov.uk/info/200202/performance_and_spending/3233/government_procurement_cards,12-Aug-2021,Total Housing Revenue Account,OFFICE DEPOT UK,Total Housing Revenue Account,-28.85,STATIONERY/OFFICE SUPPLIES/PRINTING & WRITING PAP.,2021-22Q2_PC0640
Sandwell Metropolitan Borough Council,http://www.sandwell.gov.uk/info/200202/performance_and_spending/3233/government_procurement_cards,12-Aug-2021,Total Borough Economy,PAYPAL  REENACTMENT,Neighbourhoods,69.99,VARIETY STORES,2021-22Q2_PC0641
Sandwell Metropolitan Borough Council,http://www.sandwell.gov.uk/info/200202/performance_and_spending/3233/government_procurement_cards,12-Aug-2021,Total Borough Economy,PAYPAL  REENACTMENT,Neighbourhoods,-69.99,VARIETY STORES,2021-22Q2_PC0642
Sandwell Metropolitan Borough Council,http://www.sandwell.gov.uk/info/200202/performance_and_spending/3233/government_procurement_cards,12-Aug-2021,Total Borough Economy,CENTRAL EVENT HIRE LTD,Neighbourhoods,250,PROFESSIONAL SERVICES-NOT ELSEWHERE CLASSIFIED,2021-22Q2_PC0643
Sandwell Metropolitan Borough Council,http://www.sandwell.gov.uk/info/200202/performance_and_spending/3233/government_procurement_cards,12-Aug-2021,Total Borough Economy,CENTRAL EVENT HIRE LTD,Neighbourhoods,11.76,PROFESSIONAL SERVICES-NOT ELSEWHERE CLASSIFIED,2021-22Q2_PC0644
Sandwell Metropolitan Borough Council,http://www.sandwell.gov.uk/info/200202/performance_and_spending/3233/government_procurement_cards,12-Aug-2021,Total Borough Economy,BIG CITY GRAPHICS AND,Neighbourhoods,42,"COMMERCIAL ART, GRAPHICS, PHOTOGRAPHY",2021-22Q2_PC0645
Sandwell Metropolitan Borough Council,http://www.sandwell.gov.uk/info/200202/performance_and_spending/3233/government_procurement_cards,12-Aug-2021,Total Business Strategy & Change,Amazon.co.uk IB2LC2275,Assistant Chief Executive (Excl SIU),99.09,DIRECT MARKETING-OTHER DIRECT MARKETERS/NOT ELSEW.,2021-22Q2_PC0646
Sandwell Metropolitan Borough Council,http://www.sandwell.gov.uk/info/200202/performance_and_spending/3233/government_procurement_cards,12-Aug-2021,Regeneration & Growth,AMZNMktplace,Regeneration And The Economy,25.98,MISCELLANEOUS AND SPECIALTY RETAIL STORES,2021-22Q2_PC0647
Sandwell Metropolitan Borough Council,http://www.sandwell.gov.uk/info/200202/performance_and_spending/3233/government_procurement_cards,12-Aug-2021,Regeneration & Growth,Amazon.co.uk V418U4CJ5,Regeneration And The Economy,7.16,DIRECT MARKETING-OTHER DIRECT MARKETERS/NOT ELSEW.,2021-22Q2_PC0648
Sandwell Metropolitan Borough Council,http://www.sandwell.gov.uk/info/200202/performance_and_spending/3233/government_procurement_cards,12-Aug-2021,Regeneration & Growth,AMZNMktplace,Regeneration And The Economy,35.55,MISCELLANEOUS AND SPECIALTY RETAIL STORES,2021-22Q2_PC0649
Sandwell Metropolitan Borough Council,http://www.sandwell.gov.uk/info/200202/performance_and_spending/3233/government_procurement_cards,12-Aug-2021,Regeneration & Growth,AMZNMKTPLACE AMAZON.CO,Regeneration And The Economy,11.95,MISCELLANEOUS AND SPECIALTY RETAIL STORES,2021-22Q2_PC0650
Sandwell Metropolitan Borough Council,http://www.sandwell.gov.uk/info/200202/performance_and_spending/3233/government_procurement_cards,12-Aug-2021,Regeneration & Growth,AMZNMktplace,Regeneration And The Economy,7.99,MISCELLANEOUS AND SPECIALTY RETAIL STORES,2021-22Q2_PC0651
Sandwell Metropolitan Borough Council,http://www.sandwell.gov.uk/info/200202/performance_and_spending/3233/government_procurement_cards,12-Aug-2021,Regeneration & Growth,AMZNMKTPLACE AMAZON.CO,Regeneration And The Economy,45.84,MISCELLANEOUS AND SPECIALTY RETAIL STORES,2021-22Q2_PC0652
Sandwell Metropolitan Borough Council,http://www.sandwell.gov.uk/info/200202/performance_and_spending/3233/government_procurement_cards,12-Aug-2021,Regeneration & Growth,DRI LENOVO,Regeneration And The Economy,31.14,COMPUTER SOFTWARE STORES,2021-22Q2_PC0653
Sandwell Metropolitan Borough Council,http://www.sandwell.gov.uk/info/200202/performance_and_spending/3233/government_procurement_cards,12-Aug-2021,Total Borough Economy,FACEBK VY4PQ6KSL2,Neighbourhoods,8.76,ADVERTISING SERVICES,2021-22Q2_PC0654
Sandwell Metropolitan Borough Council,http://www.sandwell.gov.uk/info/200202/performance_and_spending/3233/government_procurement_cards,12-Aug-2021,Total Borough Economy,OFFICE DEPOT UK,Neighbourhoods,86.05,STATIONERY/OFFICE SUPPLIES/PRINTING & WRITING PAP.,2021-22Q2_PC0655
Sandwell Metropolitan Borough Council,http://www.sandwell.gov.uk/info/200202/performance_and_spending/3233/government_procurement_cards,12-Aug-2021,Total Borough Economy,Flextronics,Neighbourhoods,195.45,COMPUTER MAIN./REPAIR/SERVICES NOT ELSEWHERE CLASS,2021-22Q2_PC0656
Sandwell Metropolitan Borough Council,http://www.sandwell.gov.uk/info/200202/performance_and_spending/3233/government_procurement_cards,12-Aug-2021,Director of Law & Governance,LIDL GB BIRMINGHAM,Assistant Chief Executive (Excl SIU),7.36,"GROCERY STORES, SUPERMARKETS",2021-22Q2_PC0657
Sandwell Metropolitan Borough Council,http://www.sandwell.gov.uk/info/200202/performance_and_spending/3233/government_procurement_cards,12-Aug-2021,Regeneration & Growth,OU CONTINUING ED,Regeneration And The Economy,260,"COLLEGES, UNIV, PRO SCHOOLS, JUNIOR COLLEGES",2021-22Q2_PC0658
Sandwell Metropolitan Borough Council,http://www.sandwell.gov.uk/info/200202/performance_and_spending/3233/government_procurement_cards,12-Aug-2021,Total ASCHWB,AMZNMktplace,Total Adult Social Care,141.55,MISCELLANEOUS AND SPECIALTY RETAIL STORES,2021-22Q2_PC0659
Sandwell Metropolitan Borough Council,http://www.sandwell.gov.uk/info/200202/performance_and_spending/3233/government_procurement_cards,12-Aug-2021,Total ASCHWB,Amazon.co.uk LR4BL4L85,Total Adult Social Care,29.94,DIRECT MARKETING-OTHER DIRECT MARKETERS/NOT ELSEW.,2021-22Q2_PC0660
Sandwell Metropolitan Borough Council,http://www.sandwell.gov.uk/info/200202/performance_and_spending/3233/government_procurement_cards,12-Aug-2021,Regeneration & Growth,TIMPSON LTD,Regeneration And The Economy,34,MISCELLANEOUS AND SPECIALTY RETAIL STORES,2021-22Q2_PC0661
Sandwell Metropolitan Borough Council,http://www.sandwell.gov.uk/info/200202/performance_and_spending/3233/government_procurement_cards,12-Aug-2021,Housing & Assets Total,TRAVELODGE,Neighbourhoods,432.4,TRAVELODGE,2021-22Q2_PC0662
Sandwell Metropolitan Borough Council,http://www.sandwell.gov.uk/info/200202/performance_and_spending/3233/government_procurement_cards,13-Aug-2021,Total Public Health,Adobe.com,Public Health,49.94,DIGITAL GOODS SOFTWARE APPLICATIONS,2021-22Q2_PC0663
Sandwell Metropolitan Borough Council,http://www.sandwell.gov.uk/info/200202/performance_and_spending/3233/government_procurement_cards,13-Aug-2021,Total Borough Economy,PRINTED.COM,Neighbourhoods,-54.68,MISCELLANEOUS PUBLISHING AND PRINTING,2021-22Q2_PC0664
Sandwell Metropolitan Borough Council,http://www.sandwell.gov.uk/info/200202/performance_and_spending/3233/government_procurement_cards,13-Aug-2021,Total Borough Economy,B & Q 1357,Neighbourhoods,30,HOME SUPPLY WAREHOUSE STORES,2021-22Q2_PC0665
Sandwell Metropolitan Borough Council,http://www.sandwell.gov.uk/info/200202/performance_and_spending/3233/government_procurement_cards,13-Aug-2021,Total Borough Economy,WWW.GOMPELS.CO.UK,Neighbourhoods,62.69,INDUSTRIAL SUPPLIES NOT ELSEWHERE CLASSIFIED,2021-22Q2_PC0666
Sandwell Metropolitan Borough Council,http://www.sandwell.gov.uk/info/200202/performance_and_spending/3233/government_procurement_cards,13-Aug-2021,Total Borough Economy,WWW.BEACHHOUSEAGENCY.C,Neighbourhoods,49.74,MISCELLANEOUS AND SPECIALTY RETAIL STORES,2021-22Q2_PC0667
Sandwell Metropolitan Borough Council,http://www.sandwell.gov.uk/info/200202/performance_and_spending/3233/government_procurement_cards,13-Aug-2021,Total Public Health,Amazon.co.uk BB76C9KM5,Public Health,17.49,DIRECT MARKETING-OTHER DIRECT MARKETERS/NOT ELSEW.,2021-22Q2_PC0668
Sandwell Metropolitan Borough Council,http://www.sandwell.gov.uk/info/200202/performance_and_spending/3233/government_procurement_cards,13-Aug-2021,Total Public Health,Amazon.co.uk E86QS3395,Public Health,5.33,DIRECT MARKETING-OTHER DIRECT MARKETERS/NOT ELSEW.,2021-22Q2_PC0669
Sandwell Metropolitan Borough Council,http://www.sandwell.gov.uk/info/200202/performance_and_spending/3233/government_procurement_cards,13-Aug-2021,Total Borough Economy,PAYPAL  FACEBOOK FACEB,Neighbourhoods,17,ADVERTISING SERVICES,2021-22Q2_PC0670
Sandwell Metropolitan Borough Council,http://www.sandwell.gov.uk/info/200202/performance_and_spending/3233/government_procurement_cards,13-Aug-2021,Director of Law & Governance,AMZNMktplace,Assistant Chief Executive (Excl SIU),15.88,MISCELLANEOUS AND SPECIALTY RETAIL STORES,2021-22Q2_PC0671
Sandwell Metropolitan Borough Council,http://www.sandwell.gov.uk/info/200202/performance_and_spending/3233/government_procurement_cards,13-Aug-2021,Total Borough Economy,Amazon.co.uk O46UW67B5,Total Adult Social Care,118.16,DIRECT MARKETING-OTHER DIRECT MARKETERS/NOT ELSEW.,2021-22Q2_PC0672
Sandwell Metropolitan Borough Council,http://www.sandwell.gov.uk/info/200202/performance_and_spending/3233/government_procurement_cards,13-Aug-2021,Total ASCHWB,OFFICE DEPOT UK,Total Adult Social Care,37.82,STATIONERY/OFFICE SUPPLIES/PRINTING & WRITING PAP.,2021-22Q2_PC0673
Sandwell Metropolitan Borough Council,http://www.sandwell.gov.uk/info/200202/performance_and_spending/3233/government_procurement_cards,13-Aug-2021,Total ASCHWB,AMZNMktplace,Total Adult Social Care,97.29,MISCELLANEOUS AND SPECIALTY RETAIL STORES,2021-22Q2_PC0674
Sandwell Metropolitan Borough Council,http://www.sandwell.gov.uk/info/200202/performance_and_spending/3233/government_procurement_cards,13-Aug-2021,Total ASCHWB,AMZNMKTPLACE AMAZON.CO,Total Adult Social Care,22.48,MISCELLANEOUS AND SPECIALTY RETAIL STORES,2021-22Q2_PC0675
Sandwell Metropolitan Borough Council,http://www.sandwell.gov.uk/info/200202/performance_and_spending/3233/government_procurement_cards,13-Aug-2021,Total ASCHWB,Amazon.co.uk 2A12769A5,Total Adult Social Care,31.98,DIRECT MARKETING-OTHER DIRECT MARKETERS/NOT ELSEW.,2021-22Q2_PC0676
Sandwell Metropolitan Borough Council,http://www.sandwell.gov.uk/info/200202/performance_and_spending/3233/government_procurement_cards,13-Aug-2021,Childrens Services,AMZNMktplace,Childrens Services,2.49,MISCELLANEOUS AND SPECIALTY RETAIL STORES,2021-22Q2_PC0677
Sandwell Metropolitan Borough Council,http://www.sandwell.gov.uk/info/200202/performance_and_spending/3233/government_procurement_cards,13-Aug-2021,Director of Law & Governance,AMZNMktplace,Assistant Chief Executive (Excl SIU),18.98,MISCELLANEOUS AND SPECIALTY RETAIL STORES,2021-22Q2_PC0678
Sandwell Metropolitan Borough Council,http://www.sandwell.gov.uk/info/200202/performance_and_spending/3233/government_procurement_cards,13-Aug-2021,Corporate Management,AMZNMktplace,Corporate Management,43.98,MISCELLANEOUS AND SPECIALTY RETAIL STORES,2021-22Q2_PC0679
Sandwell Metropolitan Borough Council,http://www.sandwell.gov.uk/info/200202/performance_and_spending/3233/government_procurement_cards,16-Aug-2021,Total Housing Revenue Account,SCREWFIX DIR LTD,Total Housing Revenue Account,11.99,"BUILDING MATERIALS, LUMBER STORES",2021-22Q2_PC0680
Sandwell Metropolitan Borough Council,http://www.sandwell.gov.uk/info/200202/performance_and_spending/3233/government_procurement_cards,16-Aug-2021,Total Housing Revenue Account,C I H,Total Housing Revenue Account,234,"ASSOCIATIONS-CIVIC, SOCIAL, AND FRATERNAL",2021-22Q2_PC0681
Sandwell Metropolitan Borough Council,http://www.sandwell.gov.uk/info/200202/performance_and_spending/3233/government_procurement_cards,16-Aug-2021,Total Housing Revenue Account,C I H,Total Housing Revenue Account,234,"ASSOCIATIONS-CIVIC, SOCIAL, AND FRATERNAL",2021-22Q2_PC0682
Sandwell Metropolitan Borough Council,http://www.sandwell.gov.uk/info/200202/performance_and_spending/3233/government_procurement_cards,16-Aug-2021,Total Housing Revenue Account,AMZNMktplace,Total Housing Revenue Account,29.54,MISCELLANEOUS AND SPECIALTY RETAIL STORES,2021-22Q2_PC0683
Sandwell Metropolitan Borough Council,http://www.sandwell.gov.uk/info/200202/performance_and_spending/3233/government_procurement_cards,16-Aug-2021,Total Borough Economy,D4DRIVERS,Neighbourhoods,55,"DOCTORS, (NOT ELSEWHERE CLASSIFIED)",2021-22Q2_PC0684
Sandwell Metropolitan Borough Council,http://www.sandwell.gov.uk/info/200202/performance_and_spending/3233/government_procurement_cards,16-Aug-2021,Total Borough Economy,D4DRIVERS,Neighbourhoods,55,"DOCTORS, (NOT ELSEWHERE CLASSIFIED)",2021-22Q2_PC0685
Sandwell Metropolitan Borough Council,http://www.sandwell.gov.uk/info/200202/performance_and_spending/3233/government_procurement_cards,16-Aug-2021,Total Borough Economy,AMZNMKTPLACE AMAZON.CO,Total Adult Social Care,51.03,MISCELLANEOUS AND SPECIALTY RETAIL STORES,2021-22Q2_PC0686
Sandwell Metropolitan Borough Council,http://www.sandwell.gov.uk/info/200202/performance_and_spending/3233/government_procurement_cards,16-Aug-2021,Total Borough Economy,SCREWFIX DIRECT,Total Adult Social Care,60.7,"BUILDING MATERIALS, LUMBER STORES",2021-22Q2_PC0687
Sandwell Metropolitan Borough Council,http://www.sandwell.gov.uk/info/200202/performance_and_spending/3233/government_procurement_cards,16-Aug-2021,Total Borough Economy,AMZNMktplace,Total Adult Social Care,25.74,MISCELLANEOUS AND SPECIALTY RETAIL STORES,2021-22Q2_PC0688
Sandwell Metropolitan Borough Council,http://www.sandwell.gov.uk/info/200202/performance_and_spending/3233/government_procurement_cards,16-Aug-2021,Total Borough Economy,AMZNMKTPLACE AMAZON.CO,Neighbourhoods,10.99,MISCELLANEOUS AND SPECIALTY RETAIL STORES,2021-22Q2_PC0689
Sandwell Metropolitan Borough Council,http://www.sandwell.gov.uk/info/200202/performance_and_spending/3233/government_procurement_cards,16-Aug-2021,Total Borough Economy,HOMEBASE LTD 085,Neighbourhoods,37.95,HOME SUPPLY WAREHOUSE STORES,2021-22Q2_PC0690
Sandwell Metropolitan Borough Council,http://www.sandwell.gov.uk/info/200202/performance_and_spending/3233/government_procurement_cards,16-Aug-2021,Total Borough Economy,SAINSBURYS S/MKTS,Neighbourhoods,10,"GROCERY STORES, SUPERMARKETS",2021-22Q2_PC0691
Sandwell Metropolitan Borough Council,http://www.sandwell.gov.uk/info/200202/performance_and_spending/3233/government_procurement_cards,16-Aug-2021,Total Borough Economy,ARGOS LTD,Neighbourhoods,24.99,DISCOUNT STORES,2021-22Q2_PC0692
Sandwell Metropolitan Borough Council,http://www.sandwell.gov.uk/info/200202/performance_and_spending/3233/government_procurement_cards,16-Aug-2021,Total Borough Economy,GLOBAL FOODS (BHAM) LT,Neighbourhoods,13.39,"PACKAGE STORES, BEER, WINE, LIQUOR",2021-22Q2_PC0693
Sandwell Metropolitan Borough Council,http://www.sandwell.gov.uk/info/200202/performance_and_spending/3233/government_procurement_cards,16-Aug-2021,Total Borough Economy,MAJESTIC WINE,Neighbourhoods,44.9,"PACKAGE STORES, BEER, WINE, LIQUOR",2021-22Q2_PC0694
Sandwell Metropolitan Borough Council,http://www.sandwell.gov.uk/info/200202/performance_and_spending/3233/government_procurement_cards,16-Aug-2021,Housing & Assets Total,AMZNMktplace,Neighbourhoods,20.99,MISCELLANEOUS AND SPECIALTY RETAIL STORES,2021-22Q2_PC0695
Sandwell Metropolitan Borough Council,http://www.sandwell.gov.uk/info/200202/performance_and_spending/3233/government_procurement_cards,16-Aug-2021,Total Public Health,AMZNMktplace,Public Health,5.99,MISCELLANEOUS AND SPECIALTY RETAIL STORES,2021-22Q2_PC0696
Sandwell Metropolitan Borough Council,http://www.sandwell.gov.uk/info/200202/performance_and_spending/3233/government_procurement_cards,16-Aug-2021,Total Borough Economy,AMZNMktplace,Neighbourhoods,47.96,MISCELLANEOUS AND SPECIALTY RETAIL STORES,2021-22Q2_PC0697
Sandwell Metropolitan Borough Council,http://www.sandwell.gov.uk/info/200202/performance_and_spending/3233/government_procurement_cards,16-Aug-2021,FINANCE (Inc SIU),OFFICE DEPOT UK,Total Adult Social Care,7.55,STATIONERY/OFFICE SUPPLIES/PRINTING & WRITING PAP.,2021-22Q2_PC0698
Sandwell Metropolitan Borough Council,http://www.sandwell.gov.uk/info/200202/performance_and_spending/3233/government_procurement_cards,16-Aug-2021,Total ASCHWB,OFFICE DEPOT UK,Total Adult Social Care,47.4,STATIONERY/OFFICE SUPPLIES/PRINTING & WRITING PAP.,2021-22Q2_PC0699
Sandwell Metropolitan Borough Council,http://www.sandwell.gov.uk/info/200202/performance_and_spending/3233/government_procurement_cards,16-Aug-2021,Childrens Services,eBay O 21-07463-09661,Childrens Services,15.9,DEPARTMENT STORES,2021-22Q2_PC0700
Sandwell Metropolitan Borough Council,http://www.sandwell.gov.uk/info/200202/performance_and_spending/3233/government_procurement_cards,16-Aug-2021,Childrens Services,PREMIER INN,Childrens Services,97,PREMIER INN,2021-22Q2_PC0701
Sandwell Metropolitan Borough Council,http://www.sandwell.gov.uk/info/200202/performance_and_spending/3233/government_procurement_cards,16-Aug-2021,Childrens Services,J S PENDLEBURY AND SON,Childrens Services,6.17,SERVICE STATIONS WITH OR WITHOUT ANCILLARY SERVICE,2021-22Q2_PC0702
Sandwell Metropolitan Borough Council,http://www.sandwell.gov.uk/info/200202/performance_and_spending/3233/government_procurement_cards,16-Aug-2021,Childrens Services,Spotify UK,Childrens Services,9.99,DIGITAL GOODS AUDIOVISUAL MEDIA,2021-22Q2_PC0703
Sandwell Metropolitan Borough Council,http://www.sandwell.gov.uk/info/200202/performance_and_spending/3233/government_procurement_cards,16-Aug-2021,Childrens Services,VODAFONE LTD,Childrens Services,24.57,TELECOM INCL PREPAID/RECURRING PHONE SVCS,2021-22Q2_PC0704
Sandwell Metropolitan Borough Council,http://www.sandwell.gov.uk/info/200202/performance_and_spending/3233/government_procurement_cards,16-Aug-2021,Childrens Services,AMZNMktplace,Childrens Services,76.87,MISCELLANEOUS AND SPECIALTY RETAIL STORES,2021-22Q2_PC0705
Sandwell Metropolitan Borough Council,http://www.sandwell.gov.uk/info/200202/performance_and_spending/3233/government_procurement_cards,16-Aug-2021,Childrens Services,OFFICE DEPOT UK,Childrens Services,5.26,STATIONERY/OFFICE SUPPLIES/PRINTING & WRITING PAP.,2021-22Q2_PC0706
Sandwell Metropolitan Borough Council,http://www.sandwell.gov.uk/info/200202/performance_and_spending/3233/government_procurement_cards,16-Aug-2021,Housing & Assets Total,SCREWFIX DIR LTD,Neighbourhoods,10,"BUILDING MATERIALS, LUMBER STORES",2021-22Q2_PC0707
Sandwell Metropolitan Borough Council,http://www.sandwell.gov.uk/info/200202/performance_and_spending/3233/government_procurement_cards,16-Aug-2021,Director of Law & Governance,OFFICE DEPOT UK,Assistant Chief Executive (Excl SIU),76.4,STATIONERY/OFFICE SUPPLIES/PRINTING & WRITING PAP.,2021-22Q2_PC0708
Sandwell Metropolitan Borough Council,http://www.sandwell.gov.uk/info/200202/performance_and_spending/3233/government_procurement_cards,16-Aug-2021,Director of Law & Governance,Amazon Prime FO1573SJ5,Assistant Chief Executive (Excl SIU),7.99,DIRECT MARKETING-CONTINUITY/SUBSCRIPTION MERCHANTS,2021-22Q2_PC0709
Sandwell Metropolitan Borough Council,http://www.sandwell.gov.uk/info/200202/performance_and_spending/3233/government_procurement_cards,17-Aug-2021,Total Housing Revenue Account,DAVENPORT BURGESS,Total Housing Revenue Account,17.33,"HAT CLEANING SHOPS, SHOE REPAIR SHOPS, SHOE SHINE",2021-22Q2_PC0710
Sandwell Metropolitan Borough Council,http://www.sandwell.gov.uk/info/200202/performance_and_spending/3233/government_procurement_cards,17-Aug-2021,Total Housing Revenue Account,Amazon.co.uk JN02J5NA5,Total Housing Revenue Account,19.94,DIRECT MARKETING-OTHER DIRECT MARKETERS/NOT ELSEW.,2021-22Q2_PC0711
Sandwell Metropolitan Borough Council,http://www.sandwell.gov.uk/info/200202/performance_and_spending/3233/government_procurement_cards,17-Aug-2021,Total Borough Economy,PAYPAL  TRAINLINE,Neighbourhoods,79.75,TRANSPORTATION SERVICES NOT ELSEWHERE CLASSIFIED,2021-22Q2_PC0712
Sandwell Metropolitan Borough Council,http://www.sandwell.gov.uk/info/200202/performance_and_spending/3233/government_procurement_cards,17-Aug-2021,Total Borough Economy,AMZNMktplace,Neighbourhoods,52.97,MISCELLANEOUS AND SPECIALTY RETAIL STORES,2021-22Q2_PC0713
Sandwell Metropolitan Borough Council,http://www.sandwell.gov.uk/info/200202/performance_and_spending/3233/government_procurement_cards,17-Aug-2021,Total Borough Economy,WETRANSFER,Neighbourhoods,10.52,"COMP PROGRAMING,DATA PRCSNG,INTGRTD SYS DSGN SRVS",2021-22Q2_PC0714
Sandwell Metropolitan Borough Council,http://www.sandwell.gov.uk/info/200202/performance_and_spending/3233/government_procurement_cards,17-Aug-2021,Total Borough Economy,Amazon.co.uk 3P6LG5AR5,Neighbourhoods,9.98,DIRECT MARKETING-OTHER DIRECT MARKETERS/NOT ELSEW.,2021-22Q2_PC0715
Sandwell Metropolitan Borough Council,http://www.sandwell.gov.uk/info/200202/performance_and_spending/3233/government_procurement_cards,17-Aug-2021,Housing & Assets Total,Amazon.co.uk 435RI2B95,Neighbourhoods,139.98,DIRECT MARKETING-OTHER DIRECT MARKETERS/NOT ELSEW.,2021-22Q2_PC0716
Sandwell Metropolitan Borough Council,http://www.sandwell.gov.uk/info/200202/performance_and_spending/3233/government_procurement_cards,17-Aug-2021,Housing & Assets Total,Amazon.co.uk AZ57J9IG5,Neighbourhoods,139.98,DIRECT MARKETING-OTHER DIRECT MARKETERS/NOT ELSEW.,2021-22Q2_PC0717
Sandwell Metropolitan Borough Council,http://www.sandwell.gov.uk/info/200202/performance_and_spending/3233/government_procurement_cards,17-Aug-2021,Housing & Assets Total,Amazon.co.uk AP3SK42Y5,Neighbourhoods,139.98,DIRECT MARKETING-OTHER DIRECT MARKETERS/NOT ELSEW.,2021-22Q2_PC0718
Sandwell Metropolitan Borough Council,http://www.sandwell.gov.uk/info/200202/performance_and_spending/3233/government_procurement_cards,17-Aug-2021,Regeneration & Growth,AMZNMktplace,Regeneration And The Economy,108,MISCELLANEOUS AND SPECIALTY RETAIL STORES,2021-22Q2_PC0719
Sandwell Metropolitan Borough Council,http://www.sandwell.gov.uk/info/200202/performance_and_spending/3233/government_procurement_cards,17-Aug-2021,Regeneration & Growth,PAYPAL  ASSETWISDOM,Regeneration And The Economy,210,"SCHOOLS, TRADE AND VOCATIONAL",2021-22Q2_PC0720
Sandwell Metropolitan Borough Council,http://www.sandwell.gov.uk/info/200202/performance_and_spending/3233/government_procurement_cards,17-Aug-2021,FINANCE (Inc SIU),Amazon.co.uk I816B91U5,Assistant Chief Executive (Excl SIU),34.99,DIRECT MARKETING-OTHER DIRECT MARKETERS/NOT ELSEW.,2021-22Q2_PC0721
Sandwell Metropolitan Borough Council,http://www.sandwell.gov.uk/info/200202/performance_and_spending/3233/government_procurement_cards,17-Aug-2021,Total Borough Economy,AMZNMktplace,Neighbourhoods,197.95,MISCELLANEOUS AND SPECIALTY RETAIL STORES,2021-22Q2_PC0722
Sandwell Metropolitan Borough Council,http://www.sandwell.gov.uk/info/200202/performance_and_spending/3233/government_procurement_cards,17-Aug-2021,Total ASCHWB,Amazon.co.uk FT45J8TS5,Total Adult Social Care,18.99,DIRECT MARKETING-OTHER DIRECT MARKETERS/NOT ELSEW.,2021-22Q2_PC0723
Sandwell Metropolitan Borough Council,http://www.sandwell.gov.uk/info/200202/performance_and_spending/3233/government_procurement_cards,17-Aug-2021,Total ASCHWB,R & D MILLER LIMITED,Total Adult Social Care,200,MEN'S AND BOY'S CLOTHING AND ACCESSORIES STORES,2021-22Q2_PC0724
Sandwell Metropolitan Borough Council,http://www.sandwell.gov.uk/info/200202/performance_and_spending/3233/government_procurement_cards,17-Aug-2021,Total ASCHWB,R & D MILLER LIMITED,Total Adult Social Care,177.4,MEN'S AND BOY'S CLOTHING AND ACCESSORIES STORES,2021-22Q2_PC0725
Sandwell Metropolitan Borough Council,http://www.sandwell.gov.uk/info/200202/performance_and_spending/3233/government_procurement_cards,17-Aug-2021,Childrens Services,THE CALIBRATION CENTRE,Childrens Services,66,ELECTRICAL AND SMALL APPLIANCE REPAIR SHOPS,2021-22Q2_PC0726
Sandwell Metropolitan Borough Council,http://www.sandwell.gov.uk/info/200202/performance_and_spending/3233/government_procurement_cards,17-Aug-2021,Childrens Services,Amazon.co.uk JC3ZT8C75,Childrens Services,74.91,DIRECT MARKETING-OTHER DIRECT MARKETERS/NOT ELSEW.,2021-22Q2_PC0727
Sandwell Metropolitan Borough Council,http://www.sandwell.gov.uk/info/200202/performance_and_spending/3233/government_procurement_cards,17-Aug-2021,Childrens Services,AMZNMKTPLACE AMAZON.CO,Childrens Services,77.98,MISCELLANEOUS AND SPECIALTY RETAIL STORES,2021-22Q2_PC0728
Sandwell Metropolitan Borough Council,http://www.sandwell.gov.uk/info/200202/performance_and_spending/3233/government_procurement_cards,17-Aug-2021,Individual School Budgets With Inclusion,Amazon.co.uk SK7VM2BT5,Individual School Budgets With Inclusion,22.99,DIRECT MARKETING-OTHER DIRECT MARKETERS/NOT ELSEW.,2021-22Q2_PC0729
Sandwell Metropolitan Borough Council,http://www.sandwell.gov.uk/info/200202/performance_and_spending/3233/government_procurement_cards,18-Aug-2021,Total Borough Economy,INDUSTRIAL POW UNIT LT,Neighbourhoods,51.84,MOTOR VEHICLE SUPPLIES AND NEW PARTS,2021-22Q2_PC0730
Sandwell Metropolitan Borough Council,http://www.sandwell.gov.uk/info/200202/performance_and_spending/3233/government_procurement_cards,18-Aug-2021,Total Public Health,ADOBE CREATIVE CLOUD,Public Health,49.94,COMPUTER SOFTWARE STORES,2021-22Q2_PC0731
Sandwell Metropolitan Borough Council,http://www.sandwell.gov.uk/info/200202/performance_and_spending/3233/government_procurement_cards,18-Aug-2021,Total Borough Economy,WILKO RETAIL LIMITED,Neighbourhoods,8.5,MISCELLANEOUS GENERAL MERCHANDISE,2021-22Q2_PC0732
Sandwell Metropolitan Borough Council,http://www.sandwell.gov.uk/info/200202/performance_and_spending/3233/government_procurement_cards,18-Aug-2021,Total Borough Economy,AMZNMktplace,Neighbourhoods,25.98,MISCELLANEOUS AND SPECIALTY RETAIL STORES,2021-22Q2_PC0733
Sandwell Metropolitan Borough Council,http://www.sandwell.gov.uk/info/200202/performance_and_spending/3233/government_procurement_cards,18-Aug-2021,Total Public Health,CANVA  I03150-31860307,Public Health,88.9,PHOTOGRAPHIC STUDIOS,2021-22Q2_PC0734
